Workbook

Sheet INDICE
D27: INSTRUCIONES BÁSICAS PARA EL DILIGENCIAMIENTO DE LOS FORMATOS CORRESPONDIENTES AL PERÍODO ANUAL U ORDINARIO.
D33: PROCEDIMIENTO | L33: Nº | M33: FORMATOS | R33: FASE | BL33: GRÁFICO
D34: PASO 1. | E34: Diligenciar la información personal y de los empleos de los evaluadores y del evaluado. | L34: F2. | M34: Compromisos laborales y competencias comportamentales | R34: FASE II. CONCERTACIÓN DE COMPROMISOS LABORALES Y COMPETENCIAS COMPORTAMENTALES
D35: PASO 2. | E35: Concertar a mas tardar el 28 de febrero de cada año los compromisos laborales y competencias comportamentales
D36: PASO 3. | E36: Acopiar durante todo el proceso de evaluación las evidencias especificando la ubicación y fecha de aporte. | L36: F3. | M36: Evidencias | R36: FASE III. SEGUIMIENTO AL DESEMPEÑO LABORAL Y AL DESARROLLO DE LAS COMPETENCIAS COMPORTAMENTALES.
D37: PASO 4. | E37: Efectuar la primera evaluación parcial semestral la cual comprende del primero (1º) de febrero hasta el treinta y uno (31) de julio de cada año; la calificación de los compromisos laborales deberá producirse dentro de los quince (15) días hábiles siguientes al vencimiento de dicho período. | L37: F1. | M37: Información general | R37: IV FASE. EVALUACIONES PARCIALES EN PERÍODO ANUAL U ORDINARIO
D38: PASO 5. | E38: Efectuar la calificación de las competencias comportamentales correspondientes al primer semestre. (las fechas proceden igual que lo especificado en el ítem anterior) | L38: F4. | M38: Calificación competencias comportamentales
D39: PASO 6. | E39: Comunicar la calificación dos días después de efectuada. | L39: F6. | M39: Reporte de calificaciones período anual u ordinario
D40: PASO 7. | E40: Implementar de ser necesario el plan de mejoramiento de acuerdo al resultado del seguimiento o la evaluación. | L40: F7. | M40: Plan de mejoramiento
D41: PASO 8. | E41: Acopiar durante todo el proceso de evaluación las evidencias especificando la ubicación y fecha de aporte. | L41: F3. | M41: Evidencias | R41: FASE III. SEGUIMIENTO AL DESEMPEÑO LABORAL Y AL DESARROLLO DE LAS COMPETENCIAS COMPORTAMENTALES.
D42: PASO 9. | E42: Para la segunda evaluación parcial semestral comprende el primero (1º) de agosto y el treinta y uno (31) de enero del año siguiente, calificación que deberá producirse a más tardar dentro de los quince (15) días hábiles siguientes al vencimiento de dicho período | L42: F1. | M42: Información general | R42: IV FASE. EVALUACIONES PARCIALES EN PERÍODO ANUAL U ORDINARIO
D43: PASO 10. | E43: Deberá realizar la calificación de las competencias comportamentales correspondientes al primer semestre. (las fechas proceden igual que el ítem anterior) | L43: F4. | M43: Calificación competencias comportamentales
D44: PASO 11. | E44: Registrar el resultado de las evaluación de gestión por áreas o dependencias de acuerdo con la información del formato (F5. EVA. ÁREAS O DEPENDENCIAS). | L44: F1. | M44: Información general | R44: V FASE. CALIFICACIÓN DEFINITIVA
D45: PASO 12. | E45: Notificar la calificación final, en el caso de presentarse recursos diligenciar la sección V y VI del formato. | L45: F6. | M45: Reporte de calificaciones período anual u ordinario
D76: Estos formatos constituyen una ayuda metodológica para la aplicación del Sistema Tipo de Evaluación de Desempeño Laboral establecido a través del Acuerdo No. 565 de 2016, proferido por la CNSC. Los presentes documentos podrán ser susceptibles de modificación. Los formatos no cuentan con clave de protección.

Sheet F1. INF. GENERAL
E2: COMISIÓN NACIONAL DEL SERVICIO CIVIL | P2: INSERTE EL LOGOTIPO DE SU ENTIDAD
E4: FORMATO 1. INFORMACIÓN GENERAL
E6: PROCESO: EVALUACIÓN DEL DESEMPEÑO LABORAL | H6: Código: | J6: F-ED-002 | L6: Página | N6: 1 de 1
H7: Fecha de emisión: | J7: 2016-12-27 | L7: Versión: | N7: 2.0
A9: PERÍODO DE EVALUACIÓN | E9: DÍA | F9: MES | G9: AÑO | H9: al | J9: DÍA | K9: MES | L9: AÑO | M9: FECHA CONCERTACIÓN O AJUSTE DE COMPROMISOS | Q9: DÍA | R9: MES | S9: AÑO
A11: I. IDENTIFICACIÓN DEL EVALUADO
A12: Tipo de Documento | C12: Número de identificación | F12: Primer apellido | I12: Segundo apellido | L12: Primer nombre | P12: Otros nombres
A13: ='F2. COMP. LAB Y COM COMPOR'!A13:B13 -> CEDULA DE CIUDADANIA | C13: ='F2. COMP. LAB Y COM COMPOR'!C13:E13 -> 123,456,789 | F13: ='F2. COMP. LAB Y COM COMPOR'!F13:H13 -> PEREZ | I13: ='F2. COMP. LAB Y COM COMPOR'!I13:K13 ->  | L13: ='F2. COMP. LAB Y COM COMPOR'!L13:O13 -> PABLO | P13: ='F2. COMP. LAB Y COM COMPOR'!P13:S13 -> 
A14: Dependencia o área a la que pertenece el evaluado | I14: Denominación del empleo
A15: ='F2. COMP. LAB Y COM COMPOR'!A15:H15 -> Dirección de Talento Humano | I15: ='F2. COMP. LAB Y COM COMPOR'!I15:S15 -> Profesional Especializado
A16: Nivel jerárquico | F16: Código | H16: Grado | I16: ='F2. COMP. LAB Y COM COMPOR'!I16:S17 -> Propósito del empleo: | J16: ='F2. COMP. LAB Y COM COMPOR'!J16:S17 -> El que obra en el manual de funciones
A17: ='F2. COMP. LAB Y COM COMPOR'!A17:E17 -> PROFESIONAL | F17: ='F2. COMP. LAB Y COM COMPOR'!F17:G17 -> 2028 | H17: ='F2. COMP. LAB Y COM COMPOR'!H17 -> 19
A18: II. IDENTIFICACIÓN EVALUADOR. (Jefe inmediato)
A19: Tipo de documento | C19: Número de identificación | F19: Primer apellido | I19: Segundo apellido | L19: Primer nombre | P19: Otros nombres
A20: ='F2. COMP. LAB Y COM COMPOR'!A20:B20 -> CEDULA DE CIUDADANIA | C20: ='F2. COMP. LAB Y COM COMPOR'!C20:E20 -> 80,536,985 | F20: ='F2. COMP. LAB Y COM COMPOR'!F20:H20 -> ARDILA | I20: ='F2. COMP. LAB Y COM COMPOR'!I20:K20 ->  | L20: ='F2. COMP. LAB Y COM COMPOR'!L20:O20 -> FERNANDO | P20: ='F2. COMP. LAB Y COM COMPOR'!P20:S20 -> 
A21: Área o Dependencia a la que pertenece el evaluador | G21: Denominación del empleo | N21: Código | P21: Grado | R21: Nivel jerárquico
A22: ='F2. COMP. LAB Y COM COMPOR'!A22:F22 -> Dirección de Talento Humano | G22: ='F2. COMP. LAB Y COM COMPOR'!G22:M22 -> Director de Talento Humano | N22: ='F2. COMP. LAB Y COM COMPOR'!N22:O22 -> xxxx | P22: ='F2. COMP. LAB Y COM COMPOR'!P22:Q22 -> xxxx | R22: ='F2. COMP. LAB Y COM COMPOR'!R22:S22 -> DIRECTIVO
A23: III. IDENTIFICACIÓN EVALUADOR (Servidor público de Libre Nombramiento y Remoción en caso de constituir Comisión Evaluadora)
A24: Tipo de documento | C24: Número de identificación | F24: Primer apellido | I24: Segundo apellido | L24: Primer nombre | P24: Otros nombres
A25: ='F2. COMP. LAB Y COM COMPOR'!A26:B26 -> CEDULA DE CIUDADANIA | C25: =IF('F2. COMP. LAB Y COM COMPOR'!R24="NO","NO REQUERIDO",'F2. COMP. LAB Y COM COMPOR'!C26:E26) -> NO REQUERIDO | F25: =IF('F2. COMP. LAB Y COM COMPOR'!R24="NO","NO REQUERIDO",'F2. COMP. LAB Y COM COMPOR'!F26:H26) -> NO REQUERIDO | I25: =IF('F2. COMP. LAB Y COM COMPOR'!R24="NO","NO REQUERIDO",'F2. COMP. LAB Y COM COMPOR'!I26:K26) -> NO REQUERIDO | L25: =IF('F2. COMP. LAB Y COM COMPOR'!R24="NO","NO REQUERIDO",'F2. COMP. LAB Y COM COMPOR'!L26:O26) -> NO REQUERIDO | P25: =IF('F2. COMP. LAB Y COM COMPOR'!R24="NO","NO REQUERIDO",'F2. COMP. LAB Y COM COMPOR'!P26:S26) -> NO REQUERIDO
A26: Dependencia o área a la que pertenece el evaluador | G26: Denominación del empleo | N26: Código | P26: Grado | R26: Nivel jerárquico
A27: =IF('F2. COMP. LAB Y COM COMPOR'!R24="NO","NO REQUERIDO",'F2. COMP. LAB Y COM COMPOR'!A28:F28) -> NO REQUERIDO | G27: =IF('F2. COMP. LAB Y COM COMPOR'!R24="NO","NO REQUERIDO",'F2. COMP. LAB Y COM COMPOR'!G28:M28) -> NO REQUERIDO | N27: =IF('F2. COMP. LAB Y COM COMPOR'!R24="NO","NO REQUERIDO",'F2. COMP. LAB Y COM COMPOR'!N28:O28) -> NO REQUERIDO | P27: =IF('F2. COMP. LAB Y COM COMPOR'!R24="NO","NO REQUERIDO",'F2. COMP. LAB Y COM COMPOR'!P28:Q28) -> NO REQUERIDO | R27: =IF('F2. COMP. LAB Y COM COMPOR'!R24="NO","NO REQUERIDO",'F2. COMP. LAB Y COM COMPOR'!R28:S28) -> NO REQUERIDO
A28: IV. COMPROMISOS LABORALES
A29: Metas de la Dependencia a las cuales contribuye el empleo | E29: Compromisos Laborales. | J29: Peso porcentual del compromiso en el año | K29: Calificación por compromiso en período anual | L29: Porcentaje de Cumplimiento.
L31: PRIMERA PARCIAL SEMESTRAL | P31: SEGUNDA PARCIAL SEMESTRAL
L32: Peso porcentual semestre | M32: CALIFICACIÓN DEL COMPROMISO | N32: CALIFICACIÓN DEL COMPROMISO (Con peso porcentual) | P32: Peso porcentual semestre | Q32: CALIFICACIÓN DEL COMPROMISO | R32: CALIFICACIÓN DEL COMPROMISO (Con peso porcentual)
A33: ='F2. COMP. LAB Y COM COMPOR'!A37 -> Meta 1 | E33: ='F2. COMP. LAB Y COM COMPOR'!H37 -> Compromiso laboral 1 | J33: =+'F2. COMP. LAB Y COM COMPOR'!S37 -> 20.00% | K33: =IF(OR(N33="No aplica",R33="No aplica"),"No aplica",IFERROR(AVERAGE(N33,R33),"No Aplica")) -> No aplica | L33: ='F2. COMP. LAB Y COM COMPOR'!Q37 -> 10.00% | N33: =IF($O$47>0,"No aplica",(L33*M33)) -> No aplica | P33: =+'F2. COMP. LAB Y COM COMPOR'!R37 -> 30.00% | R33: =IF($S$47>0,"No aplica",(P33*Q33)) -> 0.00
A35: ='F2. COMP. LAB Y COM COMPOR'!A39 -> Meta 1 | E35: ='F2. COMP. LAB Y COM COMPOR'!$H$39 -> Compromiso laboral 2 | J35: =+'F2. COMP. LAB Y COM COMPOR'!S39 -> 12.50% | K35: =IF(OR(N35="No aplica",R35="No aplica"),"No aplica",IFERROR(AVERAGE(N35,R35),"No Aplica")) -> No aplica | L35: =+'F2. COMP. LAB Y COM COMPOR'!Q39 -> 25.00% | N35: =IF($O$47>0,"No aplica",(L35*M35)) -> No aplica | P35: =+'F2. COMP. LAB Y COM COMPOR'!R39 -> 0.00% | R35: =IF($S$47>0,"No aplica",(P35*Q35)) -> 0.00
A37: ='F2. COMP. LAB Y COM COMPOR'!A41 -> Meta 2 | E37: ='F2. COMP. LAB Y COM COMPOR'!$H$41 -> Compromiso laboral 3 | J37: =+'F2. COMP. LAB Y COM COMPOR'!S41 -> 20.00% | K37: =IF(OR(N37="No aplica",R37="No aplica"),"No aplica",IFERROR(AVERAGE(N37,R37),"No Aplica")) -> No aplica | L37: =+'F2. COMP. LAB Y COM COMPOR'!Q41 -> 30.00% | N37: =IF($O$47>0,"No aplica",(L37*M37)) -> No aplica | P37: =+'F2. COMP. LAB Y COM COMPOR'!R41 -> 10.00% | R37: =IF($S$47>0,"No aplica",(P37*Q37)) -> 0.00
A39: ='F2. COMP. LAB Y COM COMPOR'!A43 -> Meta 3 | E39: ='F2. COMP. LAB Y COM COMPOR'!$H$43 -> Compromiso laboral 4 | J39: =+'F2. COMP. LAB Y COM COMPOR'!S43 -> 22.50% | K39: =IF(OR(N39="No aplica",R39="No aplica"),"No aplica",IFERROR(AVERAGE(N39,R39),"No Aplica")) -> No aplica | L39: =+'F2. COMP. LAB Y COM COMPOR'!Q43 -> 20.00% | N39: =IF($O$47>0,"No aplica",(L39*M39)) -> No aplica | P39: =+'F2. COMP. LAB Y COM COMPOR'!R43 -> 25.00% | R39: =IF($S$47>0,"No aplica",(P39*Q39)) -> 0.00
A41: ='F2. COMP. LAB Y COM COMPOR'!A45 -> Meta 4 | E41: ='F2. COMP. LAB Y COM COMPOR'!$H$45 -> Compromiso laboral 5 | J41: =+'F2. COMP. LAB Y COM COMPOR'!S45 -> 25.00% | K41: =IF(OR(N41="No aplica",R41="No aplica"),"No aplica",IFERROR(AVERAGE(N41,R41),"No Aplica")) -> No aplica | L41: =+'F2. COMP. LAB Y COM COMPOR'!Q45 -> 15.00% | N41: =IF($O$47>0,"No aplica",(L41*M41)) -> No aplica | P41: =+'F2. COMP. LAB Y COM COMPOR'!R45 -> 35.00% | R41: =IF($S$47>0,"No aplica",(P41*Q41)) -> 0.00
A43: TOTALES | J43: =SUM(J33:J42) -> 100.00% | K43: =SUM(K33:K42) -> 0.00 | L43: Resultado total | O43: =IF(O47>0,"",SUMIF(N33:O42,"<100",N33:O42)) ->  | P43: Resultado total | S43: =IF(S47>0,"",SUMIF(R33:S42,"<100",R33:S42)) -> 0.00
A44: Tiempo efectivamente laborado en el semestre | G44: Total Días Laborados de cada Evaluación Semestral | P44: 180
G45: % Participación Días Laborados de cada Evaluación Semestral | L45: =IFERROR(Hoja4!D539,0) -> 50.00% | P45: =IFERROR(Hoja4!D540,0) -> 50.00%
A46: TOTAL SEMESTRAL | L46: =IFERROR(O43*L45,"No Aplica") -> No Aplica | P46: =IFERROR(S43*P45,"No Aplica") -> 0.00
A47: Totales Parciales Semestrales con Eventuales | L47: Resultado Eventuales I Sem | O47: =+'F8. EVA. EVENTUAL (Semestre 1)'!K48 -> 70.01 | P47: Resultado Eventuales II Sem | S47: =+'F8. EVA. EVENTUAL (Semestre 2)'!K47 -> 0.00
A48: Calificaciones parciales semestrales compromisos laborales | L48: Calificación total
L49: =O43*40 ->  | P49: =S43*40 -> 0.00
A50: CALIFICACIÒN TOTAL DE LOS COMPROMISOS LABORALES | L50: Sobre el 100% | O50: =IF(AND(L45>0,P45>0)=TRUE,IF(O43="",(O47*L45),(O43*L45))+IF(S43="",(S47*P45),(S43*P45)),"No Aplica") -> 35.01 | P50: Sobre el peso porcentual del 80% | S50: =IF(O50="No Aplica","No Aplica",(O50*80%)) -> 28.01
A52: V. COMPETENCIAS COMPORTAMENTALES | J52: F5. EVA. ÁREAS O DEPENDENCIAS | L52: VI. EVALUACIÓN DE GESTIÓN POR ÁREAS O DEPENDENCIAS
A53: COMPETENCIAS COMPORTAMENTALES | F53: 1° parcial semestral | H53: 2° parcial semestral | L53: CALIFICACIÓN DE LA EVALUACIÓN DE GESTIÓN POR ÁREAS O DEPENDENCIAS.
A54: 1. | B54: ='F2. COMP. LAB Y COM COMPOR'!B51 -> Aprendizaje Continuo | F54: =IF(F59>0,"No aplica",IF('F4. CALF. COM. COMPORT.'!N32="DEFINA COMPETENCIA","DEFINA COMPETENCIA",IF('F4. CALF. COM. COMPORT.'!N32="",0,'F4. CALF. COM. COMPORT.'!N32))) -> No aplica | H54: =IF(H59>0,"No aplica",IF('F4. CALF. COM. COMPORT.'!O32="DEFINA COMPETENCIA","DEFINA COMPETENCIA",IF('F4. CALF. COM. COMPORT.'!O32="",0,'F4. CALF. COM. COMPORT.'!O32))) -> 0
A55: 2. | B55: ='F2. COMP. LAB Y COM COMPOR'!B53 -> Orientación al usuario y al ciudadano | F55: =IF(F59>0,"No aplica",IF('F4. CALF. COM. COMPORT.'!N34="DEFINA COMPETENCIA","DEFINA COMPETENCIA",IF('F4. CALF. COM. COMPORT.'!N34="",0,'F4. CALF. COM. COMPORT.'!N34))) -> No aplica | H55: =IF(H59>0,"No aplica",IF('F4. CALF. COM. COMPORT.'!O34="DEFINA COMPETENCIA","DEFINA COMPETENCIA",IF('F4. CALF. COM. COMPORT.'!O34="",0,'F4. CALF. COM. COMPORT.'!O34))) -> 0 | L55: VII. RESULTADOS CONSOLIDADOS COMPONENTES DE LA EVALUACIÓN DE DESEMPEÑO LABORAL PARA LA EVALUACIÓN ANUAL U ORDINARIA
A56: 3. | B56: ='F2. COMP. LAB Y COM COMPOR'!B55 -> Trabajo en equipo y Colaboración | F56: =IF(F59>0,"No aplica",IF('F4. CALF. COM. COMPORT.'!N36="DEFINA COMPETENCIA","DEFINA COMPETENCIA",IF('F4. CALF. COM. COMPORT.'!N36="",0,'F4. CALF. COM. COMPORT.'!N36))) -> No aplica | H56: =IF(H59>0,"No aplica",IF('F4. CALF. COM. COMPORT.'!O36="DEFINA COMPETENCIA","DEFINA COMPETENCIA",IF('F4. CALF. COM. COMPORT.'!O36="",0,'F4. CALF. COM. COMPORT.'!O36))) -> 0
A57: 4. | B57: ='F2. COMP. LAB Y COM COMPOR'!B57 -> Liderazgo de Grupos de Trabajo (personal a cargo) | F57: =IF(F59>0,"No aplica",IF('F4. CALF. COM. COMPORT.'!N37="DEFINA COMPETENCIA","DEFINA COMPETENCIA",IF('F4. CALF. COM. COMPORT.'!N38="",0,'F4. CALF. COM. COMPORT.'!N38))) -> No aplica | H57: =IF(H59>0,"No aplica",IF('F4. CALF. COM. COMPORT.'!O37="DEFINA COMPETENCIA","DEFINA COMPETENCIA",IF('F4. CALF. COM. COMPORT.'!O38="",0,'F4. CALF. COM. COMPORT.'!O38))) -> 0 | L57: CALIFICACIÓN | P57: NIVEL DE CALIFICACIÓN
A58: Totales Parciales Semestrales | F58: ='F4. CALF. COM. COMPORT.'!N41 -> CALIFIQUE 4 COMPETENCIAS | H58: ='F4. CALF. COM. COMPORT.'!O41 -> CALIFIQUE 4 COMPETENCIAS | J58: F4. CAL. COMP. COMPORTAMENT. | L58: =IFERROR(IF(F60="DEFINA COMPETENCIAS","FALTA CALIFICACIÓN DE COMPETENCIAS",(+F$60+S$50+P$53)),"NO APLICA") -> 31.63 | P58: =IF(AND(OR(SUM(N33:O42)>0,O47>1)=TRUE,OR(SUM(R33:S42)>0,S47>1)=TRUE,P53<>"",AND(OR(F58>0,F59>0)=TRUE,OR(H58>0,H59>0)=TRUE)=TRUE)=TRUE,IFERROR(VLOOKUP(L58,Hoja4!AA3:AB1002,2),0),"NO APLICA") -> NO APLICA
A59: Totales Parciales Semestrales con Eventuales | F59: =+'F8. EVA. EVENTUAL (Semestre 1)'!M62 -> 7.25 | H59: =+'F8. EVA. EVENTUAL (Semestre 2)'!M61 -> 0.00 | L59: F2. COMP. LAB Y COM COMPOR
A60: CALIFICACIÓN DE LAS COMPETENCIAS COMPORTAMENTALES | F60: =((IF(F59>0,(F59*L45),IF(F58<>"CALIFIQUE 4 COMPETENCIAS",(F58*L45),0)))+(IF(H59>0,(H59*P45),IF(H58<>"CALIFIQUE 4 COMPETENCIAS",(H58*P45),0)))) -> 3.63
A61: VIII. EVIDENCIAS, PLAN DE MEJORAMIENTO DEL EMPLEADO PÚBLICO Y REPORTES DE CALIFICACIÓN
A62: F3. EVIDENCIAS | D62: F7. PLAN DE MEJORAMIENTO | G62: F6. REPOR CLF PRD ANUAL U ORD | J62: F8. EVA. EVENTUAL (Sem 1) | L62: F8. EVA. EVENTUAL (Sem 2) | N62: F9. EVA. EXTRAORDINARIA | Q62: F10. EVA. INFERIOR A 1 AÑO

Sheet F2. COMP. LAB Y COM COMPOR
E2: COMISIÓN NACIONAL DEL SERVICIO CIVIL | P2: INSERTE EL LOGOTIPO DE SU ENTIDAD
E4: FORMATO 2. COMPROMISOS LABORALES Y COMPETENCIAS COMPORTAMENTALES
E6: PROCESO: EVALUACIÓN DEL DESEMPEÑO LABORAL | H6: Código: | J6: F-ED-003 | L6: Página | N6: 1 de 1
H7: Fecha de emisión: | J7: 2016-12-27 | L7: Versión: | N7: 2.0
A9: PERÍODO DE EVALUACIÓN | E9: DÍA | F9: MES | G9: AÑO | H9: al | J9: DÍA | K9: MES | L9: AÑO | M9: FECHA CONCERTACIÓN / FIJACIÓN O AJUSTE DE COMPROMISOS | Q9: DÍA | R9: MES | S9: AÑO
E10: 1 | F10: 2 | G10: 2017 | J10: 31 | K10: 1 | L10: 2018 | Q10: 28 | R10: 2 | S10: 2017
A11: I. IDENTIFICACIÓN DEL EVALUADO
A12: Tipo de Documento | C12: Número de identificación | F12: Primer apellido | I12: Segundo apellido | L12: Primer nombre | P12: Otros nombres
A13: CEDULA DE CIUDADANIA | C13: 123,456,789 | F13: PEREZ | L13: PABLO
A14: Dependencia o área a la que pertenece el evaluado | I14: Denominación del empleo
A15: Dirección de Talento Humano | I15: Profesional Especializado
A16: Nivel jerárquico | F16: Código | H16: Grado | I16: Propósito del empleo: | J16: El que obra en el manual de funciones
A17: PROFESIONAL | F17: 2028 | H17: 19
A18: II. IDENTIFICACIÓN DEL EVALUADOR (Jefe inmedidato)
A19: Tipo de documento | C19: Número de identificación | F19: Primer apellido | I19: Segundo apellido | L19: Primer nombre | P19: Otros nombres
A20: CEDULA DE CIUDADANIA | C20: 80,536,985 | F20: ARDILA | L20: FERNANDO
A21: Área o Dependencia a la que pertenece el evaluador | G21: Denominación del empleo | N21: Código | P21: Grado | R21: Nivel jerárquico
A22: Dirección de Talento Humano | G22: Director de Talento Humano | N22: xxxx | P22: xxxx | R22: DIRECTIVO
A23: III. IDENTIFICACIÓN EVALUADOR (Servidor público de Libre Nombramiento y Remoción en caso de constituir Comisión Evaluadora)
O24: Se requiere constituir Comisión Evaluadora | R24: NO
A25: Tipo de documento | C25: Número de identificación | F25: Primer apellido | I25: Segundo apellido | L25: Primer nombre | P25: Otros nombres
A26: CEDULA DE CIUDADANIA
A27: Dependencia o área a la que pertenece el evaluador | G27: Denominación del empleo | N27: Código | P27: Grado | R27: Nivel jerárquico
A30: CONCERTACIÓN / FIJACIÓN DE COMPROMISOS | F30: X | G30: AJUSTE DE COMPROMISOS | L30: SELECCIONE LA RAZÓN DEL AJUSTE DE LOS COMPROMISOS
A32: IV. CONCERTACIÓN DE COMPROMISOS LABORALES Y COMPETENCIAS COMPORTAMENTALES.
A33: COMPROMISOS LABORALES
A34: Metas del Área o Dependencia a las cuales contribuye el empleo | H34: Compromisos Laborales. | Q34: Peso porcentual del compromiso
Q36: Semestre 1 | R36: Semestre 2 | S36: Total anual
A37: Meta 1 | H37: Compromiso laboral 1 | Q37: 10.00% | R37: 30.00% | S37: =IF(COUNTA(Q37,R37)=2,AVERAGE(Q37:R38),"") -> 20.00%
A39: Meta 1 | H39: Compromiso laboral 2 | Q39: 25.00% | R39: 0.00% | S39: =IF(COUNTA(Q39,R39)=2,AVERAGE(Q39:R40),"") -> 12.50%
A41: Meta 2 | H41: Compromiso laboral 3 | Q41: 30.00% | R41: 10.00% | S41: =IF(COUNTA(Q41,R41)=2,AVERAGE(Q41:R42),"") -> 20.00%
A43: Meta 3 | H43: Compromiso laboral 4 | Q43: 20.00% | R43: 25.00% | S43: =IF(COUNTA(Q43,R43)=2,AVERAGE(Q43:R44),"") -> 22.50%
A45: Meta 4 | H45: Compromiso laboral 5 | Q45: 15.00% | R45: 35.00% | S45: =IF(COUNTA(Q45,R45)=2,AVERAGE(Q45:R46),"") -> 25.00%
A47: PESO TOTAL PONDERADO DE LOS COMPROMISOS | Q47: =IF(COUNT(Q37:Q46)<3,"MÍNIMO TRES (03) COMPROMISOS",IF(SUM(Q37:Q46)>1,CONCATENATE("ERROR!!: Sumatoria mayor a 100% (",TEXT(SUM(Q37:Q46),"0%)")),IF(SUM(Q37:Q46)<1,CONCATENATE("ERROR!!: Sumatoria menor a 100% (",TEXT(SUM(Q37:Q46),"0%)")),SUM(Q37:Q46)))) -> 100.00% | R47: =IF(COUNT(R37:R46)<3,"MÍNIMO TRES (03) COMPROMISOS",IF(SUM(R37:R46)>1,CONCATENATE("ERROR!!: Sumatoria mayor a 100% (",TEXT(SUM(R37:R46),"0%)")),IF(SUM(R37:R46)<1,CONCATENATE("ERROR!!: Sumatoria menor a 100% (",TEXT(SUM(R37:R46),"0%)")),SUM(R37:R46)))) -> 100.00% | S47: =IF(COUNT(S37:T46)<3,"MÍNIMO TRES (03) COMPROMISOS",IF(SUM(S37:T46)>1,CONCATENATE("ERROR!!: Sumatoria mayor a 100% (",TEXT(SUM(S37:T46),"0%)")),IF(SUM(S37:T46)<1,CONCATENATE("ERROR!!: Sumatoria menor a 100% (",TEXT(SUM(S37:T46),"0%)")),SUM(S37:T46)))) -> 100.00%
A48: V. FIJACIÓN DE COMPETENCIAS COMPORTAMENTALES
A50: N° | B50: COMPETENCIA | E50: DEFINICIÓN | L50: CONDUCTAS ASOCIADAS
A51: =IF(B51="","1. ",IF(AND(B51<>B53,B51<>B55,B51<>B57)=TRUE,"1. ","REPETIDA")) -> 1. | B51: Aprendizaje Continuo | E51: =VLOOKUP($A$17&B51,Hoja4!C$220:E$250,2,FALSE) -> Adquirir y desarrollar permanentemente conocimientos, destrezas y habilidades, con el fin de mantener altos estándares de eficacia organizacional. | L51: =VLOOKUP($A$17&B51,Hoja4!C$220:E$250,3,FALSE) -> ▪Aprende de la experiencia de otros y de la propia. ▪Se adapta y aplica nuevas tecnologías que se implanten en la organización. ▪Aplica los conocimientos adquiridos a los desafíos que se presentan en el desarrollo del trabajo. ▪Investiga, indaga y profundiza en los temas de su entorno área de desempeño. ▪Reconoce las propias limitaciones y las necesidades de mejorar su preparación. ▪Asimila nueva información y la aplica correctamente.
A53: =IF(B51="","2. ",IF(AND(B51<>B53,B53<>B55,B53<>B57)=TRUE,"2. ","REPETIDA")) -> 2. | B53: Orientación al usuario y al ciudadano | E53: =VLOOKUP($A$17&B53,Hoja4!C$220:E$250,2,FALSE) -> Dirigir las decisiones y acciones a la satisfacción de las necesidades e intereses de los usuarios internos y externos, de conformidad con las responsabilidades públicas asignadas a la entidad. | L53: =VLOOKUP($A$17&B53,Hoja4!C$220:E$250,3,FALSE) -> ▪ Atiende y valora las necesidades y peticiones de los usuarios y de ciudadanos en general. ▪Considera las necesidades de los usuarios al diseñar proyectos o servicios. ▪Da respuesta oportuna a las necesidades de los usuarios de conformidad con el servicio que ofrece la entidad. ▪Establece diferentes canales de comunicación con el usuario para conocer sus necesidades y propuestas y responde a las mismas. ▪Reconoce la interdependencia entre su trabajo y el de otros.
A55: =IF(B51="","3. ",IF(AND(B55<>B51,B53<>B55,B55<>B57)=TRUE,"3. ","REPETIDA")) -> 3. | B55: Trabajo en equipo y Colaboración | E55: =VLOOKUP($A$17&B55,Hoja4!C$220:E$250,2,FALSE) -> Trabajar con otros de forma conjunta y de manera participativa, integrando esfuerzos para la consecución de metas institucionales comunes. | L55: =VLOOKUP($A$17&B55,Hoja4!C$220:E$250,3,FALSE) -> ▪Coopera en distintas situaciones y comparte información. ▪Aporta sugerencias, ideas y opiniones. ▪Expresa expectativas positivas del equipo o de los miembros del mismo. ▪Planifica las propias acciones teniendo en cuenta la repercusión de las mismas para la consecución de los objetivos grupales. ▪Establece diálogo directo con los miembros del equipo que permita compartir información e ideas en condiciones de respeto y cordialidad. ▪Respeta criterios dispares y distintas opiniones del equipo.
A57: =IF(B51="","4. ",IF(AND(B57<>B53,B57<>B55,B51<>B57)=TRUE,"4. ","REPETIDA")) -> 4. | B57: Liderazgo de Grupos de Trabajo (personal a cargo) | E57: =VLOOKUP($A$17&B57,Hoja4!C$220:E$250,2,FALSE) -> Asumir el rol de orientar y guía de un grupo o equipo de trabajo, utilizando la autoridad con arreglo a las normas y promoviendo la Efectividad en la consecución de objetivos y metas institucionales. | L57: =VLOOKUP($A$17&B57,Hoja4!C$220:E$250,3,FALSE) -> ▪Establece los objetivos del grupo de forma clara y equilibrada. ▪Asegura que los integrantes del grupo compartan planes, programas y proyectos institucionales. ▪Orienta y coordina el trabajo del grupo para la identificación de planes y actividades a seguir. ▪Facilita la colaboración con otras áreas y dependencias. ▪Escucha y tiene en cuenta las opiniones de los integrantes del grupo. ▪Gestiona los recursos necesarios para poder cumplir con las metas propuestas. ▪Garantiza los recursos necesarios para poder cumplir con las metas propuestas. ▪Garantiza que el grupo tenga la información necesaria. ▪Explica las razones de las decisiones.
A59: VI. FIRMAS, RECLAMACIÓN U OBJECIÓN.
A60: FIRMA DEL EVALUADO | E60: FIRMA DEL JEFE INMEDIATO | H60: FIRMA DEL EVALUADOR EN COMISIÓN EVALUADORA | K60: Renuencia del Evaluado para firmar la concertación de compromisos | M60: DATOS DEL TESTIGO | P60: FIRMA DEL TESTIGO | R60: FECHA
H61: =IF(R24<>"SI","NO APLICA","") -> NO APLICA
A62: RECLAMACIÓN U OBJECIÓN EN ÚNICA INSTANCIA ANTE LA COMISIÓN DE PERSONAL (Parágrafo del articulo 22º, del Acuerdo 565 de 2016) | G62: DECISIÓN DE LA COMISIÓN DE PERSONAL | M62: MOTIVACIÓN DE LA DECISIÓN
A65: Número de Radicado
A66: Fecha Reclamación (dd/mm/aa)

Sheet F3. EVIDENCIAS
E2: COMISIÓN NACIONAL DEL SERVICIO CIVIL | Q2: INSERTE EL LOGOTIPO DE SU ENTIDAD
E4: FORMATO 3 DE EVIDENCIAS
E6: PROCESO: EVALUACIÓN DEL DESEMPEÑO LABORAL | J6: CÓDIGO: F-ED-004
J7: FECHA EMISIÓN | O7: 2016-12-27
J8: Página | O8: 1 de 1
J9: Versión | O9: 2.0
A10: I. IDENTIFICACIÓN DEL EVALUADO
A11: Tipo de Documento | C11: Número de identificación | F11: Primer apellido | I11: Segundo apellido | L11: Primer nombre | P11: Otros nombres
A12: ='F2. COMP. LAB Y COM COMPOR'!A13:B13 -> CEDULA DE CIUDADANIA | C12: ='F2. COMP. LAB Y COM COMPOR'!C13:E13 -> 123,456,789 | F12: ='F2. COMP. LAB Y COM COMPOR'!F13:H13 -> PEREZ | I12: ='F2. COMP. LAB Y COM COMPOR'!I13:K13 ->  | L12: ='F2. COMP. LAB Y COM COMPOR'!L13:O13 -> PABLO | P12: ='F2. COMP. LAB Y COM COMPOR'!P13:S13 -> 
A13: Dependencia o área a la que pertenece el evaluado | I13: Denominación del empleo
A14: ='F2. COMP. LAB Y COM COMPOR'!A15:H15 -> Dirección de Talento Humano | I14: ='F2. COMP. LAB Y COM COMPOR'!I15:S15 -> Profesional Especializado
A15: Nivel jerárquico | F15: Código | H15: Grado | I15: ='F2. COMP. LAB Y COM COMPOR'!I16 -> Propósito del empleo: | K15: ='F2. COMP. LAB Y COM COMPOR'!J16 -> El que obra en el manual de funciones
A16: ='F2. COMP. LAB Y COM COMPOR'!A17:E17 -> PROFESIONAL | F16: ='F2. COMP. LAB Y COM COMPOR'!F17:G17 -> 2028 | H16: ='F2. COMP. LAB Y COM COMPOR'!H17 -> 19
A17: II. IDENTIFICACIÓN EVALUADOR. (Jefe inmediato)
A18: Tipo de documento | C18: Número de identificación | F18: Primer apellido | I18: Segundo apellido | L18: Primer nombre | P18: Otros nombres
A19: ='F2. COMP. LAB Y COM COMPOR'!A20:B20 -> CEDULA DE CIUDADANIA | C19: ='F2. COMP. LAB Y COM COMPOR'!C20:E20 -> 80,536,985 | F19: ='F2. COMP. LAB Y COM COMPOR'!F20:H20 -> ARDILA | I19: ='F2. COMP. LAB Y COM COMPOR'!I20:K20 ->  | L19: ='F2. COMP. LAB Y COM COMPOR'!L20:O20 -> FERNANDO | P19: ='F2. COMP. LAB Y COM COMPOR'!P20:S20 -> 
A20: Área o Dependencia a la que pertenece el evaluador | G20: Denominación del empleo | N20: Código | P20: Grado | R20: Nivel jerárquico
A21: ='F2. COMP. LAB Y COM COMPOR'!A22:F22 -> Dirección de Talento Humano | G21: ='F2. COMP. LAB Y COM COMPOR'!G22:M22 -> Director de Talento Humano | N21: ='F2. COMP. LAB Y COM COMPOR'!N22:O22 -> xxxx | P21: ='F2. COMP. LAB Y COM COMPOR'!P22:Q22 -> xxxx | R21: ='F2. COMP. LAB Y COM COMPOR'!R22:S22 -> DIRECTIVO
A22: III. IDENTIFICACIÓN EVALUADOR (Servidor público de Libre Nombramiento y Remoción en caso de constituir Comisión Evaluadora)
A23: Tipo de documento | C23: Número de identificación | F23: Primer apellido | I23: Segundo apellido | L23: Primer nombre | P23: Otros nombres
A24: ='F2. COMP. LAB Y COM COMPOR'!A26:B26 -> CEDULA DE CIUDADANIA | C24: =IF('F2. COMP. LAB Y COM COMPOR'!R24="NO","NO REQUERIDO",'F2. COMP. LAB Y COM COMPOR'!C26:E26) -> NO REQUERIDO | F24: =IF('F2. COMP. LAB Y COM COMPOR'!R24="NO","NO REQUERIDO",'F2. COMP. LAB Y COM COMPOR'!F26:H26) -> NO REQUERIDO | I24: =IF('F2. COMP. LAB Y COM COMPOR'!R24="NO","NO REQUERIDO",'F2. COMP. LAB Y COM COMPOR'!I26:K26) -> NO REQUERIDO | L24: =IF('F2. COMP. LAB Y COM COMPOR'!R24="NO","NO REQUERIDO",'F2. COMP. LAB Y COM COMPOR'!L26:O26) -> NO REQUERIDO | P24: =IF('F2. COMP. LAB Y COM COMPOR'!R24="NO","NO REQUERIDO",'F2. COMP. LAB Y COM COMPOR'!P26:S26) -> NO REQUERIDO
A25: Dependencia o área a la que pertenece el evaluador | G25: Denominación del empleo | N25: Código | P25: Grado | R25: Nivel jerárquico
A26: =IF('F2. COMP. LAB Y COM COMPOR'!R24="NO","NO REQUERIDO",'F2. COMP. LAB Y COM COMPOR'!A28:F28) -> NO REQUERIDO | G26: =IF('F2. COMP. LAB Y COM COMPOR'!R24="NO","NO REQUERIDO",'F2. COMP. LAB Y COM COMPOR'!G28:M28) -> NO REQUERIDO | N26: =IF('F2. COMP. LAB Y COM COMPOR'!R24="NO","NO REQUERIDO",'F2. COMP. LAB Y COM COMPOR'!N28:O28) -> NO REQUERIDO | P26: =IF('F2. COMP. LAB Y COM COMPOR'!R24="NO","NO REQUERIDO",'F2. COMP. LAB Y COM COMPOR'!P28:Q28) -> NO REQUERIDO | R26: =IF('F2. COMP. LAB Y COM COMPOR'!R24="NO","NO REQUERIDO",'F2. COMP. LAB Y COM COMPOR'!R28:S28) -> NO REQUERIDO
A27: IV. EVIDENCIAS
A28: Componente de evaluación | C28: Compromisos y Competencias | H28: Descripción de la evidencia | N28: Ubicación de la evidencia. | P28: Fecha de Inclusión de la evidencia | Q28: Observaciones | R28: Evidencia Aportada por
A31: Período anual u ordinario- Compromiso 5 | C31: =VLOOKUP(A31,Hoja4!A$467:B$482,2,FALSE) -> Compromiso laboral 5 | H31: SAJDÑLKAJF | N31: DAOIFNAOIDN | P31: 2017-04-03 | Q31: DADJFLAK | R31: EVALUADO
A36: Período anual u ordinario- Compromiso 5 | C36: =VLOOKUP(A36,Hoja4!A$467:B$482,2,FALSE) -> Compromiso laboral 5 | H36: DAFDAF | N36: DAFADF | P36: 2017-07-31 | Q36: DFAFASDF | R36: EVALUADO
A41: Período anual u ordinario- Competencia 3 | C41: =VLOOKUP(A41,Hoja4!A$467:B$482,2,FALSE) -> Trabajo en equipo y Colaboración | H41: DAFAFDA | N41: DAFSAFDSADF | P41: 2017-07-31 | Q41: DAFADFAD | R41: EVALUADOR
C46: =VLOOKUP(A46,Hoja4!A$467:B$482,2,FALSE) -> 
C51: =VLOOKUP(A51,Hoja4!A$467:B$482,2,FALSE) -> 
C56: =VLOOKUP(A56,Hoja4!A$467:B$482,2,FALSE) -> 
C61: =VLOOKUP(A61,Hoja4!A$467:B$482,2,FALSE) -> 
C66: =VLOOKUP(A66,Hoja4!A$467:B$482,2,FALSE) -> 
C71: =VLOOKUP(A71,Hoja4!A$467:B$482,2,FALSE) -> 
C76: =VLOOKUP(A76,Hoja4!A$467:B$482,2,FALSE) -> 
A81: V. FORMALIZACIÒN DE LA EVIDENCIAS. (FIRMAS)
A82: EVALUADO | C82: NOMBRE, FIRMA Y NÚMERO DE CÉDULA. | K82: EVALUADOR | P82: TERCERO
K83: NOMBRE, FIRMA Y NÚMERO DE CÉDULA. | P83: NOMBRE, FIRMA Y NÚMERO DE CÉDULA
F84: =UPPER(CONCATENATE(L12," ",P12," ",F12," ",I12)) -> PABLO PEREZ | M84: =UPPER(CONCATENATE(L19," ",P19," ",F19," ",I19)) -> FERNANDO ARDILA
F85: =C12 -> 123,456,789 | M85: =C19 -> 80,536,985

Sheet F4. CALF. COM. COMPORT.
E1: COMISIÓN NACIONAL DEL SERVICIO CIVIL | P1: INSERTE EL LOGOTIPO DE SU ENTIDAD
E3: FORMATO 4. CALIFICACIÓN DE COMPETENCIAS COMPORTAMENTALES
E5: PROCESO: EVALUACIÓN DEL DESEMPEÑO LABORAL | H5: CÓDIGO: F-ED-005
H6: FECHA EMISIÓN | M6: 2016-12-27
H7: Página | M7: 1 de 1
H8: Versión | M8: 2.0
A9: I. IDENTIFICACIÓN DEL EVALUADO
A10: Tipo de Documento | C10: Número de identificación | F10: Primer apellido | I10: Segundo apellido | L10: Primer nombre | P10: Otros nombres
A11: ='F2. COMP. LAB Y COM COMPOR'!A13:B13 -> CEDULA DE CIUDADANIA | C11: ='F2. COMP. LAB Y COM COMPOR'!C13:E13 -> 123,456,789 | F11: ='F2. COMP. LAB Y COM COMPOR'!F13:H13 -> PEREZ | I11: ='F2. COMP. LAB Y COM COMPOR'!I13:K13 ->  | L11: ='F2. COMP. LAB Y COM COMPOR'!L13:O13 -> PABLO | P11: ='F2. COMP. LAB Y COM COMPOR'!P13:S13 -> 
A12: Dependencia o área a la que pertenece el evaluado | I12: Denominación del empleo
A13: ='F2. COMP. LAB Y COM COMPOR'!A15:H15 -> Dirección de Talento Humano | I13: ='F2. COMP. LAB Y COM COMPOR'!I15:S15 -> Profesional Especializado
A14: Nivel jerárquico | F14: Código | H14: Grado | I14: ='F2. COMP. LAB Y COM COMPOR'!I16 -> Propósito del empleo: | N14: ='F2. COMP. LAB Y COM COMPOR'!J16 -> El que obra en el manual de funciones
A15: ='F2. COMP. LAB Y COM COMPOR'!A17:E17 -> PROFESIONAL | F15: ='F2. COMP. LAB Y COM COMPOR'!F17:G17 -> 2028 | H15: ='F2. COMP. LAB Y COM COMPOR'!H17 -> 19
A16: II. IDENTIFICACIÓN EVALUADOR. (Jefe inmediato)
A17: Tipo de documento | C17: Número de identificación | F17: Primer apellido | I17: Segundo apellido | L17: Primer nombre | P17: Otros nombres
A18: ='F2. COMP. LAB Y COM COMPOR'!A20:B20 -> CEDULA DE CIUDADANIA | C18: ='F2. COMP. LAB Y COM COMPOR'!C20:E20 -> 80,536,985 | F18: ='F2. COMP. LAB Y COM COMPOR'!F20:H20 -> ARDILA | I18: ='F2. COMP. LAB Y COM COMPOR'!I20:K20 ->  | L18: ='F2. COMP. LAB Y COM COMPOR'!L20:O20 -> FERNANDO | P18: ='F2. COMP. LAB Y COM COMPOR'!P20:S20 -> 
A19: Área o Dependencia a la que pertenece el evaluador | G19: Denominación del empleo | N19: Código | P19: Grado | R19: Nivel jerárquico
A20: ='F2. COMP. LAB Y COM COMPOR'!A22:F22 -> Dirección de Talento Humano | G20: ='F2. COMP. LAB Y COM COMPOR'!G22:M22 -> Director de Talento Humano | N20: ='F2. COMP. LAB Y COM COMPOR'!N22:O22 -> xxxx | P20: ='F2. COMP. LAB Y COM COMPOR'!P22:Q22 -> xxxx | R20: ='F2. COMP. LAB Y COM COMPOR'!R22:S22 -> DIRECTIVO
A21: III. IDENTIFICACIÓN EVALUADOR (Servidor público de Libre Nombramiento y Remoción en caso de constituir Comisión Evaluadora)
A22: Tipo de documento | C22: Número de identificación | F22: Primer apellido | I22: Segundo apellido | L22: Primer nombre | P22: Otros nombres
A23: ='F2. COMP. LAB Y COM COMPOR'!A26:B26 -> CEDULA DE CIUDADANIA | C23: =IF('F2. COMP. LAB Y COM COMPOR'!R24="NO","NO REQUERIDO",'F2. COMP. LAB Y COM COMPOR'!C26:E26) -> NO REQUERIDO | F23: =IF('F2. COMP. LAB Y COM COMPOR'!R24="NO","NO REQUERIDO",'F2. COMP. LAB Y COM COMPOR'!F26:H26) -> NO REQUERIDO | I23: =IF('F2. COMP. LAB Y COM COMPOR'!R24="NO","NO REQUERIDO",'F2. COMP. LAB Y COM COMPOR'!I26:K26) -> NO REQUERIDO | L23: =IF('F2. COMP. LAB Y COM COMPOR'!R24="NO","NO REQUERIDO",'F2. COMP. LAB Y COM COMPOR'!L26:O26) -> NO REQUERIDO | P23: =IF('F2. COMP. LAB Y COM COMPOR'!R24="NO","NO REQUERIDO",'F2. COMP. LAB Y COM COMPOR'!P26:S26) -> NO REQUERIDO
A24: Dependencia o área a la que pertenece el evaluador | G24: Denominación del empleo | N24: Código | P24: Grado | R24: Nivel jerárquico
A25: =IF('F2. COMP. LAB Y COM COMPOR'!R24="NO","NO REQUERIDO",'F2. COMP. LAB Y COM COMPOR'!A28:F28) -> NO REQUERIDO | G25: =IF('F2. COMP. LAB Y COM COMPOR'!R24="NO","NO REQUERIDO",'F2. COMP. LAB Y COM COMPOR'!G28:M28) -> NO REQUERIDO | N25: =IF('F2. COMP. LAB Y COM COMPOR'!R24="NO","NO REQUERIDO",'F2. COMP. LAB Y COM COMPOR'!N28:O28) -> NO REQUERIDO | P25: =IF('F2. COMP. LAB Y COM COMPOR'!R24="NO","NO REQUERIDO",'F2. COMP. LAB Y COM COMPOR'!P28:Q28) -> NO REQUERIDO | R25: =IF('F2. COMP. LAB Y COM COMPOR'!R24="NO","NO REQUERIDO",'F2. COMP. LAB Y COM COMPOR'!R28:S28) -> NO REQUERIDO
A26: IV. CALIFICACIÓN COMPETENCIAS COMPORTAMENTALES DEL EMPLEADO PÚBLICO.
A27: COMPETENCIA | C27: DEFINICIÓN | E27: CONDUCTAS ASOCIADAS | N27: PERÍODO ANUAL U ORDINARIO | Q27: REFERENCIA PARA UNA
N28: PRIMERA PARCIAL SEMESTRAL | O28: SEGUNDA PARCIAL SEMESTRAL | Q28: EVALUACIÓN POR PERIODO INFERIOR A UN AÑO | S28: EVALUACIÓN EXTRAORDINARIA
A31: ='F2. COMP. LAB Y COM COMPOR'!B51 -> Aprendizaje Continuo | C31: ='F2. COMP. LAB Y COM COMPOR'!E51 -> Adquirir y desarrollar permanentemente conocimientos, destrezas y habilidades, con el fin de mantener altos estándares de eficacia organizacional. | E31: ='F2. COMP. LAB Y COM COMPOR'!L51 -> ▪Aprende de la experiencia de otros y de la propia. ▪Se adapta y aplica nuevas tecnologías que se implanten en la organización. ▪Aplica los conocimientos adquiridos a los desafíos que se presentan en el desarrollo del trabajo. ▪Investiga, indaga y profundiza en los temas de su entorno área de desempeño. ▪Reconoce las propias limitaciones y las necesidades de mejorar su preparación. ▪Asimila nueva información y la aplica correctamente. | Q31: CALIFICAR EN FORMATO F10. EVALUACIÓN INFERIOR A UN AÑO TITULO V. COMPETENCIAS COMPORTAMENTALES. | S31: CALIFICAR EN FORMATO F9. EVALUACIÓN EXTRAORDINARIA TITULO V. COMPETENCIAS COMPORTAMENTALES. | U31: BASICO
N32: =IF(A31<>0,IFERROR(VLOOKUP(N31,Hoja4!$A$254:$B$258,2,FALSE),""),"DEFINA COMPETENCIA") ->  | O32: =IF(A31<>0,(IFERROR(VLOOKUP(O31,Hoja4!$A$254:$B$258,2,FALSE),"")),"DEFINA COMPETENCIA") ->  | U32: INTERMEDIO
A33: ='F2. COMP. LAB Y COM COMPOR'!B53 -> Orientación al usuario y al ciudadano | C33: ='F2. COMP. LAB Y COM COMPOR'!E53 -> Dirigir las decisiones y acciones a la satisfacción de las necesidades e intereses de los usuarios internos y externos, de conformidad con las responsabilidades públicas asignadas a la entidad. | E33: ='F2. COMP. LAB Y COM COMPOR'!L53 -> ▪ Atiende y valora las necesidades y peticiones de los usuarios y de ciudadanos en general. ▪Considera las necesidades de los usuarios al diseñar proyectos o servicios. ▪Da respuesta oportuna a las necesidades de los usuarios de conformidad con el servicio que ofrece la entidad. ▪Establece diferentes canales de comunicación con el usuario para conocer sus necesidades y propuestas y responde a las mismas. ▪Reconoce la interdependencia entre su trabajo y el de otros. | U33: AVANZADO
N34: =IF(A33<>0,IFERROR(VLOOKUP(N33,Hoja4!$A$254:$B$258,2,FALSE),""),"DEFINA COMPETENCIA") ->  | O34: =IF(A33<>0,(IFERROR(VLOOKUP(O33,Hoja4!$A$254:$B$258,2,FALSE),"")),"DEFINA COMPETENCIA") ->  | U34: SUPERIOR
A35: ='F2. COMP. LAB Y COM COMPOR'!B55 -> Trabajo en equipo y Colaboración | C35: ='F2. COMP. LAB Y COM COMPOR'!E55 -> Trabajar con otros de forma conjunta y de manera participativa, integrando esfuerzos para la consecución de metas institucionales comunes. | E35: ='F2. COMP. LAB Y COM COMPOR'!L55 -> ▪Coopera en distintas situaciones y comparte información. ▪Aporta sugerencias, ideas y opiniones. ▪Expresa expectativas positivas del equipo o de los miembros del mismo. ▪Planifica las propias acciones teniendo en cuenta la repercusión de las mismas para la consecución de los objetivos grupales. ▪Establece diálogo directo con los miembros del equipo que permita compartir información e ideas en condiciones de respeto y cordialidad. ▪Respeta criterios dispares y distintas opiniones del equipo.
N36: =IF(A35<>0,IFERROR(VLOOKUP(N35,Hoja4!$A$254:$B$258,2,FALSE),""),"DEFINA COMPETENCIA") ->  | O36: =IF(A35<>0,(IFERROR(VLOOKUP(O35,Hoja4!$A$254:$B$258,2,FALSE),"")),"DEFINA COMPETENCIA") -> 
A37: ='F2. COMP. LAB Y COM COMPOR'!B57 -> Liderazgo de Grupos de Trabajo (personal a cargo) | C37: ='F2. COMP. LAB Y COM COMPOR'!E57 -> Asumir el rol de orientar y guía de un grupo o equipo de trabajo, utilizando la autoridad con arreglo a las normas y promoviendo la Efectividad en la consecución de objetivos y metas institucionales. | E37: ='F2. COMP. LAB Y COM COMPOR'!L57 -> ▪Establece los objetivos del grupo de forma clara y equilibrada. ▪Asegura que los integrantes del grupo compartan planes, programas y proyectos institucionales. ▪Orienta y coordina el trabajo del grupo para la identificación de planes y actividades a seguir. ▪Facilita la colaboración con otras áreas y dependencias. ▪Escucha y tiene en cuenta las opiniones de los integrantes del grupo. ▪Gestiona los recursos necesarios para poder cumplir con las metas propuestas. ▪Garantiza los recursos necesarios para poder cumplir con las metas propuestas. ▪Garantiza que el grupo tenga la información necesaria. ▪Explica las razones de las decisiones.
N38: =IF(A37<>0,IFERROR(VLOOKUP(N37,Hoja4!$A$254:$B$258,2,FALSE),""),"DEFINA COMPETENCIA") ->  | O38: =IF(A37<>0,(IFERROR(VLOOKUP(O37,Hoja4!$A$254:$B$258,2,FALSE),"")),"DEFINA COMPETENCIA") ->  | U38: 4
A39: CALIFICACIÓN EVALUACIÓN DE LAS COMPETENCIAS COMPORTAMENTALES. | N39: CALIFICACIÓN PRIMERA PARCIAL SEMESTRAL | O39: CALIFICACIÓN SEGUNDA PARCIAL SEMESTRAL
N41: =IF(OR(N32="",N34="",N36="",N38=""),"CALIFIQUE 4 COMPETENCIAS",(SUM(N32,N34,N36,N38,)/4)) -> CALIFIQUE 4 COMPETENCIAS | O41: =IF(OR(O32="",O34="",O36="",O38=""),"CALIFIQUE 4 COMPETENCIAS",(SUM(O32,O34,O36,O38,)/4)) -> CALIFIQUE 4 COMPETENCIAS
A43: CALIFICACIÓN DEFINITIVA DE LAS COMPETENCIAS COMPORTAMENTALES PARA EL PERÍODO ANUAL U ORDINARIO | N43: =IF(OR(N41="DEFINA COMPETENCIA",O41="DEFINA COMPETENCIA"),"DEFINA CUATRO (04) COMPETENCIAS",(SUM(N41:O42)/2)) -> 0.00
A44: V. (*) ESCALA CUALITATIVA Y CUANTITATIVA DE LOS NIVELES DE DESARROLLO DE LAS COMPETENCIAS COMPORTAMENTALES.
A45: NIVELES DE DESARROLLO | D45: DESCRIPCIÓN CUALITATIVA | N45: RESULTADOS CUANTITATIVOS
N46: PERÍODO ANUAL U ORDINARIO, (PARCIALES SEMESTRALES Y PARCIAL EVENTUAL) | Q46: EVALUACIÓN EXTRAORDINARIA-EVALUACIÓN EN PERIODO DE PRUEBA
A47: BAJO | D47: El nivel de desarrollo de la competencia no se presenta con un impacto positivo que permita la obtención de las metas y logros esperados. | N47: 4 | Q47: 6
A48: ACEPTABLE | D48: El nivel de desarrollo de la competencia se presenta de manera intermitente, con un mediano impacto en la obtención de metas y logros esperados. | N48: 6 | Q48: 9
A49: ALTO | D49: El nivel de desarrollo de la competencia se presenta de manera permanente e impacta significativamente de manera positiva la obtención de metas y logros esperados. | N49: 8 | Q49: 12
A50: MUY ALTO | D50: El nivel de desarrollo de la competencia se presenta de manera permanente, impactando significativamente la obtención de metas y logros esperados y agrega valor a los procesos generando un alto nivel de confianza. | N50: 10 | Q50: 15

Sheet F5. EVA. ÁREAS O DEPENDENCIAS.
F1: COMISIÓN NACIONAL DEL SERVICIO CIVIL | L1: INSERTE EL LOGOTIPO DE SU ENTIDAD
F3: FORMATO 5. EVALUACIÓN DE GESTIÓN POR ÁREAS O DEPENDENCIAS
F5: PROCESO: EVALUACIÓN DEL DESEMPEÑO LABORAL | I5: CÓDIGO: F-ED-006
I6: FECHA EMISIÓN | K6: 2016-12-27
I7: Página | K7: 1 de 1
I8: Versión | K8: 2.0
B10: PERÍODO DE VIGENCIA | F10: DÍA | G10: MES | H10: AÑO | I10: al | K10: DÍA | L10: MES | M10: AÑO
B12: Resultados de la evaluación por áreas o dependencias
B13: N° | C13: ÁREA O DEPENDENCIA. | H13: CALIFICACIÓN DEL ÁREA O DEPENDENCIA | J13: OBSERVACIONES
B16: 1
B17: 2
B18: 3
B19: 4
B20: 5
B21: 6
B22: 7
B23: 8
B24: 9
B25: 10
B26: 11
B27: 12
B28: 13
B29: 14
B30: 15
B31: 16
B32: 17
B33: 18
B34: Observaciones generales:
C36: Nota: Tener en cuenta los siguientes aspectos para efectuar la calificación:
C37: i) La planeación institucional enmarcada en la visión, misión y objetivos del organismo;
C38: ii) Los objetivos institucionales por dependencia y sus compromisos relacionados y;
C39: iii) Los resultados de la ejecución por dependencias de acuerdo con lo programado en la planeación institucional.
B40: En el evento de detectar limitaciones de orden presupuestal o administrativo, se deben describir los aspectos más relevantes que hayan afectado la ejecución de los planes institucionales en cada dependencia.

Sheet F6. REPOR CLF PRD ANUAL U ORD
D2: COMISIÓN NACIONAL DEL SERVICIO CIVIL | Q2: INSERTE EL LOGOTIPO DE SU ENTIDAD
D4: FORMATO 6. REPORTE DE CALIFICACIÓN PERÍODO ANUAL U ORDINARIO
D6: PROCESO: EVALUACIÓN DEL DESEMPEÑO LABORAL | J6: CÓDIGO: | M6: F-ED-007 | O6: Página: 1 de 1
J7: FECHA EMISIÓN | O7: 2016-12-27
J9: Versión | O9: 2.0
A10: I. IDENTIFICACIÓN DEL EVALUADO
A11: Tipo de Documento | C11: Número de identificación | F11: Primer apellido | I11: Segundo apellido | L11: Primer nombre | P11: Otros nombres
A12: ='F2. COMP. LAB Y COM COMPOR'!A13:B13 -> CEDULA DE CIUDADANIA | C12: ='F2. COMP. LAB Y COM COMPOR'!C13:E13 -> 123,456,789 | F12: ='F2. COMP. LAB Y COM COMPOR'!F13:H13 -> PEREZ | I12: ='F2. COMP. LAB Y COM COMPOR'!I13:K13 ->  | L12: ='F2. COMP. LAB Y COM COMPOR'!L13:O13 -> PABLO | P12: ='F2. COMP. LAB Y COM COMPOR'!P13:S13 -> 
A13: Dependencia o área a la que pertenece el evaluado | I13: Denominación del empleo
A14: ='F2. COMP. LAB Y COM COMPOR'!A15:H15 -> Dirección de Talento Humano | I14: ='F2. COMP. LAB Y COM COMPOR'!I15:S15 -> Profesional Especializado
A15: Nivel jerárquico | F15: Código | H15: Grado | I15: ='F2. COMP. LAB Y COM COMPOR'!I16 -> Propósito del empleo: | L15: ='F2. COMP. LAB Y COM COMPOR'!J16 -> El que obra en el manual de funciones
A16: ='F2. COMP. LAB Y COM COMPOR'!A17:E17 -> PROFESIONAL | F16: ='F2. COMP. LAB Y COM COMPOR'!F17:G17 -> 2028 | H16: ='F2. COMP. LAB Y COM COMPOR'!H17 -> 19
A17: II. IDENTIFICACIÓN EVALUADOR. (Jefe inmediato)
A18: Tipo de documento | C18: Número de identificación | F18: Primer apellido | I18: Segundo apellido | L18: Primer nombre | P18: Otros nombres
A19: ='F2. COMP. LAB Y COM COMPOR'!A20:B20 -> CEDULA DE CIUDADANIA | C19: ='F2. COMP. LAB Y COM COMPOR'!C20:E20 -> 80,536,985 | F19: ='F2. COMP. LAB Y COM COMPOR'!F20:H20 -> ARDILA | I19: ='F2. COMP. LAB Y COM COMPOR'!I20:K20 ->  | L19: ='F2. COMP. LAB Y COM COMPOR'!L20:O20 -> FERNANDO | P19: ='F2. COMP. LAB Y COM COMPOR'!P20:S20 -> 
A20: Área o Dependencia a la que pertenece el evaluador | G20: Denominación del empleo | N20: Código | P20: Grado | R20: Nivel jerárquico
A21: ='F2. COMP. LAB Y COM COMPOR'!A22:F22 -> Dirección de Talento Humano | G21: ='F2. COMP. LAB Y COM COMPOR'!G22:M22 -> Director de Talento Humano | N21: ='F2. COMP. LAB Y COM COMPOR'!N22:O22 -> xxxx | P21: ='F2. COMP. LAB Y COM COMPOR'!P22:Q22 -> xxxx | R21: ='F2. COMP. LAB Y COM COMPOR'!R22:S22 -> DIRECTIVO
A22: III. IDENTIFICACIÓN EVALUADOR (Servidor público de Libre Nombramiento y Remoción en caso de constituir Comisión Evaluadora)
A23: Tipo de documento | C23: Número de identificación | F23: Primer apellido | I23: Segundo apellido | L23: Primer nombre | P23: Otros nombres
A24: ='F2. COMP. LAB Y COM COMPOR'!$A$26:$B$26 -> CEDULA DE CIUDADANIA | C24: =IF('F2. COMP. LAB Y COM COMPOR'!R24="NO","NO REQUERIDO",'F2. COMP. LAB Y COM COMPOR'!$C$26:$E$26) -> NO REQUERIDO | F24: =IF('F2. COMP. LAB Y COM COMPOR'!R24="NO","NO REQUERIDO",'F2. COMP. LAB Y COM COMPOR'!$F$26:$H$26) -> NO REQUERIDO | I24: =IF('F2. COMP. LAB Y COM COMPOR'!R24="NO","NO REQUERIDO",'F2. COMP. LAB Y COM COMPOR'!$I$26:$K$26) -> NO REQUERIDO | L24: =IF('F2. COMP. LAB Y COM COMPOR'!R24="NO","NO REQUERIDO",'F2. COMP. LAB Y COM COMPOR'!$L$26:$O$26) -> NO REQUERIDO | P24: =IF('F2. COMP. LAB Y COM COMPOR'!R24="NO","NO REQUERIDO",'F2. COMP. LAB Y COM COMPOR'!$P$26:$S$26) -> NO REQUERIDO
A25: Dependencia o área a la que pertenece el evaluador | G25: Denominación del empleo | N25: Código | P25: Grado | R25: Nivel jerárquico
A26: =IF('F2. COMP. LAB Y COM COMPOR'!R24="NO","NO REQUERIDO",'F2. COMP. LAB Y COM COMPOR'!$A$28:$F$28) -> NO REQUERIDO | G26: =IF('F2. COMP. LAB Y COM COMPOR'!R24="NO","NO REQUERIDO",'F2. COMP. LAB Y COM COMPOR'!$G$28:$M$28) -> NO REQUERIDO | N26: =IF('F2. COMP. LAB Y COM COMPOR'!R24="NO","NO REQUERIDO",'F2. COMP. LAB Y COM COMPOR'!$N$28:$O$28) -> NO REQUERIDO | P26: =IF('F2. COMP. LAB Y COM COMPOR'!R24="NO","NO REQUERIDO",'F2. COMP. LAB Y COM COMPOR'!$P$28:$Q$28) -> NO REQUERIDO | R26: =IF('F2. COMP. LAB Y COM COMPOR'!R24="NO","NO REQUERIDO",'F2. COMP. LAB Y COM COMPOR'!$R$28:$S$28) -> NO REQUERIDO
A27: IV. CONSOLIDACIÓN DE LAS EVALUACIONES
A28: EVALUACIÓN INDIVIDUAL DEL PRIMER SEMESTRE | F28: EVALUACIÓN INDIVIDUAL DEL SEGUNDO SEMESTRE | L28: EVALUACIÓN DE GESTIÓN POR ÁREAS O DEPENDENCIAS (/10) | N28: CALIFICACIÓN DEFINITIVA
A29: FECHA DE COMUNICACIÓN | C29: CALIFICACIÓN PRIMER SEMESTRE | F29: CALIFICACIÓN SEGUNDO SEMESTRE | N29: FECHA DE NOTIFICACIÓN | P29: CALIFICACIÓN DEFINITIVA | R29: NIVEL
C31: Tiempo efectivamente laborado | E31: =CONCATENATE(IF('F1. INF. GENERAL'!L45=0,0,IF('F1. INF. GENERAL'!O47=0,'F1. INF. GENERAL'!L44,'F8. EVA. EVENTUAL (Semestre 1)'!L46))," días") -> 180 días | F31: Tiempo efectivamente laborado | K31: =CONCATENATE(IF('F1. INF. GENERAL'!P45=0,0,IF('F1. INF. GENERAL'!S47=0,'F1. INF. GENERAL'!P44,'F8. EVA. EVENTUAL (Semestre 2)'!L45))," días") -> 180 días | L31: =+'F1. INF. GENERAL'!P53 -> 0 | P31: ='F1. INF. GENERAL'!L58 -> 31.63 | R31: ='F1. INF. GENERAL'!P58 -> NO APLICA
C32: Compromisos laborales (sobre 100) | E32: =IF('F1. INF. GENERAL'!O43="",'F1. INF. GENERAL'!O47,'F1. INF. GENERAL'!O43) -> 70.01 | F32: Compromisos laborales (sobre 100) | K32: =IF('F1. INF. GENERAL'!S43="",'F1. INF. GENERAL'!S47,'F1. INF. GENERAL'!S43) -> 0.00
C33: Competencias comportamentales(/10) | E33: =IF('F1. INF. GENERAL'!F58=0,'F1. INF. GENERAL'!F59,'F1. INF. GENERAL'!F58) -> CALIFIQUE 4 COMPETENCIAS | F33: Competencias comportamentales(/10) | K33: =IF('F1. INF. GENERAL'!H58=0,'F1. INF. GENERAL'!H59,'F1. INF. GENERAL'!H58) -> CALIFIQUE 4 COMPETENCIAS
A34: Firma del Evaluado | G34: Firma del Evaluado
A36: Firma del Jefe Inmediato | G36: Firma del Jefe Inmediato
A38: Firma del Evaluador en Comisión evaluadora | C38: =IF(C24="NO REQUERIDO","NO APLICA","") -> NO APLICA | G38: Firma del Evaluador en Comisión evaluadora | L38: =IF(C24="NO REQUERIDO","NO APLICA","") -> NO APLICA
A40: INTERPONE RECURSOS
A41: SI
A43: V. DECISIÓN DE RECURSOS
A44: RECURSO DE REPOSICIÓN | J44: RECURSO DE APELACIÓN
A45: DECISIÓN | G45: FECHA | J45: DECISIÓN | Q45: FECHA
A47: Nombre del Evaluado: | C47: =IF(D45="","",UPPER(CONCATENATE(L12," ",P12," ",F12," ",I12))) ->  | J47: Nombre del Evaluado: | M47: =IF(N45="","",UPPER(CONCATENATE(L12," ",P12," ",F12," ",I12))) -> 
A49: Firma | J49: Firma
A52: Nombre del Notificador: | J52: Nombre del Notificador:
A54: Firma | J54: Firma
A57: MOTIVACIÓN (podrá relacionar anexos): | J57: MOTIVACIÓN (podrá relacionar anexos):
A59: VI. CALIFICACIÓN DEFINITIVA
A60: CALIFICACIÓN DEFINITIVA EN FIRME | E60: FIRMA Y NÚMERO DE CÉDULA DEL NOTIFICADO | L60: FIRMA Y NÚMERO DE CÉDULA DEL NOTIFICADOR
B66: SI | H66: CUMPLE
B67: NO | H67: NO CUMPLE | J67: Contador de Cumplimiento
H68: NO APLICA | J68: FACTORES DEL NIVEL SOBRESALIENTE | Q68: CUMPLIMIENTO
A69: Cedula de ciudadanía | J69: Evaluación de la Gestión por Dependencias | Q69: =IF(#REF!="Cumple",1,0) -> 
A70: Cedula de extranjería | J70: Por calidad y oportunidad | Q70: =IF(#REF!="Cumple",1,0) -> 
J71: Por aportes, propuestas o iniciativas adicionales | Q71: =IF(#REF!="Cumple",1,0) -> 
J72: Por iniciativas tendientes a acciones proactivas en las actividades que cumplió | Q72: =IF(#REF!="Cumple",1,0) -> 
J74: Por participación y aprovechamiento de capacitación relacionada con las actividades propias del empleo y que genere un valor agregado para la entidad o la dependencia | Q74: =IF(#REF!="Cumple",1,0) -> 
J76: Por participación en grupos o en actividades que requieren de disposición voluntaria | Q76: =IF(#REF!="Cumple",1,0) -> 
Q78: =IF(#REF!="Cumple",1,0) -> 
Q80: =IF(#REF!="Cumple",1,0) -> 
Q84: =SUM(Q69:R81) -> 
Q87: CRITERIO DE ORIENTACIÓN
Q88: CUMPLE
Q89: NO CUMPLE

Sheet F7. PLAN DE MEJORAMIENTO
D2: COMISIÓN NACIONAL DEL SERVICIO CIVIL | R2: INSERTE EL LOGOTIPO DE SU ENTIDAD
D5: FORMATO 7. PLAN DE MEJORAMIENTO
D7: PROCESO: EVALUACIÓN DEL DESEMPEÑO LABORAL | I7: CÓDIGO: | L7: F-ED-008 | N7: FECHA EMISIÓN: | P7: 2016-12-27
I8: Página: 1 de 1. | N8: Versión: 2.0
A9: I. IDENTIFICACIÓN DEL EVALUADO
A10: Tipo de Documento | C10: Número de identificación | F10: Primer apellido | I10: Segundo apellido | L10: Primer nombre | P10: Otros nombres
A11: ='F2. COMP. LAB Y COM COMPOR'!A13:B13 -> CEDULA DE CIUDADANIA | C11: ='F2. COMP. LAB Y COM COMPOR'!C13:E13 -> 123,456,789 | F11: ='F2. COMP. LAB Y COM COMPOR'!F13:H13 -> PEREZ | I11: ='F2. COMP. LAB Y COM COMPOR'!I13:K13 ->  | L11: ='F2. COMP. LAB Y COM COMPOR'!L13:O13 -> PABLO | P11: ='F2. COMP. LAB Y COM COMPOR'!P13:S13 -> 
A12: Dependencia o área a la que pertenece el evaluado | I12: Denominación del empleo
A13: ='F2. COMP. LAB Y COM COMPOR'!A15:H15 -> Dirección de Talento Humano | I13: ='F2. COMP. LAB Y COM COMPOR'!I15:S15 -> Profesional Especializado
A14: Nivel jerárquico | F14: Código | H14: Grado | I14: Propósito del empleo | K14: ='F2. COMP. LAB Y COM COMPOR'!J16 -> El que obra en el manual de funciones
A15: ='F2. COMP. LAB Y COM COMPOR'!A17:E17 -> PROFESIONAL | F15: ='F2. COMP. LAB Y COM COMPOR'!F17:G17 -> 2028 | H15: ='F2. COMP. LAB Y COM COMPOR'!H17 -> 19
A16: II. IDENTIFICACIÓN EVALUADOR. (Jefe inmediato)
A17: Tipo de documento | C17: Número de identificación | F17: Primer apellido | I17: Segundo apellido | L17: Primer nombre | P17: Otros nombres
A18: ='F2. COMP. LAB Y COM COMPOR'!A20:B20 -> CEDULA DE CIUDADANIA | C18: ='F2. COMP. LAB Y COM COMPOR'!C20:E20 -> 80,536,985 | F18: ='F2. COMP. LAB Y COM COMPOR'!F20:H20 -> ARDILA | I18: ='F2. COMP. LAB Y COM COMPOR'!I20:K20 ->  | L18: ='F2. COMP. LAB Y COM COMPOR'!L20:O20 -> FERNANDO | P18: ='F2. COMP. LAB Y COM COMPOR'!P20:S20 -> 
A19: Área o Dependencia a la que pertenece el evaluador | G19: Denominación del empleo | N19: Código | P19: Grado | R19: Nivel jerárquico
A20: ='F2. COMP. LAB Y COM COMPOR'!A22:F22 -> Dirección de Talento Humano | G20: ='F2. COMP. LAB Y COM COMPOR'!G22:M22 -> Director de Talento Humano | N20: ='F2. COMP. LAB Y COM COMPOR'!N22:O22 -> xxxx | P20: ='F2. COMP. LAB Y COM COMPOR'!P22:Q22 -> xxxx | R20: ='F2. COMP. LAB Y COM COMPOR'!R22:S22 -> DIRECTIVO
A21: III. IDENTIFICACIÓN EVALUADOR (Servidor público de Libre Nombramiento y Remoción en caso de constituir Comisión Evaluadora)
A22: Tipo de documento | C22: Número de identificación | F22: Primer apellido | I22: Segundo apellido | L22: Primer nombre | P22: Otros nombres
A23: ='F2. COMP. LAB Y COM COMPOR'!A26:B26 -> CEDULA DE CIUDADANIA | C23: =IF('F2. COMP. LAB Y COM COMPOR'!R24="NO","NO REQUERIDO",'F2. COMP. LAB Y COM COMPOR'!C26:E26) -> NO REQUERIDO | F23: =IF('F2. COMP. LAB Y COM COMPOR'!R24="NO","NO REQUERIDO",'F2. COMP. LAB Y COM COMPOR'!F26:H26) -> NO REQUERIDO | I23: =IF('F2. COMP. LAB Y COM COMPOR'!R24="NO","NO REQUERIDO",'F2. COMP. LAB Y COM COMPOR'!I26:K26) -> NO REQUERIDO | L23: =IF('F2. COMP. LAB Y COM COMPOR'!R24="NO","NO REQUERIDO",'F2. COMP. LAB Y COM COMPOR'!L26:O26) -> NO REQUERIDO | P23: =IF('F2. COMP. LAB Y COM COMPOR'!R24="NO","NO REQUERIDO",'F2. COMP. LAB Y COM COMPOR'!P26:S26) -> NO REQUERIDO
A24: Dependencia o área a la que pertenece el evaluador | G24: Denominación del empleo | N24: Código | P24: Grado | R24: Nivel jerárquico
A25: =IF('F2. COMP. LAB Y COM COMPOR'!R24="NO","NO REQUERIDO",'F2. COMP. LAB Y COM COMPOR'!A28:F28) -> NO REQUERIDO | G25: =IF('F2. COMP. LAB Y COM COMPOR'!R24="NO","NO REQUERIDO",'F2. COMP. LAB Y COM COMPOR'!G28:M28) -> NO REQUERIDO | N25: =IF('F2. COMP. LAB Y COM COMPOR'!R24="NO","NO REQUERIDO",'F2. COMP. LAB Y COM COMPOR'!N28:O28) -> NO REQUERIDO | P25: =IF('F2. COMP. LAB Y COM COMPOR'!R24="NO","NO REQUERIDO",'F2. COMP. LAB Y COM COMPOR'!P28:Q28) -> NO REQUERIDO | R25: =IF('F2. COMP. LAB Y COM COMPOR'!R24="NO","NO REQUERIDO",'F2. COMP. LAB Y COM COMPOR'!R28:S28) -> NO REQUERIDO
A26: IV. PLAN DE MEJORAMIENTO INDIVIDUAL DEL EMPLEADO PÚBLICO
A27: Componente de evaluación | D27: Descripción | G27: Aspectos a corregir | M27: Acción de mejoramiento | Q27: Motivo | R27: Observaciones
D29: =IFERROR(VLOOKUP(A29,Hoja4!A467:B482,2,FALSE),0) -> 0
D31: =IFERROR(VLOOKUP(A31,Hoja4!A469:B484,2,FALSE),0) -> 0
D33: =IFERROR(VLOOKUP(A33,Hoja4!A471:B486,2,FALSE),0) -> 0
D35: =IFERROR(VLOOKUP(A35,Hoja4!A473:B488,2,FALSE),0) -> 0
D37: =IFERROR(VLOOKUP(A37,Hoja4!A475:B490,2,FALSE),0) -> 0
D39: =IFERROR(VLOOKUP(A39,Hoja4!A477:B492,2,FALSE),0) -> 0
D41: =IFERROR(VLOOKUP(A41,Hoja4!A479:B494,2,FALSE),0) -> 0
D43: =IFERROR(VLOOKUP(A43,Hoja4!A481:B496,2,FALSE),0) -> 0
D45: =IFERROR(VLOOKUP(A45,Hoja4!A483:B498,2,FALSE),0) -> 0
D47: =IFERROR(VLOOKUP(A47,Hoja4!A485:B500,2,FALSE),0) -> 0
D49: =IFERROR(VLOOKUP(A49,Hoja4!A487:B502,2,FALSE),0) -> 0
D51: =IFERROR(VLOOKUP(A51,Hoja4!A489:B504,2,FALSE),0) -> 8
D53: =IFERROR(VLOOKUP(A53,Hoja4!A491:B506,2,FALSE),0) -> 8
D55: =IFERROR(VLOOKUP(A55,Hoja4!A493:B508,2,FALSE),0) -> 8
D57: =IFERROR(VLOOKUP(A57,Hoja4!A495:B510,2,FALSE),0) -> 8
D59: =IFERROR(VLOOKUP(A59,Hoja4!A497:B512,2,FALSE),0) -> 8
A61: V. FORMALIZACIÒN DEL PLAN DE MEJORAMIENTO
A62: EVALUADO | C62: NOMBRE, FIRMA Y NÚMERO DE CÉDULA. | H62: EVALUADOR | K62: NOMBRE, FIRMA Y NÚMERO DE CÉDULA. | R62: FECHA DE DILIGENCIAMIENTO
E64: =UPPER(CONCATENATE(L11," ",P11," ",F11," ",I11)) -> PABLO PEREZ | N64: =UPPER(CONCATENATE(L18," ",P18," ",F18," ",I18)) -> FERNANDO ARDILA
E65: =C11 -> 123,456,789 | N65: =C18 -> 80,536,985

Sheet F8. EVA. EVENTUAL (Semestre 1)
E1: COMISIÓN NACIONAL DEL SERVICIO CIVIL | P1: INSERTE EL LOGOTIPO DE SU ENTIDAD
E3: FORMATO 8. EVALUACIÓN PARCIAL EVENTUAL
E5: PROCESO: EVALUACIÓN DEL DESEMPEÑO LABORAL | H5: Código: | J5: F-ED-009 | L5: Página | N5: 1 de 1
H6: Fecha de emisión: | J6: 2016-12-27 | L6: Versión: | N6: 2.0
A8: PERÍODO DE EVALUACIÓN | E8: DÍA | F8: MES | G8: AÑO | H8: al | J8: DÍA | K8: MES | L8: AÑO | M8: FECHA DE CALIFICACIÓN | Q8: DÍA | R8: MES | S8: AÑO
E9: 1 | F9: 2 | G9: 2017 | J9: 15 | K9: 5 | L9: 2017 | Q9: 15 | R9: 5 | S9: 2017
A10: I. IDENTIFICACIÓN DEL EVALUADO
A11: Tipo de Documento | C11: Número de identificación | F11: Primer apellido | I11: Segundo apellido | L11: Primer nombre | P11: Otros nombres
A12: ='F2. COMP. LAB Y COM COMPOR'!A13:B13 -> CEDULA DE CIUDADANIA | C12: ='F2. COMP. LAB Y COM COMPOR'!C13:E13 -> 123,456,789 | F12: ='F2. COMP. LAB Y COM COMPOR'!F13:H13 -> PEREZ | I12: ='F2. COMP. LAB Y COM COMPOR'!I13:K13 ->  | L12: ='F2. COMP. LAB Y COM COMPOR'!L13:O13 -> PABLO | P12: ='F2. COMP. LAB Y COM COMPOR'!P13:S13 -> 
A13: Dependencia o área a la que pertenece el evaluado | I13: Denominación del empleo
A14: ='F2. COMP. LAB Y COM COMPOR'!A15:H15 -> Dirección de Talento Humano | I14: ='F2. COMP. LAB Y COM COMPOR'!I15:S15 -> Profesional Especializado
A15: Nivel jerárquico | F15: Código | H15: Grado | I15: ='F2. COMP. LAB Y COM COMPOR'!I16 -> Propósito del empleo: | K15: ='F2. COMP. LAB Y COM COMPOR'!J16 -> El que obra en el manual de funciones
A16: ='F2. COMP. LAB Y COM COMPOR'!A17:E17 -> PROFESIONAL | F16: ='F2. COMP. LAB Y COM COMPOR'!F17:G17 -> 2028 | H16: ='F2. COMP. LAB Y COM COMPOR'!H17 -> 19
A17: II. IDENTIFICACIÓN EVALUADOR. (Jefe inmediato)
A18: Tipo de documento | C18: Número de identificación | F18: Primer apellido | I18: Segundo apellido | L18: Primer nombre | P18: Otros nombres
A19: ='F2. COMP. LAB Y COM COMPOR'!A20:B20 -> CEDULA DE CIUDADANIA | C19: ='F2. COMP. LAB Y COM COMPOR'!C20:E20 -> 80,536,985 | F19: ='F2. COMP. LAB Y COM COMPOR'!F20:H20 -> ARDILA | I19: ='F2. COMP. LAB Y COM COMPOR'!I20:K20 ->  | L19: ='F2. COMP. LAB Y COM COMPOR'!L20:O20 -> FERNANDO | P19: ='F2. COMP. LAB Y COM COMPOR'!P20:S20 -> 
A20: Área o Dependencia a la que pertenece el evaluador | G20: Denominación del empleo | N20: Código | P20: Grado | R20: Nivel jerárquico
A21: ='F2. COMP. LAB Y COM COMPOR'!A22:F22 -> Dirección de Talento Humano | G21: ='F2. COMP. LAB Y COM COMPOR'!G22:M22 -> Director de Talento Humano | N21: ='F2. COMP. LAB Y COM COMPOR'!N22:O22 -> xxxx | P21: ='F2. COMP. LAB Y COM COMPOR'!P22:Q22 -> xxxx | R21: ='F2. COMP. LAB Y COM COMPOR'!R22:S22 -> DIRECTIVO
A22: III. IDENTIFICACIÓN EVALUADOR (Servidor público de Libre Nombramiento y Remoción en caso de constituir Comisión Evaluadora)
A23: Tipo de documento | C23: Número de identificación | F23: Primer apellido | I23: Segundo apellido | L23: Primer nombre | P23: Otros nombres
A24: ='F2. COMP. LAB Y COM COMPOR'!A26:B26 -> CEDULA DE CIUDADANIA | C24: =IF('F2. COMP. LAB Y COM COMPOR'!R24="NO","NO REQUERIDO",'F2. COMP. LAB Y COM COMPOR'!C26:E26) -> NO REQUERIDO | F24: =IF('F2. COMP. LAB Y COM COMPOR'!R24="NO","NO REQUERIDO",'F2. COMP. LAB Y COM COMPOR'!F26:H26) -> NO REQUERIDO | I24: =IF('F2. COMP. LAB Y COM COMPOR'!R24="NO","NO REQUERIDO",'F2. COMP. LAB Y COM COMPOR'!I26:K26) -> NO REQUERIDO | L24: =IF('F2. COMP. LAB Y COM COMPOR'!R24="NO","NO REQUERIDO",'F2. COMP. LAB Y COM COMPOR'!L26:O26) -> NO REQUERIDO | P24: =IF('F2. COMP. LAB Y COM COMPOR'!R24="NO","NO REQUERIDO",'F2. COMP. LAB Y COM COMPOR'!P26:S26) -> NO REQUERIDO
A25: Dependencia o área a la que pertenece el evaluador | G25: Denominación del empleo | N25: Código | P25: Grado | R25: Nivel jerárquico
A26: =IF('F2. COMP. LAB Y COM COMPOR'!R24="NO","NO REQUERIDO",'F2. COMP. LAB Y COM COMPOR'!A28:F28) -> NO REQUERIDO | G26: =IF('F2. COMP. LAB Y COM COMPOR'!R24="NO","NO REQUERIDO",'F2. COMP. LAB Y COM COMPOR'!G28:M28) -> NO REQUERIDO | N26: =IF('F2. COMP. LAB Y COM COMPOR'!R24="NO","NO REQUERIDO",'F2. COMP. LAB Y COM COMPOR'!N28:O28) -> NO REQUERIDO | P26: =IF('F2. COMP. LAB Y COM COMPOR'!R24="NO","NO REQUERIDO",'F2. COMP. LAB Y COM COMPOR'!P28:Q28) -> NO REQUERIDO | R26: =IF('F2. COMP. LAB Y COM COMPOR'!R24="NO","NO REQUERIDO",'F2. COMP. LAB Y COM COMPOR'!R28:S28) -> NO REQUERIDO
A27: IV. COMPROMISOS LABORALES
A28: Metas de la Dependencia a las cuales contribuye el empleo | E28: Compromisos Laborales. | K28: Peso porcentual del compromiso | M28: Calificación Eventuales
M30: No. calificación | N30: 1ª | O30: 2ª | P30: 3ª | Q30: 4ª | R30: 5ª | S30: Total Semestre
M32: Causal | N32: Cambio de evaluador | O32: Lapso entre la última evaluación y el final del período
M33: Desde | N33: 2017-02-01 | O33: 2017-05-16
M34: Hasta | N34: 2017-05-15 | O34: 2017-07-31
A35: ='F2. COMP. LAB Y COM COMPOR'!A37 -> Meta 1 | E35: ='F2. COMP. LAB Y COM COMPOR'!H37 -> Compromiso laboral 1 | K35: ='F2. COMP. LAB Y COM COMPOR'!Q37 -> 10% | N35: 100 | O35: 25 | S35: =IF(L46="No Aplica",0,SUM((N35*N$47),(O35*O$47),(P35*P$47),(Q35*Q$47),(R35*R$47))) -> 68.75
A37: ='F2. COMP. LAB Y COM COMPOR'!A39 -> Meta 1 | E37: ='F2. COMP. LAB Y COM COMPOR'!H39 -> Compromiso laboral 2 | K37: ='F2. COMP. LAB Y COM COMPOR'!Q39 -> 25% | N37: 90 | O37: 60 | S37: =IF(L47="No Aplica",0,SUM((N37*N$47),(O37*O$47),(P37*P$47),(Q37*Q$47),(R37*R$47))) -> 77.50
A39: ='F2. COMP. LAB Y COM COMPOR'!A41 -> Meta 2 | E39: ='F2. COMP. LAB Y COM COMPOR'!H41 -> Compromiso laboral 3 | K39: ='F2. COMP. LAB Y COM COMPOR'!Q41 -> 30% | N39: 90 | O39: 50 | S39: =IF(L47="No Aplica",0,SUM((N39*N$47),(O39*O$47),(P39*P$47),(Q39*Q$47),(R39*R$47))) -> 73.33
A41: ='F2. COMP. LAB Y COM COMPOR'!A43 -> Meta 3 | E41: ='F2. COMP. LAB Y COM COMPOR'!H43 -> Compromiso laboral 4 | K41: ='F2. COMP. LAB Y COM COMPOR'!Q43 -> 20% | N41: 90 | O41: 15 | S41: =IF(L47="No Aplica",0,SUM((N41*N$47),(O41*O$47),(P41*P$47),(Q41*Q$47),(R41*R$47))) -> 58.75
A43: ='F2. COMP. LAB Y COM COMPOR'!A45 -> Meta 4 | E43: ='F2. COMP. LAB Y COM COMPOR'!H45 -> Compromiso laboral 5 | K43: ='F2. COMP. LAB Y COM COMPOR'!Q45 -> 15% | N43: 93 | O43: 30 | S43: =IF(L47="No Aplica",0,SUM((N43*N$47),(O43*O$47),(P43*P$47),(Q43*Q$47),(R43*R$47))) -> 66.75
A45: TOTALES | K45: =IF(SUM(K35:L44)<1,CONCATENATE("ERROR!!: Sumatoria menor a 100% (",TEXT(SUM(K35:L44),"0%)")),SUM(K35:L44)) -> 100% | N45: =+N35*K$35+N37*K$37+N39*K$39+N41*K$41+N43*K$43 -> 91.45 | O45: =+O35*K$35+O37*K$37+O39*K$39+O41*K$41+O43*K$43 -> 40.00 | P45: =+P35*K$35+P37*K$37+P39*K$39+P41*K$41+P43*K$43 -> 0.00 | Q45: =+Q35*K$35+Q37*K$37+Q39*K$39+Q41*K$41+Q43*K$43 -> 0.00 | R45: =+R35*K$35+R37*K$37+R39*K$39+R41*K$41+R43*K$43 -> 0.00
A46: Días Efectivamente Laborados | G46: Total Días Laborados de cada Ev. Eventual | L46: =IF(OR(SUM(N46:R46)<=30,SUM(N46:R46)>180),"No Aplica",SUM(M46:R46)) -> 180 | N46: 105 | O46: 75
G47: % Participación Días Laborados de cada Evaluación. Eventual | L47: =IFERROR(+L46/$L$46,0) -> 100.00% | N47: 58.33% | O47: 41.67% | P47: 0.00% | Q47: 0.00% | R47: 0.00%
A48: CALIFICACIÓN EVALUACIÒN PRIMER SEMESTRE (Sobre 100) | K48: =(+M45*M47+N45*N47+O45*O47+P45*P47+Q45*Q47+R45*R47) -> 70.01
A49: CALIFICACIÓN TOTAL COMPROMISOS LABORALES | K49: =K48*0.8 -> 56
A50: V. COMPETENCIAS COMPORTAMENTALES
A51: COMPETENCIA | C51: DEFINICIÓN | F51: CONDUCTAS ASOCIADAS | N51: 1a. | O51: 2a. | P51: 3a. | Q51: 4a. | R51: 5a. | S51: Total
A52: ='F2. COMP. LAB Y COM COMPOR'!B51 -> Aprendizaje Continuo | C52: =+'F2. COMP. LAB Y COM COMPOR'!E51 -> Adquirir y desarrollar permanentemente conocimientos, destrezas y habilidades, con el fin de mantener altos estándares de eficacia organizacional. | F52: =+'F2. COMP. LAB Y COM COMPOR'!L51 -> ▪Aprende de la experiencia de otros y de la propia. ▪Se adapta y aplica nuevas tecnologías que se implanten en la organización. ▪Aplica los conocimientos adquiridos a los desafíos que se presentan en el desarrollo del trabajo. ▪Investiga, indaga y profundiza en los temas de su entorno área de desempeño. ▪Reconoce las propias limitaciones y las necesidades de mejorar su preparación. ▪Asimila nueva información y la aplica correctamente. | N52: ALTO | O52: ACEPTABLE | S52: =+M53*M$61+N53*N$61+O53*O$61+P53*P$61+Q53*Q$61+R53*R$61 -> 7.17
N53: =IFERROR(VLOOKUP(N52,Hoja4!$A$254:$B$258,2,FALSE),0) -> 8 | O53: =IFERROR(VLOOKUP(O52,Hoja4!$A$254:$B$258,2,FALSE),0) -> 6 | P53: =IFERROR(VLOOKUP(P52,Hoja4!$A$254:$B$258,2,FALSE),0) -> 0 | Q53: =IFERROR(VLOOKUP(Q52,Hoja4!$A$254:$B$258,2,FALSE),0) -> 0 | R53: =IFERROR(VLOOKUP(R52,Hoja4!$A$254:$B$258,2,FALSE),0) -> 0
A54: ='F2. COMP. LAB Y COM COMPOR'!B53 -> Orientación al usuario y al ciudadano | C54: =+'F2. COMP. LAB Y COM COMPOR'!E53 -> Dirigir las decisiones y acciones a la satisfacción de las necesidades e intereses de los usuarios internos y externos, de conformidad con las responsabilidades públicas asignadas a la entidad. | F54: =+'F2. COMP. LAB Y COM COMPOR'!L53 -> ▪ Atiende y valora las necesidades y peticiones de los usuarios y de ciudadanos en general. ▪Considera las necesidades de los usuarios al diseñar proyectos o servicios. ▪Da respuesta oportuna a las necesidades de los usuarios de conformidad con el servicio que ofrece la entidad. ▪Establece diferentes canales de comunicación con el usuario para conocer sus necesidades y propuestas y responde a las mismas. ▪Reconoce la interdependencia entre su trabajo y el de otros. | N54: MUY ALTO | O54: ACEPTABLE | S54: =+M55*M$61+N55*N$61+O55*O$61+P55*P$61+Q55*Q$61+R55*R$61 -> 8.33
N55: =IFERROR(VLOOKUP(N54,Hoja4!$A$254:$B$258,2,FALSE),0) -> 10 | O55: =IFERROR(VLOOKUP(O54,Hoja4!$A$254:$B$258,2,FALSE),0) -> 6 | P55: =IFERROR(VLOOKUP(P54,Hoja4!$A$254:$B$258,2,FALSE),0) -> 0 | Q55: =IFERROR(VLOOKUP(Q54,Hoja4!$A$254:$B$258,2,FALSE),0) -> 0 | R55: =IFERROR(VLOOKUP(R54,Hoja4!$A$254:$B$258,2,FALSE),0) -> 0
A56: ='F2. COMP. LAB Y COM COMPOR'!B55 -> Trabajo en equipo y Colaboración | C56: =+'F2. COMP. LAB Y COM COMPOR'!E55 -> Trabajar con otros de forma conjunta y de manera participativa, integrando esfuerzos para la consecución de metas institucionales comunes. | F56: =+'F2. COMP. LAB Y COM COMPOR'!L55 -> ▪Coopera en distintas situaciones y comparte información. ▪Aporta sugerencias, ideas y opiniones. ▪Expresa expectativas positivas del equipo o de los miembros del mismo. ▪Planifica las propias acciones teniendo en cuenta la repercusión de las mismas para la consecución de los objetivos grupales. ▪Establece diálogo directo con los miembros del equipo que permita compartir información e ideas en condiciones de respeto y cordialidad. ▪Respeta criterios dispares y distintas opiniones del equipo. | N56: ALTO | O56: BAJO | S56: =+M57*M$61+N57*N$61+O57*O$61+P57*P$61+Q57*Q$61+R57*R$61 -> 6.33
N57: =IFERROR(VLOOKUP(N56,Hoja4!$A$254:$B$258,2,FALSE),0) -> 8 | O57: =IFERROR(VLOOKUP(O56,Hoja4!$A$254:$B$258,2,FALSE),0) -> 4 | P57: =IFERROR(VLOOKUP(P56,Hoja4!$A$254:$B$258,2,FALSE),0) -> 0 | Q57: =IFERROR(VLOOKUP(Q56,Hoja4!$A$254:$B$258,2,FALSE),0) -> 0 | R57: =IFERROR(VLOOKUP(R56,Hoja4!$A$254:$B$258,2,FALSE),0) -> 0
A58: ='F2. COMP. LAB Y COM COMPOR'!B57 -> Liderazgo de Grupos de Trabajo (personal a cargo) | C58: =+'F2. COMP. LAB Y COM COMPOR'!E57 -> Asumir el rol de orientar y guía de un grupo o equipo de trabajo, utilizando la autoridad con arreglo a las normas y promoviendo la Efectividad en la consecución de objetivos y metas institucionales. | F58: =+'F2. COMP. LAB Y COM COMPOR'!L57 -> ▪Establece los objetivos del grupo de forma clara y equilibrada. ▪Asegura que los integrantes del grupo compartan planes, programas y proyectos institucionales. ▪Orienta y coordina el trabajo del grupo para la identificación de planes y actividades a seguir. ▪Facilita la colaboración con otras áreas y dependencias. ▪Escucha y tiene en cuenta las opiniones de los integrantes del grupo. ▪Gestiona los recursos necesarios para poder cumplir con las metas propuestas. ▪Garantiza los recursos necesarios para poder cumplir con las metas propuestas. ▪Garantiza que el grupo tenga la información necesaria. ▪Explica las razones de las decisiones. | N58: ALTO | O58: ACEPTABLE | S58: =+M59*M$61+N59*N$61+O59*O$61+P59*P$61+Q59*Q$61+R59*R$61 -> 7.17
N59: =IFERROR(VLOOKUP(N58,Hoja4!$A$254:$B$258,2,FALSE),0) -> 8 | O59: =IFERROR(VLOOKUP(O58,Hoja4!$A$254:$B$258,2,FALSE),0) -> 6 | P59: =IFERROR(VLOOKUP(P58,Hoja4!$A$254:$B$258,2,FALSE),0) -> 0 | Q59: =IFERROR(VLOOKUP(Q58,Hoja4!$A$254:$B$258,2,FALSE),0) -> 0 | R59: =IFERROR(VLOOKUP(R58,Hoja4!$A$254:$B$258,2,FALSE),0) -> 0
A60: PONDERACIÓN POR EVALUACIÓN EVENTUAL | N60: =+(N53+N55+N57+N59)/4 -> 8.50 | O60: 5.50 | P60: 0.00 | Q60: 0.00 | R60: 0.00 | T60: =+M60*M61 -> 0
A61: % Participación Días Laborados de cada Evaluación Eventual | N61: =+N47 -> 58.33% | O61: 41.67% | P61: 0.00% | Q61: 0.00% | R61: 0.00% | T61: =+N60*N61 -> 5
A62: CALIFICACIÓN TOTAL COMPETENCIAS COMPORTAMENTALES | M62: =+SUMPRODUCT(M60:R60,M61:R61) -> 7.25
A64: VI. COMUNICACIÓN DE LA EVALUACIÓN | M64: F1. INF. GENERAL | Q64: F3. EVIDENCIAS
A65: Nombre del Evaluado: | E65: =UPPER(CONCATENATE(L12," ",P12," ",F12," ",I12)) -> PABLO PEREZ | K65: FECHA
K66: 2017-08-15
A67: Firma
A70: Nombre del evaluador: | E70: =UPPER(CONCATENATE(L19," ",P19," ",F19," ",I19)) -> FERNANDO ARDILA
A72: Firma | M72: F4. CALF. COM. COMPORT. | Q72: F7. PLAN DE MEJORAMIENTO
A74: Nombre del evaluador en Comisión Evaluadora: | E74: =IF(C24="NO REQUERIDO","NO REQUERIDO",UPPER(CONCATENATE(L24," ",P24," ",F24," ",I24))) -> NO REQUERIDO
A76: Firma | E76: =IF(E74="NO REQUERIDO","NO REQUERIDO","") -> NO REQUERIDO

Sheet F8. EVA. EVENTUAL (Semestre 2)
E1: COMISIÓN NACIONAL DEL SERVICIO CIVIL | P1: INSERTE EL LOGOTIPO DE SU ENTIDAD
E3: FORMATO 8. EVALUACIÓN PARCIAL EVENTUAL
E5: PROCESO: EVALUACIÓN DEL DESEMPEÑO LABORAL | H5: Código: | J5: F-ED-009 | L5: Página | N5: 1 de 1
H6: Fecha de emisión: | J6: 2016-12-27 | L6: Versión: | N6: 2.0
A8: PERÍODO DE EVALUACIÓN | E8: DÍA | F8: MES | G8: AÑO | H8: al | J8: DÍA | K8: MES | L8: AÑO | M8: FECHA DE CALIFICACIÓN | Q8: DÍA | R8: MES | S8: AÑO
A10: I. IDENTIFICACIÓN DEL EVALUADO
A11: Tipo de Documento | C11: Número de identificación | F11: Primer apellido | I11: Segundo apellido | L11: Primer nombre | P11: Otros nombres
A12: ='F2. COMP. LAB Y COM COMPOR'!A13:B13 -> CEDULA DE CIUDADANIA | C12: ='F2. COMP. LAB Y COM COMPOR'!C13:E13 -> 123,456,789 | F12: ='F2. COMP. LAB Y COM COMPOR'!F13:H13 -> PEREZ | I12: ='F2. COMP. LAB Y COM COMPOR'!I13:K13 ->  | L12: ='F2. COMP. LAB Y COM COMPOR'!L13:O13 -> PABLO | P12: ='F2. COMP. LAB Y COM COMPOR'!P13:S13 -> 
A13: Dependencia o área a la que pertenece el evaluado | I13: Denominación del empleo
A14: ='F2. COMP. LAB Y COM COMPOR'!A15:H15 -> Dirección de Talento Humano | I14: ='F2. COMP. LAB Y COM COMPOR'!I15:S15 -> Profesional Especializado
A15: Nivel jerárquico | F15: Código | H15: Grado | I15: ='F2. COMP. LAB Y COM COMPOR'!I16 -> Propósito del empleo: | L15: ='F2. COMP. LAB Y COM COMPOR'!J16 -> El que obra en el manual de funciones
A16: ='F2. COMP. LAB Y COM COMPOR'!A17:E17 -> PROFESIONAL | F16: ='F2. COMP. LAB Y COM COMPOR'!F17:G17 -> 2028 | H16: ='F2. COMP. LAB Y COM COMPOR'!H17 -> 19
A17: II. IDENTIFICACIÓN EVALUADOR. (Jefe inmediato)
A18: Tipo de documento | C18: Número de identificación | F18: Primer apellido | I18: Segundo apellido | L18: Primer nombre | P18: Otros nombres
A19: ='F2. COMP. LAB Y COM COMPOR'!A20:B20 -> CEDULA DE CIUDADANIA | C19: ='F2. COMP. LAB Y COM COMPOR'!C20:E20 -> 80,536,985 | F19: ='F2. COMP. LAB Y COM COMPOR'!F20:H20 -> ARDILA | I19: ='F2. COMP. LAB Y COM COMPOR'!I20:K20 ->  | L19: ='F2. COMP. LAB Y COM COMPOR'!L20:O20 -> FERNANDO | P19: ='F2. COMP. LAB Y COM COMPOR'!P20:S20 -> 
A20: Área o Dependencia a la que pertenece el evaluador | G20: Denominación del empleo | N20: Código | P20: Grado | R20: Nivel jerárquico
A21: ='F2. COMP. LAB Y COM COMPOR'!A22:F22 -> Dirección de Talento Humano | G21: ='F2. COMP. LAB Y COM COMPOR'!G22:M22 -> Director de Talento Humano | N21: ='F2. COMP. LAB Y COM COMPOR'!N22:O22 -> xxxx | P21: ='F2. COMP. LAB Y COM COMPOR'!P22:Q22 -> xxxx | R21: ='F2. COMP. LAB Y COM COMPOR'!R22:S22 -> DIRECTIVO
A22: III. IDENTIFICACIÓN EVALUADOR (Servidor público de Libre Nombramiento y Remoción en caso de constituir Comisión Evaluadora)
A23: Tipo de documento | C23: Número de identificación | F23: Primer apellido | I23: Segundo apellido | L23: Primer nombre | P23: Otros nombres
A24: ='F2. COMP. LAB Y COM COMPOR'!A26:B26 -> CEDULA DE CIUDADANIA | C24: =IF('F2. COMP. LAB Y COM COMPOR'!R24="NO","NO REQUERIDO",'F2. COMP. LAB Y COM COMPOR'!C26:E26) -> NO REQUERIDO | F24: =IF('F2. COMP. LAB Y COM COMPOR'!R24="NO","NO REQUERIDO",'F2. COMP. LAB Y COM COMPOR'!F26:H26) -> NO REQUERIDO | I24: =IF('F2. COMP. LAB Y COM COMPOR'!R24="NO","NO REQUERIDO",'F2. COMP. LAB Y COM COMPOR'!I26:K26) -> NO REQUERIDO | L24: =IF('F2. COMP. LAB Y COM COMPOR'!R24="NO","NO REQUERIDO",'F2. COMP. LAB Y COM COMPOR'!L26:O26) -> NO REQUERIDO | P24: =IF('F2. COMP. LAB Y COM COMPOR'!R24="NO","NO REQUERIDO",'F2. COMP. LAB Y COM COMPOR'!P26:S26) -> NO REQUERIDO
A25: Dependencia o área a la que pertenece el evaluador | G25: Denominación del empleo | N25: Código | P25: Grado | R25: Nivel jerárquico
A26: =IF('F2. COMP. LAB Y COM COMPOR'!R24="NO","NO REQUERIDO",'F2. COMP. LAB Y COM COMPOR'!A28:F28) -> NO REQUERIDO | G26: =IF('F2. COMP. LAB Y COM COMPOR'!R24="NO","NO REQUERIDO",'F2. COMP. LAB Y COM COMPOR'!G28:M28) -> NO REQUERIDO | N26: =IF('F2. COMP. LAB Y COM COMPOR'!R24="NO","NO REQUERIDO",'F2. COMP. LAB Y COM COMPOR'!N28:O28) -> NO REQUERIDO | P26: =IF('F2. COMP. LAB Y COM COMPOR'!R24="NO","NO REQUERIDO",'F2. COMP. LAB Y COM COMPOR'!P28:Q28) -> NO REQUERIDO | R26: =IF('F2. COMP. LAB Y COM COMPOR'!R24="NO","NO REQUERIDO",'F2. COMP. LAB Y COM COMPOR'!R28:S28) -> NO REQUERIDO
A27: IV. COMPROMISOS LABORALES
A28: Metas de la Dependencia a las cuales contribuye el empleo | E28: Compromisos Laborales. | K28: Peso porcentual del compromiso | M28: Calificación Eventuales
M30: No. Calificación | N30: 1ª | O30: 2ª | P30: 3ª | Q30: 4ª | R30: 5ª | S30: Total Semestre
M31: Causal
M32: Desde
M33: Hasta
A34: ='F2. COMP. LAB Y COM COMPOR'!A37 -> Meta 1 | E34: ='F2. COMP. LAB Y COM COMPOR'!H37 -> Compromiso laboral 1 | K34: ='F2. COMP. LAB Y COM COMPOR'!R37 -> 30% | S34: =IF(L45="No Aplica",0,SUM((K34*N34*N$46),(K34*O34*O$46),(K34*P34*P$46),(K34*Q34*Q$46),(K34*R34*R$46))) -> 0.00
A36: ='F2. COMP. LAB Y COM COMPOR'!A39 -> Meta 1 | E36: ='F2. COMP. LAB Y COM COMPOR'!H39 -> Compromiso laboral 2 | K36: ='F2. COMP. LAB Y COM COMPOR'!R39 -> 0% | S36: =IF(L46="No Aplica",0,SUM((K36*N36*N$46),(K36*O36*O$46),(K36*P36*P$46),(K36*Q36*Q$46),(K36*R36*R$46))) -> 0.00
A38: ='F2. COMP. LAB Y COM COMPOR'!A41 -> Meta 2 | E38: ='F2. COMP. LAB Y COM COMPOR'!H41 -> Compromiso laboral 3 | K38: ='F2. COMP. LAB Y COM COMPOR'!R41 -> 10% | S38: =IF(L46="No Aplica",0,SUM((K38*N38*N$46),(K38*O38*O$46),(K38*P38*P$46),(K38*Q38*Q$46),(K38*R38*R$46))) -> 0.00
A40: ='F2. COMP. LAB Y COM COMPOR'!A43 -> Meta 3 | E40: ='F2. COMP. LAB Y COM COMPOR'!H43 -> Compromiso laboral 4 | K40: ='F2. COMP. LAB Y COM COMPOR'!R43 -> 25% | S40: =IF(L46="No Aplica",0,SUM((K40*N40*N$46),(K40*O40*O$46),(K40*P40*P$46),(K40*Q40*Q$46),(K40*R40*R$46))) -> 0.00
A42: ='F2. COMP. LAB Y COM COMPOR'!A45 -> Meta 4 | E42: ='F2. COMP. LAB Y COM COMPOR'!H45 -> Compromiso laboral 5 | K42: ='F2. COMP. LAB Y COM COMPOR'!R45 -> 35% | S42: =IF(L46="No Aplica",0,SUM((K42*N42*N$46),(K42*O42*O$46),(K42*P42*P$46),(K42*Q42*Q$46),(K42*R42*R$46))) -> 0.00
A44: TOTALES | K44: =IF(SUM(K34:L43)<1,CONCATENATE("ERROR!!: Sumatoria menor a 100% (",TEXT(SUM(K34:L43),"0%)")),SUM(K34:L43)) -> 100% | N44: =+N34*K$34+N36*K$36+N38*K$38+N40*K$40+N42*K$42 -> 0.00 | O44: =+O34*K$34+O36*K$36+O38*K$38+O40*K$40+O42*K$42 -> 0.00 | P44: =+P34*K$34+P36*K$36+P38*K$38+P40*K$40+P42*K$42 -> 0.00 | Q44: =+Q34*K$34+Q36*K$36+Q38*K$38+Q40*K$40+Q42*K$42 -> 0.00 | R44: =+R34*K$34+R36*K$36+R38*K$38+R40*K$40+R42*K$42 -> 0.00
A45: Días Efectivamente Laborados | G45: Total Días Laborados de cada Ev. Eventual | L45: =IF(OR(SUM(N45:R45)<=30,SUM(N45:R45)>(180)),"No Aplica",SUM(M45:R45)) -> No Aplica
G46: % Participación Días Laborados de cada Evaluación. Eventual | L46: =IFERROR(+L45/$L$45,0) -> 0.00% | N46: 0.00% | O46: 0.00% | P46: 0.00% | Q46: 0.00% | R46: 0.00%
A47: CALIFICACIÓN SEGUNDO SEMESTRE (Sobre 100) | K47: =(+M44*M46+N44*N46+O44*O46+P44*P46+Q44*Q46+R44*R46) -> 0.00
A48: CALIFICACIÓN TOTAL COMPROMISOS LABORALES | K48: =K47*0.8 -> 0
A49: V. COMPETENCIAS COMPORTAMENTALES
A50: COMPETENCIA | C50: DEFINICIÓN | F50: CONDUCTAS ASOCIADAS | N50: 1a. | O50: 2a. | P50: 3a. | Q50: 4a. | R50: 5a. | S50: Total
A51: ='F2. COMP. LAB Y COM COMPOR'!B51 -> Aprendizaje Continuo | C51: =+'F2. COMP. LAB Y COM COMPOR'!E51 -> Adquirir y desarrollar permanentemente conocimientos, destrezas y habilidades, con el fin de mantener altos estándares de eficacia organizacional. | F51: =+'F2. COMP. LAB Y COM COMPOR'!L51 -> ▪Aprende de la experiencia de otros y de la propia. ▪Se adapta y aplica nuevas tecnologías que se implanten en la organización. ▪Aplica los conocimientos adquiridos a los desafíos que se presentan en el desarrollo del trabajo. ▪Investiga, indaga y profundiza en los temas de su entorno área de desempeño. ▪Reconoce las propias limitaciones y las necesidades de mejorar su preparación. ▪Asimila nueva información y la aplica correctamente. | S51: =+M52*M$60+N52*N$60+O52*O$60+P52*P$60+Q52*Q$60+R52*R$60 -> 0.00
N52: =IFERROR(VLOOKUP(N51,Hoja4!$A$254:$B$258,2,FALSE),0) -> 0 | O52: =IFERROR(VLOOKUP(O51,Hoja4!$A$254:$B$258,2,FALSE),0) -> 0 | P52: =IFERROR(VLOOKUP(P51,Hoja4!$A$254:$B$258,2,FALSE),0) -> 0 | Q52: =IFERROR(VLOOKUP(Q51,Hoja4!$A$254:$B$258,2,FALSE),0) -> 0 | R52: =IFERROR(VLOOKUP(R51,Hoja4!$A$254:$B$258,2,FALSE),0) -> 0
A53: ='F2. COMP. LAB Y COM COMPOR'!B53 -> Orientación al usuario y al ciudadano | C53: =+'F2. COMP. LAB Y COM COMPOR'!E53 -> Dirigir las decisiones y acciones a la satisfacción de las necesidades e intereses de los usuarios internos y externos, de conformidad con las responsabilidades públicas asignadas a la entidad. | F53: =+'F2. COMP. LAB Y COM COMPOR'!L51 -> ▪Aprende de la experiencia de otros y de la propia. ▪Se adapta y aplica nuevas tecnologías que se implanten en la organización. ▪Aplica los conocimientos adquiridos a los desafíos que se presentan en el desarrollo del trabajo. ▪Investiga, indaga y profundiza en los temas de su entorno área de desempeño. ▪Reconoce las propias limitaciones y las necesidades de mejorar su preparación. ▪Asimila nueva información y la aplica correctamente. | S53: =+M54*M$60+N54*N$60+O54*O$60+P54*P$60+Q54*Q$60+R54*R$60 -> 0.00
N54: =IFERROR(VLOOKUP(N53,Hoja4!$A$254:$B$258,2,FALSE),0) -> 0 | O54: =IFERROR(VLOOKUP(O53,Hoja4!$A$254:$B$258,2,FALSE),0) -> 0 | P54: =IFERROR(VLOOKUP(P53,Hoja4!$A$254:$B$258,2,FALSE),0) -> 0 | Q54: =IFERROR(VLOOKUP(Q53,Hoja4!$A$254:$B$258,2,FALSE),0) -> 0 | R54: =IFERROR(VLOOKUP(R53,Hoja4!$A$254:$B$258,2,FALSE),0) -> 0
A55: ='F2. COMP. LAB Y COM COMPOR'!B55 -> Trabajo en equipo y Colaboración | C55: =+'F2. COMP. LAB Y COM COMPOR'!E55 -> Trabajar con otros de forma conjunta y de manera participativa, integrando esfuerzos para la consecución de metas institucionales comunes. | F55: =+'F2. COMP. LAB Y COM COMPOR'!L55 -> ▪Coopera en distintas situaciones y comparte información. ▪Aporta sugerencias, ideas y opiniones. ▪Expresa expectativas positivas del equipo o de los miembros del mismo. ▪Planifica las propias acciones teniendo en cuenta la repercusión de las mismas para la consecución de los objetivos grupales. ▪Establece diálogo directo con los miembros del equipo que permita compartir información e ideas en condiciones de respeto y cordialidad. ▪Respeta criterios dispares y distintas opiniones del equipo. | S55: =+M56*M$60+N56*N$60+O56*O$60+P56*P$60+Q56*Q$60+R56*R$60 -> 0.00
N56: =IFERROR(VLOOKUP(N55,Hoja4!$A$254:$B$258,2,FALSE),0) -> 0 | O56: =IFERROR(VLOOKUP(O55,Hoja4!$A$254:$B$258,2,FALSE),0) -> 0 | P56: =IFERROR(VLOOKUP(P55,Hoja4!$A$254:$B$258,2,FALSE),0) -> 0 | Q56: =IFERROR(VLOOKUP(Q55,Hoja4!$A$254:$B$258,2,FALSE),0) -> 0 | R56: =IFERROR(VLOOKUP(R55,Hoja4!$A$254:$B$258,2,FALSE),0) -> 0
A57: ='F2. COMP. LAB Y COM COMPOR'!B57 -> Liderazgo de Grupos de Trabajo (personal a cargo) | C57: =+'F2. COMP. LAB Y COM COMPOR'!E57 -> Asumir el rol de orientar y guía de un grupo o equipo de trabajo, utilizando la autoridad con arreglo a las normas y promoviendo la Efectividad en la consecución de objetivos y metas institucionales. | F57: =+'F2. COMP. LAB Y COM COMPOR'!L55 -> ▪Coopera en distintas situaciones y comparte información. ▪Aporta sugerencias, ideas y opiniones. ▪Expresa expectativas positivas del equipo o de los miembros del mismo. ▪Planifica las propias acciones teniendo en cuenta la repercusión de las mismas para la consecución de los objetivos grupales. ▪Establece diálogo directo con los miembros del equipo que permita compartir información e ideas en condiciones de respeto y cordialidad. ▪Respeta criterios dispares y distintas opiniones del equipo. | S57: =+M58*M$60+N58*N$60+O58*O$60+P58*P$60+Q58*Q$60+R58*R$60 -> 0.00
N58: =IFERROR(VLOOKUP(N57,Hoja4!$A$254:$B$258,2,FALSE),0) -> 0 | O58: =IFERROR(VLOOKUP(O57,Hoja4!$A$254:$B$258,2,FALSE),0) -> 0 | P58: =IFERROR(VLOOKUP(P57,Hoja4!$A$254:$B$258,2,FALSE),0) -> 0 | Q58: =IFERROR(VLOOKUP(Q57,Hoja4!$A$254:$B$258,2,FALSE),0) -> 0 | R58: =IFERROR(VLOOKUP(R57,Hoja4!$A$254:$B$258,2,FALSE),0) -> 0
A59: PONDERACIÓN POR EVALUACIÓN EVENTUAL | N59: =IFERROR((N52+N54+N56+N58)/4,0) -> 0.00 | O59: 0.00 | P59: 0.00 | Q59: 0.00 | R59: 0.00
A60: % Participación Días Laborados de cada Evaluación Eventual | N60: =+N46 -> 0.00% | O60: 0.00% | P60: 0.00% | Q60: 0.00% | R60: 0.00%
A61: CALIFICACIÓN TOTAL COMPETENCIAS COMPORTAMENTALES | M61: =+SUMPRODUCT(M59:R59,M60:R60) -> 0.00
A63: VI. COMUNICACIÓN DE LA EVALUACIÓN | M63: F1. INF. GENERAL | Q63: F3. EVIDENCIAS
A64: Nombre del Evaluado: | E64: =UPPER(CONCATENATE(L12," ",P12," ",F12," ",I12)) -> PABLO PEREZ | K64: FECHA
A66: Firma
A69: Nombre del evaluador: | E69: =UPPER(CONCATENATE(L19," ",P19," ",F19," ",I19)) -> FERNANDO ARDILA
A71: Firma | M71: F4. CALF. COM. COMPORT. | Q71: F7. PLAN DE MEJORAMIENTO
A73: Nombre del evaluador en Comisión Evaluadora: | E73: =IF(C24="NO REQUERIDO","NO REQUERIDO",UPPER(CONCATENATE(L24," ",P24," ",F24," ",I24))) -> NO REQUERIDO
A75: Firma | E75: =IF(E73="NO REQUERIDO","NO REQUERIDO","") -> NO REQUERIDO

Sheet F9. EV. EXTRAORDINARIA
E2: COMISIÓN NACIONAL DEL SERVICIO CIVIL | P2: INSERTE EL LOGOTIPO DE SU ENTIDAD
E4: FORMATO 9. EVALUACIÓN EXTRAORDINARIA
E6: PROCESO: EVALUACIÓN DEL DESEMPEÑO LABORAL | H6: Código: | J6: F-ED-010 | L6: Página | N6: 1 de 1
H7: Fecha de emisión: | J7: 2016-12-27 | L7: Versión: | N7: 2.0
A8: PERÍODO DE EVALUACIÓN | E8: DÍA | F8: MES | G8: AÑO | H8: al | J8: DÍA | K8: MES | L8: AÑO | M8: FECHA DE EVALUACIÓN | Q8: DÍA | R8: MES | S8: AÑO
E9: 1 | F9: 2 | G9: 2017 | J9: 15 | K9: 11 | L9: 2017 | Q9: 15 | R9: 11 | S9: 2017
A10: I. IDENTIFICACIÓN DEL EVALUADO
A11: Tipo de Documento | C11: Número de identificación | F11: Primer apellido | I11: Segundo apellido | L11: Primer nombre | P11: Otros nombres
A12: ='F2. COMP. LAB Y COM COMPOR'!A13:B13 -> CEDULA DE CIUDADANIA | C12: ='F2. COMP. LAB Y COM COMPOR'!C13:E13 -> 123,456,789 | F12: ='F2. COMP. LAB Y COM COMPOR'!F13:H13 -> PEREZ | I12: ='F2. COMP. LAB Y COM COMPOR'!I13:K13 ->  | L12: ='F2. COMP. LAB Y COM COMPOR'!L13:O13 -> PABLO | P12: ='F2. COMP. LAB Y COM COMPOR'!P13:S13 -> 
A13: Dependencia o área a la que pertenece el evaluado | I13: Denominación del empleo
A14: ='F2. COMP. LAB Y COM COMPOR'!A15:H15 -> Dirección de Talento Humano | I14: ='F2. COMP. LAB Y COM COMPOR'!I15:S15 -> Profesional Especializado
A15: Nivel jerárquico | F15: Código | H15: Grado | I15: ='F2. COMP. LAB Y COM COMPOR'!I16 -> Propósito del empleo: | K15: ='F2. COMP. LAB Y COM COMPOR'!J16 -> El que obra en el manual de funciones
A16: ='F2. COMP. LAB Y COM COMPOR'!A17:E17 -> PROFESIONAL | F16: ='F2. COMP. LAB Y COM COMPOR'!F17:G17 -> 2028 | H16: ='F2. COMP. LAB Y COM COMPOR'!H17 -> 19
A17: II. IDENTIFICACIÓN EVALUADOR. (Jefe inmediato)
A18: Tipo de documento | C18: Número de identificación | F18: Primer apellido | I18: Segundo apellido | L18: Primer nombre | P18: Otros nombres
A19: ='F2. COMP. LAB Y COM COMPOR'!A20:B20 -> CEDULA DE CIUDADANIA | C19: ='F2. COMP. LAB Y COM COMPOR'!C20:E20 -> 80,536,985 | F19: ='F2. COMP. LAB Y COM COMPOR'!F20:H20 -> ARDILA | I19: ='F2. COMP. LAB Y COM COMPOR'!I20:K20 ->  | L19: ='F2. COMP. LAB Y COM COMPOR'!L20:O20 -> FERNANDO | P19: ='F2. COMP. LAB Y COM COMPOR'!P20:S20 -> 
A20: Área o Dependencia a la que pertenece el evaluador | G20: Denominación del empleo | N20: Código | P20: Grado | R20: Nivel jerárquico
A21: ='F2. COMP. LAB Y COM COMPOR'!A22:F22 -> Dirección de Talento Humano | G21: ='F2. COMP. LAB Y COM COMPOR'!G22:M22 -> Director de Talento Humano | N21: ='F2. COMP. LAB Y COM COMPOR'!N22:O22 -> xxxx | P21: ='F2. COMP. LAB Y COM COMPOR'!P22:Q22 -> xxxx | R21: ='F2. COMP. LAB Y COM COMPOR'!R22:S22 -> DIRECTIVO
A22: III. IDENTIFICACIÓN EVALUADOR (Servidor público de Libre Nombramiento y Remoción en caso de constituir Comisión Evaluadora)
A23: Tipo de documento | C23: Número de identificación | F23: Primer apellido | I23: Segundo apellido | L23: Primer nombre | P23: Otros nombres
A24: ='F2. COMP. LAB Y COM COMPOR'!A26:B26 -> CEDULA DE CIUDADANIA | C24: =IF('F2. COMP. LAB Y COM COMPOR'!R24="NO","NO REQUERIDO",'F2. COMP. LAB Y COM COMPOR'!C26:E26) -> NO REQUERIDO | F24: =IF('F2. COMP. LAB Y COM COMPOR'!R24="NO","NO REQUERIDO",'F2. COMP. LAB Y COM COMPOR'!F26:H26) -> NO REQUERIDO | I24: =IF('F2. COMP. LAB Y COM COMPOR'!R24="NO","NO REQUERIDO",'F2. COMP. LAB Y COM COMPOR'!I26:K26) -> NO REQUERIDO | L24: =IF('F2. COMP. LAB Y COM COMPOR'!R24="NO","NO REQUERIDO",'F2. COMP. LAB Y COM COMPOR'!L26:O26) -> NO REQUERIDO | P24: =IF('F2. COMP. LAB Y COM COMPOR'!R24="NO","NO REQUERIDO",'F2. COMP. LAB Y COM COMPOR'!P26:S26) -> NO REQUERIDO
A25: Dependencia o área a la que pertenece el evaluador | G25: Denominación del empleo | N25: Código | P25: Grado | R25: Nivel jerárquico
A26: =IF('F2. COMP. LAB Y COM COMPOR'!R24="NO","NO REQUERIDO",'F2. COMP. LAB Y COM COMPOR'!A28:F28) -> NO REQUERIDO | G26: =IF('F2. COMP. LAB Y COM COMPOR'!R24="NO","NO REQUERIDO",'F2. COMP. LAB Y COM COMPOR'!G28:M28) -> NO REQUERIDO | N26: =IF('F2. COMP. LAB Y COM COMPOR'!R24="NO","NO REQUERIDO",'F2. COMP. LAB Y COM COMPOR'!N28:O28) -> NO REQUERIDO | P26: =IF('F2. COMP. LAB Y COM COMPOR'!R24="NO","NO REQUERIDO",'F2. COMP. LAB Y COM COMPOR'!P28:Q28) -> NO REQUERIDO | R26: =IF('F2. COMP. LAB Y COM COMPOR'!R24="NO","NO REQUERIDO",'F2. COMP. LAB Y COM COMPOR'!R28:S28) -> NO REQUERIDO
A27: IV. COMPROMISOS LABORALES
A28: Metas de la Dependencia a las cuales contribuye el empleo | E28: Compromisos Laborales. | J28: Peso porcentual del compromiso | L28: Porcentaje de Cumplimiento.
L30: EVALUACIÓN REALIZADA PREVIA A LA EXTRAORDINARIA (Si hubo) | P30: EVALUACIÓN ULTIMO PERÍODO
L31: Peso porcentual Evaluaciones previas | M31: CALIFICACIÓN DEL COMPROMISO | N31: CALIFICACIÓN DEL COMPROMISO (Con peso porcentual) | P31: Peso porcentual último período | Q31: CALIFICACIÓN DEL COMPROMISO | R31: CALIFICACIÓN DEL COMPROMISO (Con peso porcentual)
A32: ='F2. COMP. LAB Y COM COMPOR'!A37 -> Meta 1 | E32: ='F2. COMP. LAB Y COM COMPOR'!H37 -> Compromiso laboral 1 | J32: ='F2. COMP. LAB Y COM COMPOR'!S37 -> 20.00% | L32: 10.00% | M32: 68.75 | N32: =IFERROR(($M32*L32),0) -> 6.88 | P32: =IFERROR((J32-L32),0) -> 10.00% | Q32: 70 | R32: =IFERROR(($Q32*P32),0) -> 7.00
A34: ='F2. COMP. LAB Y COM COMPOR'!A39 -> Meta 1 | E34: ='F2. COMP. LAB Y COM COMPOR'!H39 -> Compromiso laboral 2 | J34: ='F2. COMP. LAB Y COM COMPOR'!S39 -> 12.50% | L34: 12.50% | M34: 77.50 | N34: =IFERROR(($M34*L34),0) -> 9.69 | P34: =IFERROR((J34-L34),0) -> 0.00% | Q34: 0 | R34: =IFERROR(($Q34*P34),0) -> 0.00
A36: ='F2. COMP. LAB Y COM COMPOR'!A41 -> Meta 2 | E36: ='F2. COMP. LAB Y COM COMPOR'!H41 -> Compromiso laboral 3 | J36: ='F2. COMP. LAB Y COM COMPOR'!S41 -> 20.00% | L36: 15.00% | M36: 73.33 | N36: =IFERROR(($M36*L36),0) -> 11.00 | P36: =IFERROR((J36-L36),0) -> 5.00% | Q36: 60 | R36: =IFERROR(($Q36*P36),0) -> 3.00
A38: ='F2. COMP. LAB Y COM COMPOR'!A43 -> Meta 3 | E38: ='F2. COMP. LAB Y COM COMPOR'!H43 -> Compromiso laboral 4 | J38: ='F2. COMP. LAB Y COM COMPOR'!S43 -> 22.50% | L38: 10.00% | M38: 58.75 | N38: =IFERROR(($M38*L38),0) -> 5.88 | P38: =IFERROR((J38-L38),0) -> 12.50% | Q38: 60 | R38: =IFERROR(($Q38*P38),0) -> 7.50
A40: ='F2. COMP. LAB Y COM COMPOR'!A45 -> Meta 4 | E40: ='F2. COMP. LAB Y COM COMPOR'!H45 -> Compromiso laboral 5 | J40: ='F2. COMP. LAB Y COM COMPOR'!S45 -> 25.00% | L40: 8.33% | M40: 66.75 | N40: =IFERROR(($M40*L40),0) -> 5.56 | P40: =IFERROR((J40-L40),0) -> 16.67% | Q40: 100 | R40: =IFERROR(($Q40*P40),0) -> 16.67
A42: PESO TOTAL PONDERADO DE LOS COMPROMISOS LABORALES | J42: =IF(SUM(J32:K41)<1,CONCATENATE("ERROR!!: Sumatoria menor a 100% (",TEXT(SUM(J32:K41),"0%)")),SUM(J32:K41)) -> 100.00% | L42: Resultado total | O42: =SUMIF(N32:O41,"<100",N32:O41) -> 39.00 | P42: Resultado total | S42: =SUMIF(R32:S41,"<100",R32:S41) -> 34.17
A43: Días Efectivamente Laborados | G43: Total Días Laborados Efectivamente | K43: =IF((L43+P43)<91,"No aplica",SUM(L43:S43)) -> 285 | L43: 180 | P43: 105
G44: % Participación Días Laborados para la Evaluación Extraordinaria | L44: =IF(L43>30,IFERROR(+L43/($L$43+$P$43),0),"DEBE SER SUPERIOR A 30 DIAS") -> 63.16% | P44: =IF((L43+P43)>90,IFERROR(+P43/($L$43+$P$43),0),"DEBE SER SUPERIOR A 90 DIAS") -> 36.84%
A45: Calificaciones parciales semestrales compromisos laborales | L45: 1° Calificación | P45: 2° Calificación
L46: =O42*40 -> 1559.89 | P46: =S42*40 -> 1366.80
A47: CALIFICACIÓN TOTAL COMPROMISOS LABORALES | L47: Sobre el 100% | N47: =IF(P44="DEBE SER SUPERIOR A 90 DIAS",0,(O42+S42)) -> 73.17 | O47: Sobre el peso porcentual del 85% | R47: =+N47*85% -> 62.19
A49: V. COMPETENCIAS COMPORTAMENTALES | J49: F4. CALF. COM. COMPORT. | L49: VI. RESULTADOS CONSOLIDADOS EVALUCIÓN EXTRAORDINARIA
A50: COMPETENCIAS COMPORTAMENTALES | F50: Eva. Previa a la EXTR. (Si hubo) | H50: Eva. Último período.
A51: 1. | B51: ='F2. COMP. LAB Y COM COMPOR'!B51 -> Aprendizaje Continuo | F51: 7.17 | H51: BAJO | I51: =IF(B51>0,IFERROR(VLOOKUP(H51,Hoja4!$A$461:$B$464,2,FALSE),""),"DEFINA COMPETENCIA") -> 6 | L51: CALIFICACIÓN | P51: NIVEL DE CALIFICACIÓN
A52: 2. | B52: ='F2. COMP. LAB Y COM COMPOR'!B53 -> Orientación al usuario y al ciudadano | F52: 8.33 | H52: ACEPTABLE | I52: =IF(B52>0,IFERROR(VLOOKUP(H52,Hoja4!$A$461:$B$464,2,FALSE),""),"DEFINA COMPETENCIA") -> 9 | L52: =SUM(R47,A59)/100 -> 65.86% | P52: =IF(P44="DEBE SER SUPERIOR A 90 DIAS","CALIFICACIÓN PARA PERIODOS SUPERIORES A 90 DIAS",IFERROR(VLOOKUP(L52,Hoja4!T$2:U$101,2),0)) -> SATISFACTORIO
A53: 3. | B53: ='F2. COMP. LAB Y COM COMPOR'!B55 -> Trabajo en equipo y Colaboración | F53: 6.33 | H53: BAJO | I53: =IF(B53>0,IFERROR(VLOOKUP(H53,Hoja4!$A$461:$B$464,2,FALSE),""),"DEFINA COMPETENCIA") -> 6
A54: 4. | B54: ='F2. COMP. LAB Y COM COMPOR'!B57 -> Liderazgo de Grupos de Trabajo (personal a cargo) | F54: 7.17 | H54: ACEPTABLE | I54: =IF(B54>0,IFERROR(VLOOKUP(H54,Hoja4!$A$461:$B$464,2,FALSE),""),"DEFINA COMPETENCIA") -> 9 | J54: F7. PLAN DE MEJORAMIENTO | L54: F2. COMP. LAB Y COM COMPOR
A55: CALIFICACIÓN | F55: =IF(COUNTA(F51:G54)=4,(SUM(F51:G54)/4),"DEBE CALIFICAR LAS 4 COMPETENCIAS") -> 7.25 | H55: =IF(COUNTA(H51:H54)=4,(SUM(I51:I54)/4),"DEBE CALIFICAR LAS 4 COMPETENCIAS") -> 7.50
A57: % Participación Días Laborados de cada Eva. Eventual | F57: =+L44 -> 63.16% | H57: =+P44 -> 36.84% | L57: F3. EVIDENCIAS
A58: CALIFICACIÓN DE LAS COMPETENCIAS COMPORTAMENTALES
A59: =AVERAGE(IF(F57="DEBE SER SUPERIOR A 30 DIAS",0,(F55*F57)),IF(H57="DEBE SER SUPERIOR A 90 DIAS",0,(H55*H57))) -> 3.67
A60: VII. NOTIFICACIÓN
A62: Nombre del Evaluado: | C62: =UPPER(CONCATENATE(L12," ",P12," ",F12," ",I12)) -> PABLO PEREZ | J62: Nombre del evaluador: | L62: =UPPER(CONCATENATE(L19," ",P19," ",F19," ",I19)) -> FERNANDO ARDILA
A64: Firma | J64: Firma
A67: VIII. DECISIÓN DE RECURSOS
A68: Interpone recursos
A70: RECURSO DE REPOSICIÓN | J70: RECURSO DE APELACIÓN
A71: DECISIÓN | G71: FECHA | J71: DECISIÓN | Q71: FECHA
A73: Nombre del Evaluado: | C73: =IF(D71="","",UPPER(CONCATENATE(L12," ",P12," ",F12," ",I12))) ->  | J73: Nombre del Evaluado: | L73: =IF(M71="","",UPPER(CONCATENATE(L12," ",P12," ",F12," ",I12))) -> 
A75: Firma | J75: Firma
A78: Nombre del Notificador: | J78: Nombre del Notificador:
A80: Firma | J80: Firma
A83: MOTIVACIÓN (Anexar Acto Administrativo): | J83: MOTIVACIÓN (Anexar Acto Administrativo):
A85: IX. CALIFICACIÓN DEFINITIVA
A86: CALIFICACIÓN DEFINITIVA EN FIRME | E86: FIRMA Y NÚMERO DE CÉDULA DEL NOTIFICADO | L86: FIRMA Y NÚMERO DE CÉDULA DEL NOTIFICADOR
L119: Cedula de ciudadanía
L120: Cedula de extranjería
D136: Asesor
D137: profesional
D138: Técnico
D139: Asistencial
J160: 60
J161: 61
J162: 62
J163: 63
J164: 64
J165: 65
J166: 66
J167: 67
J168: 68
J169: 69
J170: 70
J171: 71
J172: 72
J173: 73
J174: 74
J175: 75
J176: 76
J177: 77
J178: 78
J179: 79
J180: 80
J181: 81
J182: 82
J183: 83
J184: 84
J185: 85
J186: 86
J187: 87
J188: 88
J189: 89
J190: 90
J191: 91
J192: 92
J193: 93
J194: 94
J195: 95
J196: 96
J197: 97
J198: 98
J199: 99
J200: 100

Sheet Hoja4 (hidden)
N1: 0
A2: CODIGO | C2: DIRECTIVO | N2: 1 | P2: 2016-01-01 | S2: SI | T2: 1% | U2: NO SATISFACTORIO | Z2: UNO
A3: 1050 | C3: ASESOR | D3: MODIFICA LA CALIFICACIÓN | E3: 1 | F3: 6 | H3: 1 | J3: 2016 | L3: 65 | N3: 2 | P3: 2016-01-02 | S3: NO | T3: 2% | U3: NO SATISFACTORIO | Y3: CEDULA DE CIUDADANIA | Z3: UNO | AA3: 1.0 | AB3: NO SATISFACTORIO
A4: 1020 | C4: PROFESIONAL | D4: CONFIRMA LA CALIFICACIÓN | E4: 2 | F4: 9 | G4: X | H4: 2 | J4: 2017 | L4: 76 | N4: 3 | P4: 2016-01-03 | T4: 3% | U4: NO SATISFACTORIO | Z4: UNO | AA4: 1.1 | AB4: NO SATISFACTORIO
A5: 1060 | C5: TECNICO | D5: RECHAZA POR EXTEMPORÁNEA | E5: 3 | F5: 12 | H5: 3 | J5: 2018 | N5: 4 | P5: 2016-01-04 | T5: 4% | U5: NO SATISFACTORIO | Z5: UNO | AA5: 1.2 | AB5: NO SATISFACTORIO
A6: 1045 | C6: ASISTENCIAL | E6: 4 | F6: 15 | H6: 4 | J6: 2019 | N6: 5 | P6: 2016-01-05 | T6: 5% | U6: NO SATISFACTORIO | Z6: UNO | AA6: 1.3 | AB6: NO SATISFACTORIO
A7: 2025 | E7: 5 | F7: 4 | H7: 5 | J7: 2020 | N7: 6 | P7: 2016-01-06 | T7: 6% | U7: NO SATISFACTORIO | Z7: UNO | AA7: 1.4 | AB7: NO SATISFACTORIO
A8: 2001 | E8: 6 | F8: 6 | H8: 6 | J8: 2021 | N8: 7 | P8: 2016-01-07 | T8: 7% | U8: NO SATISFACTORIO | Y8: EVALUADO | Z8: UNO | AA8: 1.5 | AB8: NO SATISFACTORIO
A9: 2132 | C9: CEDULA DE CIUDADANIA | E9: 7 | F9: 8 | H9: 7 | J9: 2022 | N9: 8 | P9: 2016-01-08 | T9: 8% | U9: NO SATISFACTORIO | Y9: EVALUADOR | Z9: UNO | AA9: 1.6 | AB9: NO SATISFACTORIO
A10: 2133 | C10: CEDULA DE EXTRAJERIA | E10: 8 | F10: 10 | H10: 8 | J10: 2023 | N10: 9 | P10: 2016-01-09 | T10: 9% | U10: NO SATISFACTORIO | V10: 1 | W10: 1 | Y10: TERCERO | Z10: UNO | AA10: 1.7 | AB10: NO SATISFACTORIO
A11: 2002 | E11: 9 | H11: 9 | J11: 2024 | N11: 10 | P11: 2016-01-10 | T11: 10% | U11: NO SATISFACTORIO | V11: 2 | W11: 2 | Z11: UNO | AA11: 1.8 | AB11: NO SATISFACTORIO
A12: 2125 | E12: 10 | H12: 10 | J12: 2025 | N12: 11 | P12: 2016-01-11 | T12: 11% | U12: NO SATISFACTORIO | V12: 3 | W12: 3 | Z12: UNO | AA12: 1.9 | AB12: NO SATISFACTORIO
A13: 2137 | E13: 11 | H13: 11 | J13: 2026 | N13: 12 | P13: 2016-01-12 | T13: 12% | U13: NO SATISFACTORIO | V13: 4 | W13: 4 | Z13: UNO | AA13: 2.0 | AB13: NO SATISFACTORIO
A14: 2012 | E14: 12 | H14: 12 | J14: 2027 | N14: 13 | P14: 2016-01-13 | T14: 13% | U14: NO SATISFACTORIO | W14: 5 | Z14: UNO | AA14: 2.1 | AB14: NO SATISFACTORIO
A15: 2014 | C15: SI | E15: 13 | H15: 13 | J15: 2028 | N15: 14 | P15: 2016-01-14 | T15: 14% | U15: NO SATISFACTORIO | W15: 6 | Z15: UNO | AA15: 2.2 | AB15: NO SATISFACTORIO
A16: 2018 | C16: NO | E16: 14 | H16: 14 | J16: 2029 | N16: 15 | P16: 2016-01-15 | T16: 15% | U16: NO SATISFACTORIO | W16: 7 | Z16: UNO | AA16: 2.3 | AB16: NO SATISFACTORIO
A17: 2003 | E17: 15 | H17: 15 | J17: 2030 | N17: 16 | P17: 2016-01-16 | T17: 16% | W17: 8 | Z17: UNO | AA17: 15.0 | AB17: NO SATISFACTORIO
A18: 2004 | E18: 16 | H18: 16 | J18: 2031 | N18: 17 | P18: 2016-01-17 | R18: CONOCIMIENTO DEL ENTORNO | T18: 16% | U18: NO SATISFACTORIO | V18: 5 | W18: 9 | Z18: UNO | AA18: 2.4 | AB18: NO SATISFACTORIO
A19: 2085 | E19: 17 | H19: 17 | J19: 2032 | N19: 18 | P19: 2016-01-18 | T19: 17% | U19: NO SATISFACTORIO | V19: 6 | W19: 10 | Z19: UNO | AA19: 2.5 | AB19: NO SATISFACTORIO
A20: 2120 | E20: 18 | H20: 18 | J20: 2033 | N20: 19 | P20: 2016-01-19 | R20: CONSTRUCCIÓN DE RELACIONES | T20: 18% | U20: NO SATISFACTORIO | V20: 7 | W20: 11 | Z20: UNO | AA20: 2.6 | AB20: NO SATISFACTORIO
A21: 2142 | E21: 19 | H21: 19 | J21: 2034 | N21: 20 | P21: 2016-01-20 | T21: 19% | U21: NO SATISFACTORIO | V21: 7 | W21: 12 | Z21: UNO | AA21: 2.7 | AB21: NO SATISFACTORIO
A22: 2087 | E22: 20 | H22: 20 | J22: 2035 | N22: 21 | P22: 2016-01-21 | T22: 20% | U22: NO SATISFACTORIO | V22: 8 | W22: 13 | Z22: UNO | AA22: 2.8 | AB22: NO SATISFACTORIO
A23: 2123 | E23: 21 | H23: 21 | J23: 2036 | N23: 22 | P23: 2016-01-22 | R23: INICIATIVA | T23: 21% | U23: NO SATISFACTORIO | V23: 8 | W23: 14 | Z23: UNO | AA23: 2.9 | AB23: NO SATISFACTORIO
A24: 2052 | E24: 22 | H24: 22 | J24: 2037 | N24: 23 | P24: 2016-01-23 | T24: 22% | U24: NO SATISFACTORIO | V24: 9 | W24: 15 | Z24: UNO | AA24: 3.0 | AB24: NO SATISFACTORIO
A25: 2009 | E25: 23 | H25: 23 | J25: 2038 | N25: 24 | P25: 2016-01-24 | T25: 23% | U25: NO SATISFACTORIO | V25: 9 | W25: 16 | Z25: UNO | AA25: 3.1 | AB25: NO SATISFACTORIO
A26: 2007 | E26: 24 | H26: 24 | J26: 2039 | L26: 65 | N26: 25 | P26: 2016-01-25 | T26: 24% | U26: NO SATISFACTORIO | V26: 10 | W26: 17 | Z26: UNO | AA26: 3.2 | AB26: NO SATISFACTORIO
A27: 2112 | E27: 25 | H27: 25 | J27: 2040 | L27: 76 | N27: 26 | P27: 2016-01-26 | T27: 25% | U27: NO SATISFACTORIO | V27: 10 | W27: 18 | Z27: UNO | AA27: 3.3 | AB27: NO SATISFACTORIO
A28: 2165 | E28: 26 | H28: 26 | J28: 2042 | L28: 80 | N28: 27 | P28: 2016-01-27 | T28: 26% | U28: NO SATISFACTORIO | V28: 11 | W28: 19 | Z28: UNO | AA28: 3.3 | AB28: NO SATISFACTORIO
A29: 2028 | E29: 27 | H29: 27 | J29: 2043 | L29: 85 | N29: 28 | P29: 2016-01-28 | T29: 27% | U29: NO SATISFACTORIO | V29: 11 | W29: 20 | Z29: DOS | AA29: 3.4 | AB29: NO SATISFACTORIO
A30: 2033 | H30: 28 | J30: 2044 | L30: 90 | N30: 29 | P30: 2016-01-29 | T30: 28% | U30: NO SATISFACTORIO | V30: 12 | W30: 21 | AA30: 3.5 | AB30: NO SATISFACTORIO
A31: 2044 | H31: 29 | J31: 2045 | L31: 95 | N31: 30 | P31: 2016-01-30 | T31: 29% | U31: NO SATISFACTORIO | V31: 13 | W31: 22 | AA31: 3.6 | AB31: NO SATISFACTORIO
A32: 2048 | H32: 30 | J32: 2046 | L32: 100 | N32: 31 | P32: 2016-01-31 | T32: 30% | U32: NO SATISFACTORIO | V32: 13 | W32: 23 | AA32: 3.7 | AB32: NO SATISFACTORIO
A33: 2152 | H33: 31 | J33: 2047 | N33: 32 | P33: 2016-02-01 | T33: 31% | U33: NO SATISFACTORIO | V33: 14 | W33: 24 | AA33: 3.8 | AB33: NO SATISFACTORIO
A34: 2184 | J34: 2048 | N34: 33 | P34: 2016-02-02 | T34: 32% | U34: NO SATISFACTORIO | V34: 14 | W34: 25 | AA34: 3.9 | AB34: NO SATISFACTORIO
A35: 2094 | J35: 2049 | N35: 34 | P35: 2016-02-03 | T35: 33% | U35: NO SATISFACTORIO | V35: 15 | W35: 26 | AA35: 4.0 | AB35: NO SATISFACTORIO
A36: 2186 | J36: 2050 | N36: 35 | P36: 2016-02-04 | T36: 34% | U36: NO SATISFACTORIO | V36: 15 | W36: 27 | AA36: 4.1 | AB36: NO SATISFACTORIO
A37: 2102 | N37: 36 | P37: 2016-02-05 | T37: 35% | U37: NO SATISFACTORIO | V37: 16 | W37: 28 | AA37: 4.2 | AB37: NO SATISFACTORIO
A38: 2103 | N38: 37 | P38: 2016-02-06 | T38: 36% | U38: NO SATISFACTORIO | V38: 16 | W38: 29 | AA38: 4.3 | AB38: NO SATISFACTORIO
A39: 2114 | N39: 38 | P39: 2016-02-07 | T39: 37% | U39: NO SATISFACTORIO | V39: 17 | W39: 30 | AA39: 4.4 | AB39: NO SATISFACTORIO
A40: 2147 | N40: 39 | P40: 2016-02-08 | T40: 38% | U40: NO SATISFACTORIO | V40: 17 | W40: 31 | AA40: 4.5 | AB40: NO SATISFACTORIO
A41: 2116 | N41: 40 | P41: 2016-02-09 | T41: 39% | U41: NO SATISFACTORIO | V41: 18 | W41: 32 | AA41: 4.6 | AB41: NO SATISFACTORIO
A42: 3003 | N42: 41 | P42: 2016-02-10 | T42: 40% | U42: NO SATISFACTORIO | V42: 19 | W42: 33 | AA42: 4.7 | AB42: NO SATISFACTORIO
A43: 3038 | N43: 42 | P43: 2016-02-11 | T43: 41% | U43: NO SATISFACTORIO | V43: 19 | W43: 34 | AA43: 4.8 | AB43: NO SATISFACTORIO
A44: 3046 | N44: 43 | P44: 2016-02-12 | T44: 42% | U44: NO SATISFACTORIO | V44: 20 | W44: 35 | AA44: 4.9 | AB44: NO SATISFACTORIO
A45: 3054 | N45: 44 | P45: 2016-02-13 | T45: 43% | U45: NO SATISFACTORIO | V45: 20 | W45: 36 | AA45: 5.0 | AB45: NO SATISFACTORIO
A46: 3066 | N46: 45 | P46: 2016-02-14 | T46: 44% | U46: NO SATISFACTORIO | V46: 21 | W46: 37 | AA46: 5.1 | AB46: NO SATISFACTORIO
A47: 3066 | N47: 46 | P47: 2016-02-15 | T47: 45% | U47: NO SATISFACTORIO | V47: 21 | W47: 38 | AA47: 5.6 | AB47: NO SATISFACTORIO
A48: 3074 | N48: 47 | P48: 2016-02-16 | T48: 46% | U48: NO SATISFACTORIO | V48: 22 | W48: 39 | AA48: 5.7 | AB48: NO SATISFACTORIO
A49: 3078 | N49: 48 | P49: 2016-02-17 | T49: 47% | U49: NO SATISFACTORIO | V49: 22 | W49: 40 | AA49: 5.8 | AB49: NO SATISFACTORIO
A50: 3080 | N50: 49 | P50: 2016-02-18 | T50: 48% | U50: NO SATISFACTORIO | V50: 23 | W50: 41 | AA50: 5.9 | AB50: NO SATISFACTORIO
A51: 3084 | N51: 50 | P51: 2016-02-19 | T51: 49% | U51: NO SATISFACTORIO | V51: 23 | W51: 42 | AA51: 6.0 | AB51: NO SATISFACTORIO
A52: 3092 | N52: 51 | P52: 2016-02-20 | T52: 50% | U52: NO SATISFACTORIO | V52: 24 | W52: 43 | AA52: 6.1 | AB52: NO SATISFACTORIO
A53: 3094 | N53: 52 | P53: 2016-02-21 | T53: 51% | U53: NO SATISFACTORIO | V53: 25 | W53: 44 | AA53: 6.2 | AB53: NO SATISFACTORIO
A54: 3070 | N54: 53 | P54: 2016-02-22 | T54: 52% | U54: NO SATISFACTORIO | W54: 45 | AA54: 6.3 | AB54: NO SATISFACTORIO
A55: 3102 | N55: 54 | P55: 2016-02-23 | T55: 53% | U55: NO SATISFACTORIO | W55: 46 | Z55: TRES | AA55: 6.4 | AB55: NO SATISFACTORIO
A56: 3105 | N56: 55 | P56: 2016-02-24 | T56: 54% | U56: NO SATISFACTORIO | W56: 47 | AA56: 6.5 | AB56: NO SATISFACTORIO
A57: 3110 | N57: 56 | P57: 2016-02-25 | T57: 55% | U57: NO SATISFACTORIO | W57: 48 | AA57: 6.6 | AB57: NO SATISFACTORIO
A58: 3116 | N58: 57 | P58: 2016-02-26 | T58: 56% | U58: NO SATISFACTORIO | W58: 49 | AA58: 6.7 | AB58: NO SATISFACTORIO
A59: 3118 | N59: 58 | P59: 2016-02-27 | T59: 57% | U59: NO SATISFACTORIO | W59: 50 | AA59: 6.8 | AB59: NO SATISFACTORIO
A60: 3100 | N60: 59 | P60: 2016-02-28 | T60: 58% | U60: NO SATISFACTORIO | W60: 51 | AA60: 6.9 | AB60: NO SATISFACTORIO
A61: 3124 | N61: 60 | P61: 2016-02-29 | T61: 59% | U61: NO SATISFACTORIO | W61: 52 | AA61: 7.0 | AB61: NO SATISFACTORIO
A62: 3234 | N62: 61 | P62: 2016-03-01 | T62: 60% | U62: NO SATISFACTORIO | W62: 53 | AA62: 7.1 | AB62: NO SATISFACTORIO
A63: 3128 | N63: 62 | P63: 2016-03-02 | T63: 61% | U63: NO SATISFACTORIO | W63: 54 | AA63: 7.2 | AB63: NO SATISFACTORIO
A64: 3132 | N64: 63 | P64: 2016-03-03 | T64: 62% | U64: NO SATISFACTORIO | W64: 55 | AA64: 7.3 | AB64: NO SATISFACTORIO
A65: 3136 | N65: 64 | P65: 2016-03-04 | T65: 63% | U65: NO SATISFACTORIO | W65: 56 | AA65: 7.4 | AB65: NO SATISFACTORIO
A66: 3142 | N66: 65 | P66: 2016-03-05 | T66: 64% | U66: NO SATISFACTORIO | W66: 57 | AA66: 7.5 | AB66: NO SATISFACTORIO
A67: 3142 | N67: 66 | P67: 2016-03-06 | T67: 65% | U67: SATISFACTORIO | W67: 58 | AA67: 7.6 | AB67: NO SATISFACTORIO
A68: 3142 | N68: 67 | P68: 2016-03-07 | T68: 66% | U68: SATISFACTORIO | W68: 59 | AA68: 7.7 | AB68: NO SATISFACTORIO
A69: 3142 | N69: 68 | P69: 2016-03-08 | T69: 67% | U69: SATISFACTORIO | W69: 60 | AA69: 7.8 | AB69: NO SATISFACTORIO
A70: 3142 | N70: 69 | P70: 2016-03-09 | T70: 68% | U70: SATISFACTORIO | W70: 61 | AA70: 7.9 | AB70: NO SATISFACTORIO
A71: 4002 | N71: 70 | P71: 2016-03-10 | T71: 69% | U71: SATISFACTORIO | W71: 62 | AA71: 8.0 | AB71: NO SATISFACTORIO
A72: 4006 | N72: 71 | P72: 2016-03-11 | T72: 70% | U72: SATISFACTORIO | W72: 63 | AA72: 8.1 | AB72: NO SATISFACTORIO
A73: 4008 | N73: 72 | P73: 2016-03-12 | T73: 71% | U73: SATISFACTORIO | W73: 64 | AA73: 8.2 | AB73: NO SATISFACTORIO
A74: 4026 | N74: 73 | P74: 2016-03-13 | T74: 72% | U74: SATISFACTORIO | W74: 65 | AA74: 8.3 | AB74: NO SATISFACTORIO
A75: 4028 | N75: 74 | P75: 2016-03-14 | T75: 73% | U75: SATISFACTORIO | W75: 66 | AA75: 8.4 | AB75: NO SATISFACTORIO
A76: 4032 | N76: 75 | P76: 2016-03-15 | T76: 74% | U76: SATISFACTORIO | W76: 67 | AA76: 8.5 | AB76: NO SATISFACTORIO
A77: 4034 | N77: 76 | P77: 2016-03-16 | T77: 75% | U77: SATISFACTORIO | W77: 68 | AA77: 8.6 | AB77: NO SATISFACTORIO
A78: 4036 | N78: 77 | P78: 2016-03-17 | T78: 76% | U78: SATISFACTORIO | W78: 69 | AA78: 8.7 | AB78: NO SATISFACTORIO
A79: 4038 | N79: 78 | P79: 2016-03-18 | T79: 77% | U79: SATISFACTORIO | W79: 70 | AA79: 8.9 | AB79: NO SATISFACTORIO
A80: 4044 | N80: 79 | P80: 2016-03-19 | T80: 78% | U80: SATISFACTORIO | W80: 71 | AA80: 9.0 | AB80: NO SATISFACTORIO
A81: 4048 | N81: 80 | P81: 2016-03-20 | T81: 79% | U81: SATISFACTORIO | W81: 72 | Z81: CUATRO | AA81: 9.1 | AB81: NO SATISFACTORIO
A82: 4056 | N82: 81 | P82: 2016-03-21 | T82: 80% | U82: DESTACADO | W82: 73 | AA82: 9.2 | AB82: NO SATISFACTORIO
A83: 4064 | N83: 82 | P83: 2016-03-22 | T83: 81% | U83: DESTACADO | W83: 74 | AA83: 9.3 | AB83: NO SATISFACTORIO
A84: 4069 | N84: 83 | P84: 2016-03-23 | T84: 82% | U84: DESTACADO | W84: 75 | AA84: 9.4 | AB84: NO SATISFACTORIO
A85: 4078 | N85: 84 | P85: 2016-03-24 | T85: 83% | U85: DESTACADO | W85: 76 | AA85: 9.5 | AB85: NO SATISFACTORIO
A86: 4097 | N86: 85 | P86: 2016-03-25 | T86: 84% | U86: DESTACADO | W86: 77 | AA86: 9.6 | AB86: NO SATISFACTORIO
A87: 4097 | N87: 86 | P87: 2016-03-26 | T87: 85% | U87: DESTACADO | W87: 78 | AA87: 9.7 | AB87: NO SATISFACTORIO
A88: 4097 | N88: 87 | P88: 2016-03-27 | T88: 86% | U88: DESTACADO | W88: 79 | AA88: 9.8 | AB88: NO SATISFACTORIO
A89: 4097 | N89: 88 | P89: 2016-03-28 | T89: 87% | U89: DESTACADO | W89: 80 | AA89: 9.9 | AB89: NO SATISFACTORIO
A90: 4097 | N90: 89 | P90: 2016-03-29 | T90: 88% | U90: DESTACADO | W90: 81 | AA90: 10.0 | AB90: NO SATISFACTORIO
A91: 4103 | N91: 90 | P91: 2016-03-30 | T91: 89% | U91: DESTACADO | W91: 82 | AA91: 10.1 | AB91: NO SATISFACTORIO
A92: 4112 | N92: 91 | P92: 2016-03-31 | T92: 90% | U92: DESTACADO | W92: 83 | AA92: 10.2 | AB92: NO SATISFACTORIO
A93: 4114 | N93: 92 | P93: 2016-04-01 | T93: 91% | U93: DESTACADO | W93: 84 | AA93: 10.3 | AB93: NO SATISFACTORIO
A94: 4123 | N94: 93 | P94: 2016-04-02 | T94: 93% | U94: DESTACADO | W94: 85 | AA94: 10.4 | AB94: NO SATISFACTORIO
A95: 4128 | N95: 94 | P95: 2016-04-03 | T95: 94% | U95: DESTACADO | W95: 86 | AA95: 10.5 | AB95: NO SATISFACTORIO
A96: 4137 | N96: 95 | P96: 2016-04-04 | T96: 95% | U96: SOBRESALIENTE | W96: 87 | AA96: 10.6 | AB96: NO SATISFACTORIO
A97: 4152 | N97: 96 | P97: 2016-04-05 | T97: 96% | U97: SOBRESALIENTE | W97: 88 | AA97: 10.7 | AB97: NO SATISFACTORIO
A98: 4158 | N98: 97 | P98: 2016-04-06 | T98: 97% | U98: SOBRESALIENTE | W98: 89 | AA98: 10.8 | AB98: NO SATISFACTORIO
A99: 4167 | N99: 98 | P99: 2016-04-07 | T99: 98% | U99: SOBRESALIENTE | W99: 90 | AA99: 10.9 | AB99: NO SATISFACTORIO
A100: 4169 | N100: 99 | P100: 2016-04-08 | T100: 99% | U100: SOBRESALIENTE | W100: 91 | AA100: 11.0 | AB100: NO SATISFACTORIO
A101: 4173 | N101: 100 | P101: 2016-04-09 | T101: 100% | U101: SOBRESALIENTE | W101: 92 | AA101: 11.1 | AB101: NO SATISFACTORIO
A102: 4178 | P102: 2016-04-10 | T102: 101% | U102: SOBRESALIENTE | W102: 93 | AA102: 11.2 | AB102: NO SATISFACTORIO
A103: 4182 | N103: 98% | P103: 2016-04-11 | W103: 94 | AA103: 11.3 | AB103: NO SATISFACTORIO
A104: 4210 | N104: 99% | P104: 2016-04-12 | W104: 95 | AA104: 11.4 | AB104: NO SATISFACTORIO
A105: 4212 | N105: 100% | P105: 2016-04-13 | W105: 96 | AA105: 11.5 | AB105: NO SATISFACTORIO
A106: 4215 | P106: 2016-04-14 | W106: 97 | AA106: 11.6 | AB106: NO SATISFACTORIO
A107: 4220 | P107: 2016-04-15 | W107: 98 | Z107: CINCO | AA107: 11.7 | AB107: NO SATISFACTORIO
A108: 4222 | P108: 2016-04-16 | W108: 99 | AA108: 11.8 | AB108: NO SATISFACTORIO
A109: 4225 | P109: 2016-04-17 | W109: 100 | AA109: 11.9 | AB109: NO SATISFACTORIO
A110: 4225 | P110: 2016-04-18 | W110: 101 | AA110: 12.0 | AB110: NO SATISFACTORIO
P111: 2016-04-19 | W111: 102 | AA111: 12.1 | AB111: NO SATISFACTORIO
P112: 2016-04-20 | W112: 103 | AA112: 12.2 | AB112: NO SATISFACTORIO
A113: Agregado para Asuntos Aéreos | P113: 2016-04-21 | W113: 104 | AA113: 12.3 | AB113: NO SATISFACTORIO
A114: Asesor | P114: 2016-04-22 | W114: 105 | AA114: 12.4 | AB114: NO SATISFACTORIO
A115: Asesor Comercial | P115: 2016-04-23 | W115: 106 | AA115: 12.5 | AB115: NO SATISFACTORIO
A116: Jefe de Oficina Asesora de Comunicaciones o de Prensa o de Jurídica o de Planeación | P116: 2016-04-24 | W116: 107 | AA116: 12.6 | AB116: NO SATISFACTORIO
A117: Administrador de Parques Nacionales | P117: 2016-04-25 | W117: 108 | AA117: 12.7 | AB117: NO SATISFACTORIO
A118: Jefe de Área protegida | P118: 2016-04-26 | W118: 109 | AA118: 12.8 | AB118: NO SATISFACTORIO
A119: Capellán | P119: 2016-04-27 | W119: 110 | AA119: 12.9 | AB119: NO SATISFACTORIO
A120: Comandante Superior de Prisiones | P120: 2016-04-28 | W120: 111 | AA120: 13.0 | AB120: NO SATISFACTORIO
A121: Consejero de Relaciones Exteriores | P121: 2016-04-29 | W121: 112 | AA121: 13.1 | AB121: NO SATISFACTORIO
A122: Copiloto de Aviación | P122: 2016-04-30 | W122: 113 | AA122: 13.2 | AB122: NO SATISFACTORIO
A123: Defensor de Familia | P123: 2016-05-01 | W123: 114 | AA123: 13.3 | AB123: NO SATISFACTORIO
A124: Director de Establecimiento Carcelario | P124: 2016-05-02 | W124: 115 | AA124: 13.4 | AB124: NO SATISFACTORIO
A125: Especialista Asesor Primero | P125: 2016-05-03 | W125: 116 | AA125: 13.5 | AB125: NO SATISFACTORIO
A126: Especialista Jefe | P126: 2016-05-04 | W126: 117 | AA126: 13.6 | AB126: NO SATISFACTORIO
A127: Inspector de Trabajo y Seguridad Social | P127: 2016-05-05 | W127: 118 | AA127: 13.7 | AB127: NO SATISFACTORIO
A128: Inspector de Trabajo y Seguridad Social Especializado | P128: 2016-05-06 | W128: 119 | AA128: 13.8 | AB128: NO SATISFACTORIO
A129: Médico | P129: 2016-05-07 | W129: 120 | AA129: 13.9 | AB129: NO SATISFACTORIO
A130: Médico Especialista | P130: 2016-05-08 | W130: 121 | AA130: 14.0 | AB130: NO SATISFACTORIO
A131: Odontólogo | P131: 2016-05-09 | W131: 122 | AA131: 14.1 | AB131: NO SATISFACTORIO
A132: Odontólogo Especialista | P132: 2016-05-10 | W132: 123 | AA132: 14.2 | AB132: NO SATISFACTORIO
A133: Oficial Logístico | P133: 2016-05-11 | W133: 124 | Z133: SEIS | AA133: 14.3 | AB133: NO SATISFACTORIO
A134: Oficial de Tratamiento Penitenciario | P134: 2016-05-12 | W134: 125 | AA134: 14.4 | AB134: NO SATISFACTORIO
A135: Pastor u Orientador Espiritual | P135: 2016-05-13 | W135: 126 | AA135: 14.5 | AB135: NO SATISFACTORIO
A136: Piloto de Aviación | P136: 2016-05-14 | W136: 127 | AA136: 14.6 | AB136: NO SATISFACTORIO
A137: Primer Secretario de Relaciones Exteriores | P137: 2016-05-15 | W137: 128 | AA137: 14.7 | AB137: NO SATISFACTORIO
A138: Profesional de Gestión Institucional | P138: 2016-05-16 | W138: 129 | AA138: 14.8 | AB138: NO SATISFACTORIO
A139: Profesional de Gestión Institucional | P139: 2016-05-17 | W139: 130 | AA139: 14.9 | AB139: NO SATISFACTORIO
A140: Profesional Especializado | P140: 2016-05-18 | W140: 131 | AA140: 15.0 | AB140: NO SATISFACTORIO
A141: Profesional Especializado Area de la Salud | P141: 2016-05-19 | W141: 132 | AA141: 15.1 | AB141: NO SATISFACTORIO
A142: Profesional Universitario | P142: 2016-05-20 | W142: 133 | AA142: 15.2 | AB142: NO SATISFACTORIO
A143: Profesional Universitario Area de la Salud | P143: 2016-05-21 | W143: 134 | AA143: 15.3 | AB143: NO SATISFACTORIO
A144: Registrador Delegado | P144: 2016-05-22 | W144: 135 | AA144: 15.4 | AB144: NO SATISFACTORIO
A145: Registrador Seccional | P145: 2016-05-23 | W145: 136 | AA145: 15.5 | AB145: NO SATISFACTORIO
A146: Representante del Ministro de Educación ante Entidad Territorial | P146: 2016-05-24 | W146: 137 | AA146: 15.6 | AB146: NO SATISFACTORIO
A147: Restaurador o Museólogo o Curador | P147: 2016-05-25 | W147: 138 | AA147: 15.7 | AB147: NO SATISFACTORIO
A148: Secretario de Facultad | P148: 2016-05-26 | W148: 139 | AA148: 15.8 | AB148: NO SATISFACTORIO
A149: Secretario Comercial I | P149: 2016-05-27 | W149: 140 | AA149: 15.9 | AB149: NO SATISFACTORIO
A150: Secretario Comercial II | P150: 2016-05-28 | W150: 141 | AA150: 16.0 | AB150: NO SATISFACTORIO
A151: Segundo Secretario de Relaciones Exteriores | P151: 2016-05-29 | W151: 142 | AA151: 16.1 | AB151: NO SATISFACTORIO
A152: Subdirector de Establecimiento Carcelario | P152: 2016-05-30 | W152: 143 | AA152: 16.2 | AB152: NO SATISFACTORIO
A153: Tercer Secretario de Relaciones Exteriores | P153: 2016-05-31 | W153: 144 | AA153: 16.3 | AB153: NO SATISFACTORIO
A154: Analista de Sistemas | P154: 2016-06-01 | W154: 145 | AA154: 16.4 | AB154: NO SATISFACTORIO
A155: Auxiliar de Escena | P155: 2016-06-02 | W155: 146 | AA155: 16.5 | AB155: NO SATISFACTORIO
A156: Auxiliar de Pronóstico | P156: 2016-06-03 | W156: 147 | AA156: 16.6 | AB156: NO SATISFACTORIO
A157: Auxiliar de Técnico | P157: 2016-06-04 | W157: 148 | AA157: 16.7 | AB157: NO SATISFACTORIO
A158: Dactiloscopista | P158: 2016-06-05 | W158: 149 | AA158: 16.8 | AB158: NO SATISFACTORIO
A159: Tecnico | P159: 2016-06-06 | W159: 150 | Z159: SIETE | AA159: 16.9 | AB159: NO SATISFACTORIO
A160: Especialista Primero | P160: 2016-06-07 | W160: 151 | AA160: 17.0 | AB160: NO SATISFACTORIO
A161: Especialista Segundo | P161: 2016-06-08 | W161: 152 | AA161: 17.1 | AB161: NO SATISFACTORIO
A162: Especialista Tercero | P162: 2016-06-09 | W162: 153 | AA162: 17.2 | AB162: NO SATISFACTORIO
A163: Especialista Cuarto | P163: 2016-06-10 | W163: 154 | AA163: 17.3 | AB163: NO SATISFACTORIO
A164: Especialista Quinto | P164: 2016-06-11 | W164: 155 | AA164: 17.4 | AB164: NO SATISFACTORIO
A165: Especialista Sexto | P165: 2016-06-12 | W165: 156 | AA165: 17.5 | AB165: NO SATISFACTORIO
A166: Instructor | P166: 2016-06-13 | W166: 157 | AA166: 17.6 | AB166: NO SATISFACTORIO
A167: Instrumentador Quirúrgico | P167: 2016-06-14 | W167: 158 | AA167: 17.7 | AB167: NO SATISFACTORIO
A168: Observador de Superficie | P168: 2016-06-15 | W168: 159 | AA168: 17.8 | AB168: NO SATISFACTORIO
A169: Oficial de Catastro | P169: 2016-06-16 | W169: 160 | AA169: 17.9 | AB169: NO SATISFACTORIO
A170: Pronosticador | P170: 2016-06-17 | W170: 161 | AA170: 18.0 | AB170: NO SATISFACTORIO
A171: Radiosondista | P171: 2016-06-18 | W171: 162 | AA171: 18.1 | AB171: NO SATISFACTORIO
A172: Técnico | P172: 2016-06-19 | W172: 163 | AA172: 18.2 | AB172: NO SATISFACTORIO
A173: Técnico Administrativo | P173: 2016-06-20 | W173: 164 | AA173: 18.3 | AB173: NO SATISFACTORIO
A174: Técnico Area Salud | P174: 2016-06-21 | W174: 165 | AA174: 18.4 | AB174: NO SATISFACTORIO
A175: Técnico de Servicios Asistenciales | P175: 2016-06-22 | W175: 166 | AA175: 18.5 | AB175: NO SATISFACTORIO
A176: Técnico Operativo | P176: 2016-06-23 | W176: 167 | AA176: 18.6 | AB176: NO SATISFACTORIO
A177: Topógrafo | P177: 2016-06-24 | W177: 168 | AA177: 18.7 | AB177: NO SATISFACTORIO
A178: Topógrafo Tecnólogo | P178: 2016-06-25 | W178: 169 | AA178: 18.8 | AB178: NO SATISFACTORIO
A179: Adjunto Jefe | P179: 2016-06-26 | W179: 170 | AA179: 18.9 | AB179: NO SATISFACTORIO
A180: Adjunto Intendente | P180: 2016-06-27 | W180: 171 | AA180: 19.0 | AB180: NO SATISFACTORIO
A181: Adjunto Mayor | P181: 2016-06-28 | W181: 172 | AA181: 19.1 | AB181: NO SATISFACTORIO
A182: Adjunto Especial | P182: 2016-06-29 | W182: 173 | AA182: 19.2 | AB182: NO SATISFACTORIO
A183: Adjunto Primero | P183: 2016-06-30 | W183: 174 | AA183: 19.3 | AB183: NO SATISFACTORIO
A184: Adjunto Segundo | P184: 2016-07-01 | W184: 175 | AA184: 19.4 | AB184: NO SATISFACTORIO
A185: Adjunto Tercero | P185: 2016-07-02 | W185: 176 | Z185: OCHO | AA185: 19.5 | AB185: NO SATISFACTORIO
A186: Adjunto Cuarto | P186: 2016-07-03 | W186: 177 | AA186: 19.6 | AB186: NO SATISFACTORIO
A187: Adjunto Quinto | P187: 2016-07-04 | W187: 178 | AA187: 19.7 | AB187: NO SATISFACTORIO
A188: Auxiliar Administrativo | P188: 2016-07-05 | W188: 179 | AA188: 19.8 | AB188: NO SATISFACTORIO
A189: Auxiliar Area Salud | P189: 2016-07-06 | W189: 180 | AA189: 19.9 | AB189: NO SATISFACTORIO
A190: Auxiliar Bilingüe | P190: 2016-07-07 | W190: 181 | AA190: 20.0 | AB190: NO SATISFACTORIO
A191: Auxiliar de Servicios Asistenciales | P191: 2016-07-08 | W191: 182 | AA191: 20.1 | AB191: NO SATISFACTORIO
A192: Auxiliar de Servicios Generales | P192: 2016-07-09 | W192: 183 | AA192: 20.2 | AB192: NO SATISFACTORIO
A193: Capitán de Prisiones | P193: 2016-07-10 | W193: 184 | AA193: 20.3 | AB193: NO SATISFACTORIO
A194: Celador | P194: 2016-07-11 | W194: 185 | AA194: 20.4 | AB194: NO SATISFACTORIO
A195: Asistencial | P195: 2016-07-12 | W195: 186 | AA195: 20.5 | AB195: NO SATISFACTORIO
A196: Conductor Mecánico | P196: 2016-07-13 | W196: 187 | AA196: 20.6 | AB196: NO SATISFACTORIO
A197: Distinguido | P197: 2016-07-14 | W197: 188 | AA197: 20.7 | AB197: NO SATISFACTORIO
A198: Dragoneante | P198: 2016-07-15 | W198: 189 | AA198: 20.8 | AB198: NO SATISFACTORIO
A199: Ecónomo | P199: 2016-07-16 | W199: 190 | AA199: 20.9 | AB199: NO SATISFACTORIO
A200: Enfermero Auxiliar | P200: 2016-07-17 | W200: 191 | AA200: 21.0 | AB200: NO SATISFACTORIO
... 997 more rows

Sheet F10. EVA. INFERIOR A 1 AÑO
E2: COMISIÓN NACIONAL DEL SERVICIO CIVIL | P2: INSERTE EL LOGOTIPO DE SU ENTIDAD
E4: FORMATO 10 EVALUACIÓN INFERIOR A UN (1) AÑO.
E6: PROCESO: EVALUACIÓN DEL DESEMPEÑO LABORAL | H6: Código: | J6: F-ED-011 | L6: Página | N6: 1 de 1
H7: Fecha de emisión: | J7: 2016-12-27 | L7: Versión: | N7: 2.0
A8: PERÍODO DE EVALUACIÓN | E8: DÍA | F8: MES | G8: AÑO | H8: al | J8: DÍA | K8: MES | L8: AÑO | M8: FECHA DE EVALUACIÓN | Q8: DÍA | R8: MES | S8: AÑO
E9: 16 | F9: 11 | G9: 2017 | J9: 31 | K9: 1 | L9: 2018 | Q9: 15 | R9: 2 | S9: 2018
A10: I. IDENTIFICACIÓN DEL EVALUADO
A11: Tipo de Documento | C11: Número de identificación | F11: Primer apellido | I11: Segundo apellido | L11: Primer nombre | P11: Otros nombres
A12: ='F2. COMP. LAB Y COM COMPOR'!A13:B13 -> CEDULA DE CIUDADANIA | C12: ='F2. COMP. LAB Y COM COMPOR'!C13:E13 -> 123,456,789 | F12: ='F2. COMP. LAB Y COM COMPOR'!F13:H13 -> PEREZ | I12: ='F2. COMP. LAB Y COM COMPOR'!I13:K13 ->  | L12: ='F2. COMP. LAB Y COM COMPOR'!L13:O13 -> PABLO | P12: ='F2. COMP. LAB Y COM COMPOR'!P13:S13 -> 
A13: Dependencia o área a la que pertenece el evaluado | I13: Denominación del empleo
A14: ='F2. COMP. LAB Y COM COMPOR'!A15:H15 -> Dirección de Talento Humano | I14: ='F2. COMP. LAB Y COM COMPOR'!I15:S15 -> Profesional Especializado
A15: Nivel jerárquico | F15: Código | H15: Grado | I15: ='F2. COMP. LAB Y COM COMPOR'!I16 -> Propósito del empleo: | L15: ='F2. COMP. LAB Y COM COMPOR'!J16 -> El que obra en el manual de funciones
A16: ='F2. COMP. LAB Y COM COMPOR'!A17:E17 -> PROFESIONAL | F16: ='F2. COMP. LAB Y COM COMPOR'!F17:G17 -> 2028 | H16: ='F2. COMP. LAB Y COM COMPOR'!H17 -> 19
A17: II. IDENTIFICACIÓN EVALUADOR. (Jefe inmediato)
A18: Tipo de documento | C18: Número de identificación | F18: Primer apellido | I18: Segundo apellido | L18: Primer nombre | P18: Otros nombres
A19: ='F2. COMP. LAB Y COM COMPOR'!A20:B20 -> CEDULA DE CIUDADANIA | C19: ='F2. COMP. LAB Y COM COMPOR'!C20:E20 -> 80,536,985 | F19: ='F2. COMP. LAB Y COM COMPOR'!F20:H20 -> ARDILA | I19: ='F2. COMP. LAB Y COM COMPOR'!I20:K20 ->  | L19: ='F2. COMP. LAB Y COM COMPOR'!L20:O20 -> FERNANDO | P19: ='F2. COMP. LAB Y COM COMPOR'!P20:S20 -> 
A20: Área o Dependencia a la que pertenece el evaluador | G20: Denominación del empleo | N20: Código | P20: Grado | R20: Nivel jerárquico
A21: ='F2. COMP. LAB Y COM COMPOR'!A22:F22 -> Dirección de Talento Humano | G21: ='F2. COMP. LAB Y COM COMPOR'!G22:M22 -> Director de Talento Humano | N21: ='F2. COMP. LAB Y COM COMPOR'!N22:O22 -> xxxx | P21: ='F2. COMP. LAB Y COM COMPOR'!P22:Q22 -> xxxx | R21: ='F2. COMP. LAB Y COM COMPOR'!R22:S22 -> DIRECTIVO
A22: III. IDENTIFICACIÓN EVALUADOR (Servidor público de Libre Nombramiento y Remoción en caso de constituir Comisión Evaluadora)
A23: Tipo de documento | C23: Número de identificación | F23: Primer apellido | I23: Segundo apellido | L23: Primer nombre | P23: Otros nombres
A24: ='F2. COMP. LAB Y COM COMPOR'!A26:B26 -> CEDULA DE CIUDADANIA | C24: =IF('F2. COMP. LAB Y COM COMPOR'!R24="NO","NO REQUERIDO",'F2. COMP. LAB Y COM COMPOR'!C26:E26) -> NO REQUERIDO | F24: =IF('F2. COMP. LAB Y COM COMPOR'!R24="NO","NO REQUERIDO",'F2. COMP. LAB Y COM COMPOR'!F26:H26) -> NO REQUERIDO | I24: =IF('F2. COMP. LAB Y COM COMPOR'!R24="NO","NO REQUERIDO",'F2. COMP. LAB Y COM COMPOR'!I26:K26) -> NO REQUERIDO | L24: =IF('F2. COMP. LAB Y COM COMPOR'!R24="NO","NO REQUERIDO",'F2. COMP. LAB Y COM COMPOR'!L26:O26) -> NO REQUERIDO | P24: =IF('F2. COMP. LAB Y COM COMPOR'!R24="NO","NO REQUERIDO",'F2. COMP. LAB Y COM COMPOR'!P26:S26) -> NO REQUERIDO
A25: Dependencia o área a la que pertenece el evaluador | G25: Denominación del empleo | N25: Código | P25: Grado | R25: Nivel jerárquico
A26: =IF('F2. COMP. LAB Y COM COMPOR'!R24="NO","NO REQUERIDO",'F2. COMP. LAB Y COM COMPOR'!A28:F28) -> NO REQUERIDO | G26: =IF('F2. COMP. LAB Y COM COMPOR'!R24="NO","NO REQUERIDO",'F2. COMP. LAB Y COM COMPOR'!G28:M28) -> NO REQUERIDO | N26: =IF('F2. COMP. LAB Y COM COMPOR'!R24="NO","NO REQUERIDO",'F2. COMP. LAB Y COM COMPOR'!N28:O28) -> NO REQUERIDO | P26: =IF('F2. COMP. LAB Y COM COMPOR'!R24="NO","NO REQUERIDO",'F2. COMP. LAB Y COM COMPOR'!P28:Q28) -> NO REQUERIDO | R26: =IF('F2. COMP. LAB Y COM COMPOR'!R24="NO","NO REQUERIDO",'F2. COMP. LAB Y COM COMPOR'!R28:S28) -> NO REQUERIDO
A27: IV. COMPROMISOS LABORALES
A28: Metas de la Dependencia las cuales contribuye el empleo | E28: Compromisos Laborales. | J28: Peso porcentual del compromiso | L28: Porcentaje de Cumplimiento.
L30: EVALUACIÓN REALIZADA PREVIA A LA PRESENTE | P30: EVALUACIÓN ULTIMO PERÍODO
L31: Peso porcentual Evaluaciones previas | M31: CALIFICACIÓN DEL COMPROMISO | N31: CALIFICACIÓN DEL COMPROMISO (Con peso porcentual) | P31: Peso porcentual último período | Q31: CALIFICACIÓN DEL COMPROMISO | R31: CALIFICACIÓN DEL COMPROMISO (Con peso porcentual)
A32: ='F2. COMP. LAB Y COM COMPOR'!A37 -> Meta 1 | E32: ='F2. COMP. LAB Y COM COMPOR'!H37 -> Compromiso laboral 1 | J32: ='F2. COMP. LAB Y COM COMPOR'!S37 -> 20% | N32: =IFERROR(($M32*L32),0) -> 0.00 | P32: =IFERROR((J32-L32),0) -> 20.00% | Q32: 100 | R32: =IFERROR(($Q32*P32),0) -> 20.00
A34: ='F2. COMP. LAB Y COM COMPOR'!A39 -> Meta 1 | E34: ='F2. COMP. LAB Y COM COMPOR'!H39 -> Compromiso laboral 2 | J34: ='F2. COMP. LAB Y COM COMPOR'!S39 -> 13% | N34: =IFERROR(($M34*L34),0) -> 0.00 | P34: =IFERROR((J34-L34),0) -> 12.50% | Q34: 100 | R34: =IFERROR(($Q34*P34),0) -> 12.50
A36: ='F2. COMP. LAB Y COM COMPOR'!A41 -> Meta 2 | E36: ='F2. COMP. LAB Y COM COMPOR'!H41 -> Compromiso laboral 3 | J36: ='F2. COMP. LAB Y COM COMPOR'!S41 -> 20% | N36: =IFERROR(($M36*L36),0) -> 0.00 | P36: =IFERROR((J36-L36),0) -> 20.00% | Q36: 100 | R36: =IFERROR(($Q36*P36),0) -> 20.00
A38: ='F2. COMP. LAB Y COM COMPOR'!A43 -> Meta 3 | E38: ='F2. COMP. LAB Y COM COMPOR'!H43 -> Compromiso laboral 4 | J38: ='F2. COMP. LAB Y COM COMPOR'!S43 -> 23% | N38: =IFERROR(($M38*L38),0) -> 0.00 | P38: =IFERROR((J38-L38),0) -> 22.50% | Q38: 100 | R38: =IFERROR(($Q38*P38),0) -> 22.50
A40: ='F2. COMP. LAB Y COM COMPOR'!A45 -> Meta 4 | E40: ='F2. COMP. LAB Y COM COMPOR'!H45 -> Compromiso laboral 5 | J40: ='F2. COMP. LAB Y COM COMPOR'!S45 -> 25% | N40: =IFERROR(($M40*L40),0) -> 0.00 | P40: =IFERROR((J40-L40),0) -> 25.00% | Q40: 100 | R40: =IFERROR(($Q40*P40),0) -> 25.00
A42: PESO TOTAL PONDERADO DE LOS COMPROMISOS LABORALES | J42: =IF(SUM(J32:K41)<1,CONCATENATE("ERROR!!: Sumatoria menor a 100% (",TEXT(SUM(J32:K41),"0%)")),SUM(J32:K41)) -> 100% | L42: Resultado total | O42: =SUMIF(N32:O41,"<100",N32:O41)/100 -> 0.00% | P42: Resultado total | S42: =SUMIF(R32:S41,"<100",R32:S41)/100 -> 100.00%
A43: Días Efectivamente Laborados | G43: Total Días Laborados de cada Evaluación Eventual | P43: 75
G44: % Participación Días Laborados de cada Evaluación Eventual | L44: =IF(L43>30,IFERROR(+L43/($L$43+$P$43),0),"DEBE SER SUPERIOR A 30 DIAS") -> DEBE SER SUPERIOR A 30 DIAS | P44: =IF(P43<31,"DEBE SER SUPERIOR A 30 DIAS",IF(SUM(L43:S43)<270,IFERROR(+P43/($L$43+$P$43),0),"DILIGENCIE EN FORMATO F1")) -> 100%
A45: Calificaciones parciales semestrales compromisos laborales | L45: Calificación total
L46: =O42*40 -> 0.00 | P46: =S42*40 -> 40.00
A47: CALIFICACIÓN TOTAL COMPROMISOS LABORALES | L47: Sobre el 100% | O47: =IF(OR(P44="DEBE SER SUPERIOR A 30 DIAS",P44="DILIGENCIE EN FORMATO F1"),0,(O42*IF(L43>30,L44,0)+S42*P44))*100 -> 100.00 | P47: Sobre el peso porcentual del 80% | S47: =+O47*80% -> 80.00
A49: V. COMPETENCIAS COMPORTAMENTALES | J49: F5. EVA. ÁREAS O DEPENDENCIAS. | L49: VI. EVALUACIÓN DE GESTIÓN POR ÁREAS O DEPENDENCIAS
A50: COMPETENCIAS COMPORTAMENTALES | F50: Última Ev. Realizada | H50: Evaluac. Ordinaria | L50: CALIFICACIÓN DE LA EVALUACIÓN DE GESTIÓN POR ÁREAS O DEPENDENCIAS. | P50: 8.00
A51: 1. | B51: ='F2. COMP. LAB Y COM COMPOR'!B51 -> Aprendizaje Continuo | H51: ALTO
A52: 2. | B52: ='F2. COMP. LAB Y COM COMPOR'!B53 -> Orientación al usuario y al ciudadano | H52: ALTO | J52: F4. CALF. COM. COMPORT. | L52: VII. RESULTADOS CONSOLIDADOS COMPONENTES DE LA EVALUACIÓN DE DESEMPEÑO LABORAL PARA LA EVALUACIÓN INFERIOR A UN AÑO.
A53: 3. | B53: ='F2. COMP. LAB Y COM COMPOR'!B55 -> Trabajo en equipo y Colaboración | H53: ACEPTABLE
A54: 4. | B54: ='F2. COMP. LAB Y COM COMPOR'!B57 -> Liderazgo de Grupos de Trabajo (personal a cargo) | H54: ACEPTABLE | L54: CALIFICACIÓN | P54: NIVEL DE CALIFICACIÓN
A55: CALIFICACIÓN | F55: =IF(COUNTA(F51:G54)=4,(SUM(F51:G54)/4),"DEBE CALIFICAR LAS 4 COMPETENCIAS") -> DEBE CALIFICAR LAS 4 COMPETENCIAS | H55: =IF(COUNTA(H51:I54)=4,(SUM(Hoja4!B508)/4),"DEBE CALIFICAR LAS 4 COMPETENCIAS") -> 7.00 | L55: =+S47+P50+A59 -> 95.00 | P55: =IF(P44="DILIGENCIE EN FORMATO F1","EVALUACION PARA PERIODOS INFERIORES A 270 DIAS",IF(AND(S47>=0,A59>0,P50<>"")=TRUE,IFERROR(VLOOKUP(L55,Hoja4!AA$3:AB$1002,2),0),"NO APLICA")) -> SOBRESALIENTE
J56: F1. INF. GENERAL
A57: % Participación Días Laborados de cada Ev. Eventual | F57: =IF(H57="DILIGENCIE EN FORMATO F1","DILIGENCIE EN FORMATO F1",L44) -> DEBE SER SUPERIOR A 30 DIAS | H57: =+P44 -> 100.00% | L57: F7. PLAN DE MEJORAMIENTO | O57: F2. COMP. LAB Y COM COMPOR | Q57: F3. EVIDENCIAS
A58: CALIFICACIÓN DE LAS COMPETENCIAS COMPORTAMENTALES
A59: =IF(F55="DEBE CALIFICAR LAS 4 COMPETENCIAS",0,F55*F57)+IF(H55="DEBE CALIFICAR LAS 4 COMPETENCIAS",0,H55*H57) -> 7.00
A60: VIII. NOTIFICACIÓN
A62: Nombre del Evaluado: | C62: =UPPER(CONCATENATE(L12," ",P12," ",F12," ",I12)) -> PABLO PEREZ | J62: Nombre del evaluador: | L62: =UPPER(CONCATENATE(L19," ",P19," ",F19," ",I19)) -> FERNANDO ARDILA
A64: Firma | J64: Firma
A67: IX. DECISION DE RECURSOS
A68: Interpone recursos
A69: NO
A70: RECURSO DE REPOSICIÓN | J70: RECURSO DE APELACIÓN
A71: DECISIÓN | G71: FECHA | J71: DECISIÓN | Q71: FECHA
A73: Nombre del Evaluado: | C73: =IF(D71="","",UPPER(CONCATENATE(L12," ",P12," ",F12," ",I12))) ->  | J73: Nombre del Evaluado: | L73: =IF(M71="","",UPPER(CONCATENATE(L12," ",P12," ",F12," ",I12))) -> 
A75: Firma | J75: Firma
A78: Nombre del Notificador: | J78: Nombre del Notificador:
A80: Firma | J80: Firma
A83: MOTIVACIÓN (Anexar Acto Administrativo): | J83: MOTIVACIÓN (Anexar Acto Administrativo):
A85: X. CALIFICACIÓN DEFINITIVA
A86: CALIFICACIÓN DEFINITIVA EN FIRME | E86: FIRMA Y NÚMERO DE CÉDULA DEL NOTIFICADO | L86: FIRMA Y NÚMERO DE CÉDULA DEL NOTIFICADOR
G88: }
L119: Cedula de ciudadanía
L120: Cedula de extranjería
D136: Asesor
D137: profesional
D138: Técnico
D139: Asistencial
J160: 60
J161: 61
J162: 62
J163: 63
J164: 64
J165: 65
J166: 66
J167: 67
J168: 68
J169: 69
J170: 70
J171: 71
J172: 72
J173: 73
J174: 74
J175: 75
J176: 76
J177: 77
J178: 78
J179: 79
J180: 80
J181: 81
J182: 82
J183: 83
J184: 84
J185: 85
J186: 86
J187: 87
J188: 88
J189: 89
J190: 90
J191: 91
J192: 92
J193: 93
J194: 94
J195: 95
J196: 96
J197: 97
J198: 98
J199: 99
J200: 100

Sheet F11. EVA P. PRUEBA
E1: COMISIÓN NACIONAL DEL SERVICIO CIVIL | P1: INSERTE EL LOGOTIPO DE SU ENTIDAD
E4: FORMATO 11. EVALUACIÓN PERÍODO DE PRUEBA
E6: PROCESO: EVALUACIÓN DEL DESEMPEÑO LABORAL | H6: Código: | J6: F-ED-012 | L6: Página | N6: 1 de 1
H7: Fecha de emisión: | J7: 2016-12-27 | L7: Versión: | N7: 2.0
A8: PERÍODO DE EVALUACIÓN | E8: DÍA | F8: MES | G8: AÑO | H8: al | J8: DÍA | K8: MES | L8: AÑO | M8: FECHA DE EVALUACIÒN | Q8: DÍA | R8: MES | S8: AÑO
A10: I. IDENTIFICACIÓN DEL EVALUADO
A11: Tipo de Documento | C11: Número de identificación | F11: Primer apellido | I11: Segundo apellido | L11: Primer nombre | P11: Otros nombres
A12: CEDULA DE CIUDADANIA
A13: Dependencia o área a la que pertenece el evaluado | I13: Denominación del empleo
A15: Nivel jerárquico | F15: Código | H15: Grado | I15: Propósito del empleo:
A17: II. IDENTIFICACIÓN EVALUADOR. (Jefe inmediato del evaluado )
A18: Tipo de documento | C18: Número de identificación | F18: Primer apellido | I18: Segundo apellido | L18: Primer nombre | P18: Otros nombres
A19: CEDULA DE CIUDADANIA
A20: Área o Dependencia a la que pertenece el evaluador | G20: Denominación del empleo | N20: Código | P20: Grado | R20: Nivel jerárquico
A22: III. IDENTIFICACIÓN EVALUADOR (Servidor público de Libre Nombramiento y Remoción en caso de constituir Comisión Evaluadora)
O23: Se requiere constituir Comisión Evaluadora | R23: NO
A24: Tipo de documento | C24: Número de identificación | F24: Primer apellido | I24: Segundo apellido | L24: Primer nombre | P24: Otros nombres
A25: CEDULA DE CIUDADANIA
A26: Dependencia o área a la que pertenece el evaluador | G26: Denominación del empleo | N26: Código | P26: Grado | R26: Nivel jerárquico
A29: CONCERTACIÓN / FIJACIÓN DE COMPROMISOS | G29: AJUSTE DE COMPROMISOS | L29: SELECCIONE LA RAZÓN DEL AJUSTE DE LOS COMPROMISOS
A31: IV. COMPROMISOS LABORALES
A32: Funciones Esenciales del empleo. | F32: Compromisos Laborales. | K32: Peso porcentual del compromiso | M32: Períodos de evaluación
M33: No. calificación | N33: 1a. | O33: 2a. | P33: 3a. | Q33: 4a. | R33: 5a. | S33: Total
M34: Causal
M35: Desde
M36: Hasta
A37: m1 | F37: c11 | S37: =IF($L$41="",0,SUM(($K37*N37*N$42),(K37*O37*O$42),(K37*P37*P$42),(K37*Q37*Q$42),(K37*R37*R$42))) -> 0.00
A38: m22 | F38: c22 | S38: =IF($L$41="",0,SUM(($K38*N38*N$42),(K38*O38*O$42),(K38*P38*P$42),(K38*Q38*Q$42),(K38*R38*R$42))) -> 0.00
A39: m33 | F39: c33 | S39: =IF($L$41="",0,SUM(($K39*N39*N$42),(K39*O39*O$42),(K39*P39*P$42),(K39*Q39*Q$42),(K39*R39*R$42))) -> 0.00
A40: TOTALES | K40: =IF(COUNT(K37:L39)<3,"DETERMINAR TRES (03) COMPROMISOS",IF(SUM(K37:L39)>1,CONCATENATE("ERROR!!: Sumatoria mayor a 100% (",TEXT(SUM(K37:L39),"0%)")),IF(SUM(K37:L39)<1,CONCATENATE("ERROR!!: Sumatoria menor a 100% (",TEXT(SUM(K37:L39),"0%)")),SUM(K37:L39)))) -> DETERMINAR TRES (03) COMPROMISOS | N40: =IF(N41="",0,(N37*$K37+N38*$K38+N39*$K39)) -> 0.00 | O40: =IF(O41="",0,(O37*$K37+O38*$K38+O39*$K39)) -> 0.00 | P40: =IF(P41="",0,(P37*$K37+P38*$K38+P39*$K39)) -> 0.00 | Q40: =IF(Q41="",0,(Q37*$K37+Q38*$K38+Q39*$K39)) -> 0.00 | R40: =IF(R41="",0,(R37*$K37+R38*$K38+R39*$K39)) -> 0.00 | S40: =IF($L$41=0,0,SUM(($K40*N40*N$42),(K40*O40*O$42),(K40*P40*P$42),(K40*Q40*Q$42),(K40*R40*R$42))) -> 0.00
A41: Días Efectivamente Laborados | F41: Total Días Laborados de cada Evaluación Eventual | L41: =IF(SUM(N41:R41)>180,"No Aplica",SUM(N41:R41)) -> 0
F42: % Participación Días Laborados de cada Evalución Eventual | L42: =IFERROR(+L41/$L$41,0) -> 0% | N42: =IFERROR(+N41/$L$41,0) -> 0.00% | O42: =IFERROR(+O41/$L$41,0) -> 0.00% | P42: =IFERROR(+P41/$L$41,0) -> 0.00% | Q42: =IFERROR(+Q41/$L$41,0) -> 0.00% | R42: =IFERROR(+R41/$L$41,0) -> 0.00%
A43: CALIFICACIÓN COMPROMISOS LABORALES (Sobre 100) | K43: =IF(AND(K40=1,L42=1)=TRUE,(N40*N42+O40*O42+P40*P42+Q40*Q42+R40*R42),"NO APLICA") -> NO APLICA | M43: CALIFICACIÓN COMPROMISOS LABORALES (Sobre 85%) | R43: =IFERROR((K43*85%),"NO APLICA") -> NO APLICA
A44: V. COMPETENCIAS COMPORTAMENTALES
A45: COMPETENCIA | C45: DEFINICIÓN | F45: CONDUCTAS ASOCIADAS | N45: 1a. | O45: 2a. | P45: 3a. | Q45: 4a. | R45: 5a. | S45: Total
A46: Compromiso con la Organización | C46: =IFERROR(VLOOKUP($A$16&A46,Hoja4!C$220:E$250,2,FALSE),"") ->  | F46: =IF(AND(A46<>A48,A46<>A50,A46<>A52)=TRUE,VLOOKUP($A$16&A46,Hoja4!C$220:E$250,3,FALSE),"REPETIDA") ->  | S46: =IFERROR((SUM(IF($N$55>0,N47*$N$55,0),IF($O$55>0,O47*$O$55,0),IF($P$55>0,P47*$P$55,0),IF($Q$55>0,Q47*$Q$55,0),IF($R$55>0,R47*$R$55,0))),"FALTAN CALIFICACIONES") -> 0.00
N47: =IF($A$46<>0,IFERROR(VLOOKUP(N46,Hoja4!$A$460:$B$464,2,FALSE),""),"DEFINA COMPETENCIA") ->  | O47: =IF($A$46<>0,IFERROR(VLOOKUP(O46,Hoja4!$A$460:$B$464,2,FALSE),""),"DEFINA COMPETENCIA") ->  | P47: =IF($A$46<>0,IFERROR(VLOOKUP(P46,Hoja4!$A$460:$B$464,2,FALSE),""),"DEFINA COMPETENCIA") ->  | Q47: =IF($A$46<>0,IFERROR(VLOOKUP(Q46,Hoja4!$A$460:$B$464,2,FALSE),""),"DEFINA COMPETENCIA") ->  | R47: =IF($A$46<>0,IFERROR(VLOOKUP(R46,Hoja4!$A$460:$B$464,2,FALSE),""),"DEFINA COMPETENCIA") -> 
A48: Trabajo en equipo | C48: =IFERROR(VLOOKUP($A$16&A48,Hoja4!C$220:E$250,2,FALSE),"") ->  | F48: =IF(AND(A46<>A48,A48<>A50,A48<>A52)=TRUE,VLOOKUP($A$16&A48,Hoja4!C$220:E$250,3,FALSE),"REPETIDA") ->  | S48: =IFERROR((SUM(IF($N$55>0,N49*$N$55,0),IF($O$55>0,O49*$O$55,0),IF($P$55>0,P49*$P$55,0),IF($Q$55>0,Q49*$Q$55,0),IF($R$55>0,R49*$R$55,0))),"FALTAN CALIFICACIONES") -> 0.00
N49: =IF($A$48<>0,IFERROR(VLOOKUP(N48,Hoja4!$A$460:$B$464,2,FALSE),""),"DEFINA COMPETENCIA") ->  | O49: =IF($A$48<>0,IFERROR(VLOOKUP(O48,Hoja4!$A$460:$B$464,2,FALSE),""),"DEFINA COMPETENCIA") ->  | P49: =IF($A$48<>0,IFERROR(VLOOKUP(P48,Hoja4!$A$460:$B$464,2,FALSE),""),"DEFINA COMPETENCIA") ->  | Q49: =IF($A$48<>0,IFERROR(VLOOKUP(Q48,Hoja4!$A$460:$B$464,2,FALSE),""),"DEFINA COMPETENCIA") ->  | R49: =IF($A$48<>0,IFERROR(VLOOKUP(R48,Hoja4!$A$460:$B$464,2,FALSE),""),"DEFINA COMPETENCIA") -> 
A50: Creatividad e innovación | C50: =IFERROR(VLOOKUP($A$16&A50,Hoja4!C$220:E$250,2,FALSE),"") ->  | F50: =IF(AND(A46<>A50,A48<>A50,A50<>A52)=TRUE,VLOOKUP($A$16&A50,Hoja4!C$220:E$250,3,FALSE),"REPETIDA") ->  | S50: =IFERROR((SUM(IF($N$55>0,N51*$N$55,0),IF($O$55>0,O51*$O$55,0),IF($P$55>0,P51*$P$55,0),IF($Q$55>0,Q51*$Q$55,0),IF($R$55>0,R51*$R$55,0))),"FALTAN CALIFICACIONES") -> 0.00
N51: =IF($A$50<>0,IFERROR(VLOOKUP(N50,Hoja4!$A$460:$B$464,2,FALSE),""),"DEFINA COMPETENCIA") ->  | O51: =IF($A$50<>0,IFERROR(VLOOKUP(O50,Hoja4!$A$460:$B$464,2,FALSE),""),"DEFINA COMPETENCIA") ->  | P51: =IF($A$50<>0,IFERROR(VLOOKUP(P50,Hoja4!$A$460:$B$464,2,FALSE),""),"DEFINA COMPETENCIA") ->  | Q51: =IF($A$50<>0,IFERROR(VLOOKUP(Q50,Hoja4!$A$460:$B$464,2,FALSE),""),"DEFINA COMPETENCIA") ->  | R51: =IF($A$50<>0,IFERROR(VLOOKUP(R50,Hoja4!$A$460:$B$464,2,FALSE),""),"DEFINA COMPETENCIA") -> 
A52: Experticia Técnica | C52: =IFERROR(VLOOKUP($A$16&A52,Hoja4!C$220:E$250,2,FALSE),"") ->  | F52: =IF(AND(A46<>A52,A48<>A52,A50<>A52)=TRUE,VLOOKUP($A$16&A52,Hoja4!C$220:E$250,3,FALSE),"REPETIDA") ->  | S52: =IFERROR((SUM(IF($N$55>0,N53*$N$55,0),IF($O$55>0,O53*$O$55,0),IF($P$55>0,P53*$P$55,0),IF($Q$55>0,Q53*$Q$55,0),IF($R$55>0,R53*$R$55,0))),"FALTAN CALIFICACIONES") -> 0.00
N53: =IF($A$52<>0,IFERROR(VLOOKUP(N52,Hoja4!$A$460:$B$464,2,FALSE),""),"DEFINA COMPETENCIA") ->  | O53: =IF($A$52<>0,IFERROR(VLOOKUP(O52,Hoja4!$A$460:$B$464,2,FALSE),""),"DEFINA COMPETENCIA") ->  | P53: =IF($A$52<>0,IFERROR(VLOOKUP(P52,Hoja4!$A$460:$B$464,2,FALSE),""),"DEFINA COMPETENCIA") ->  | Q53: =IF($A$52<>0,IFERROR(VLOOKUP(Q52,Hoja4!$A$460:$B$464,2,FALSE),""),"DEFINA COMPETENCIA") ->  | R53: =IF($A$52<>0,IFERROR(VLOOKUP(R52,Hoja4!$A$460:$B$464,2,FALSE),""),"DEFINA COMPETENCIA") -> 
A54: PONDERACIÓN POR EVALUACIÓN EVENTUAL | N54: =IFERROR(AVERAGE(N47,N49,N51,N53),0) -> 0.00 | O54: 0.00 | P54: =IFERROR(AVERAGE(P47,P49,P51,P53),0) -> 0.00 | Q54: =IFERROR(AVERAGE(Q47,Q49,Q51,Q53),0) -> 0.00 | R54: 0.00 | S54: =IFERROR(AVERAGE(S46:S53),0) -> 0.00
A55: % Participación Días Laborados de cada Ev. Eventual | N55: =+N42 -> 0.00% | O55: =+O42 -> 0.00% | P55: =+P42 -> 0.00% | Q55: 0.00% | R55: 0.00% | S55: =SUM(M55:R55) -> 0%
A56: CALIFICACIÓN COMPETENCIAS COMPORTAMENTALES | H56: =IF(OR(F46="REPETIDA",F48="REPETIDA",F50="REPETIDA",F52="REPETIDA")=TRUE,"NO APLICA",IF(COUNTA(A46:B53)=4,S54,"DETERMINAR CUATRO (04) COMPETENCIAS")) ->  | J56: CALIFICACIÓN TOTAL PERÍODO DE PRUEBA | M56: =IFERROR((IF(K40="DETERMINAR TRES (03) COMPROMISOS",0,R43)+IF(H56="DETERMINAR CUATRO (04) COMPETENCIAS",0,H56)),"NO APLICA") -> NO APLICA | O56: NIVEL DE CALIFICACIÓN | Q56: =IF(AND(OR(H56=0,R43=0,M56="NO APLICA",R43="NO APLICA"))=TRUE,"NO APLICA",IFERROR(VLOOKUP(M56,Hoja4!AA3:AB1002,2),0)) -> 
A58: VI. FIRMAS, RECLAMACIÓN U OBJECIÓN EN LA CONCERTACIÓN DE COMPROMISOS.
A59: FIRMA DEL EVALUADO | E59: FIRMA DEL JEFE INMEDIATO | H59: FIRMA DEL FUNCIONARIO DE LIBRE NOMBRAMIENTO Y REMOCIÓN | K59: Renuencia del Evaluado para firmar la concertación de compromisos | M59: DATOS DEL TESTIGO | P59: FIRMA DEL TESTIGO | R59: FECHA
A61: RECLAMACIÓN U OBJECIÓN EN ÚNICA INSTANCIA ANTE LA COMISIÓN DE PERSONAL (Paràgrafo del articulo 31º, del Acuerdo 565 de 2016) | G61: DECISIÓN DE LA COMISIÓN DE PERSONAL | M61: MOTIVACIÓN DE LA DECISIÓN
A64: Número de Radicado
A65: Fecha Reclamación (dd/mm/aa)
A66: VII. NOTIFICACIÓN
A68: Nombre del Evaluado: | C68: =UPPER(CONCATENATE(L12," ",P12," ",F12," ",I12)) ->  | K68: Nombre del evaluador: | N68: =UPPER(CONCATENATE(L19," ",P19," ",F19," ",I19)) -> 
A70: Firma | K70: Firma
A73: VIII. DECISIÓN DE RECURSOS
A74: Interpone recursos
A75: SI
A76: RECURSO DE REPOSICIÓN | J76: RECURSO DE APELACIÓN
A77: DECISIÓN | G77: FECHA | J77: DECISIÓN | Q77: FECHA
A79: Nombre del Evaluado: | C79: =IF(D77="","",C68) ->  | J79: Nombre del Evaluado: | L79: =IF(M77="","",C68) -> 
A81: Firma | J81: Firma
A84: Nombre del Notificador: | J84: Nombre del Notificador:
A86: Firma | J86: Firma
A89: MOTIVACIÓN (Anexar Acto Administrativo): | J89: MOTIVACIÓN (Anexar Acto Administrativo):
A91: IX. CALIFICACIÓN DEFINITIVA
A92: CALIFICACIÓN DEFINITIVA EN FIRME | E92: FIRMA Y NÚMERO DE CÉDULA DEL NOTIFICADO | L92: FIRMA Y NÚMERO DE CÉDULA DEL NOTIFICADOR
A94: F1. INF. GENERAL | F94: F4. CALF. COM. COMPORT. | L94: F3. EVIDENCIAS | P94: F7. PLAN DE MEJORAMIENTO
